Body Name,Body,Service Area Categorisation,Service Division Categorisation,Responsible Unit,Expenses Type,Detailed Expenses Type,Payment Date,Transaction Number,Payment Amount,Supplier Type,Supplier Name,Supplier Id
Portsmouth City Council,PCC,Highways and Transport Services,Parking Services,Regeneration,Third Party Payments,Private contractors,20/02/2019,6283884,44,VENDOR,BOARHUNT GROUP LTD,103726
Portsmouth City Council,PCC,Highways and Transport Services,Parking Services,Regeneration,Third Party Payments,Private contractors,20/02/2019,6283884,50,VENDOR,BOARHUNT GROUP LTD,103726
Portsmouth City Council,PCC,Highways and Transport Services,Parking Services,Regeneration,Third Party Payments,Private contractors,20/02/2019,6283884,50,VENDOR,BOARHUNT GROUP LTD,103726
Portsmouth City Council,PCC,Highways and Transport Services,Parking Services,Regeneration,Third Party Payments,Private contractors,20/02/2019,6283884,44,VENDOR,BOARHUNT GROUP LTD,103726
Portsmouth City Council,PCC,Highways and Transport Services,Parking Services,Regeneration,Premises-Related Expenditure,Rents,20/02/2019,6283884,1800,VENDOR,BOARHUNT GROUP LTD,103726
Portsmouth City Council,PCC,Highways and Transport Services,Parking Services,Regeneration,Third Party Payments,Private contractors,27/02/2019,6285564,90,VENDOR,BOARHUNT GROUP LTD,103726
Portsmouth City Council,PCC,Highways and Transport Services,Parking Services,Regeneration,Third Party Payments,Private contractors,27/02/2019,6285564,50,VENDOR,BOARHUNT GROUP LTD,103726
Portsmouth City Council,PCC,Highways and Transport Services,Parking Services,Regeneration,Third Party Payments,Private contractors,27/02/2019,6285564,42.5,VENDOR,BOARHUNT GROUP LTD,103726
Portsmouth City Council,PCC,Highways and Transport Services,Parking Services,Regeneration,Third Party Payments,Private contractors,27/02/2019,6285564,50,VENDOR,BOARHUNT GROUP LTD,103726
Portsmouth City Council,PCC,Highways and Transport Services,Parking Services,Regeneration,Third Party Payments,Private contractors,27/02/2019,6285564,50,VENDOR,BOARHUNT GROUP LTD,103726
Portsmouth City Council,PCC,Highways and Transport Services,Parking Services,Regeneration,Third Party Payments,Private contractors,27/02/2019,6285564,50,VENDOR,BOARHUNT GROUP LTD,103726
Portsmouth City Council,PCC,Highways and Transport Services,Parking Services,Regeneration,Third Party Payments,Private contractors,27/02/2019,6285564,25,VENDOR,BOARHUNT GROUP LTD,103726
Portsmouth City Council,PCC,Highways and Transport Services,Parking Services,Regeneration,Third Party Payments,Private contractors,27/02/2019,6285564,44,VENDOR,BOARHUNT GROUP LTD,103726
Portsmouth City Council,PCC,Highways and Transport Services,Parking Services,Regeneration,Third Party Payments,Private contractors,27/02/2019,6285564,170,VENDOR,BOARHUNT GROUP LTD,103726
Portsmouth City Council,PCC,Highways and Transport Services,Parking Services,Regeneration,Third Party Payments,Private contractors,27/02/2019,6285564,50,VENDOR,BOARHUNT GROUP LTD,103726
Portsmouth City Council,PCC,Highways and Transport Services,Parking Services,Regeneration,Third Party Payments,Private contractors,27/02/2019,6285564,50,VENDOR,BOARHUNT GROUP LTD,103726
Portsmouth City Council,PCC,Children's and Education Services,Children Looked After,Children's Services and Education,Third Party Payments,Other establishments,27/02/2019,6285999,256.41,VENDOR,KEYS GROUP LIMITED,137236
Portsmouth City Council,PCC,Adult Social Care,Social Care Activities,Adult Services,Premises-Related Expenditure,Rents,07/02/2019,6281971,5352,VENDOR,NHS PROPERTY SERVICES LTD,137912
Portsmouth City Council,PCC,Adult Social Care,Social Care Activities,Adult Services,Premises-Related Expenditure,Rents,07/02/2019,6281971,2179.26,VENDOR,NHS PROPERTY SERVICES LTD,137912
Portsmouth City Council,PCC,Children's and Education Services,Children Looked After,Children's Services and Education,Third Party Payments,Other establishments,27/02/2019,6285999,20234.14,VENDOR,KEYS GROUP LIMITED,137236
Portsmouth City Council,PCC,Cultural and Related Services,Allocation of Management & Admin,Community & Communication,Supplies and Services,"Printing, stationery and general office expenses",06/02/2019,6281831,8408.67,VENDOR,PRODUCT DEVELOPMENT CORPORATION,134173
Portsmouth City Council,PCC,Other,Suspense and Capital Schemes,Capital - Traffic & Transportation,Capital Charges,Capital Expenditure (WIP),06/02/2019,6281831,803.79,VENDOR,PRODUCT DEVELOPMENT CORPORATION,134173
Portsmouth City Council,PCC,Other,Suspense and Capital Schemes,Capital - Traffic & Transportation,Capital Charges,Capital Expenditure (WIP),01/02/2019,6280991,508.53,VENDOR,PRODUCT DEVELOPMENT CORPORATION,134173
Portsmouth City Council,PCC,Other,Suspense and Capital Schemes,Capital - Traffic & Transportation,Capital Charges,Capital Expenditure (WIP),01/02/2019,6280991,460.2,VENDOR,PRODUCT DEVELOPMENT CORPORATION,134173
Portsmouth City Council,PCC,Other,Suspense and Capital Schemes,Capital - Traffic & Transportation,Capital Charges,Capital Expenditure (WIP),01/02/2019,6280991,410.8,VENDOR,PRODUCT DEVELOPMENT CORPORATION,134173
Portsmouth City Council,PCC,Other,Suspense and Capital Schemes,Capital - Traffic & Transportation,Capital Charges,Capital Expenditure (WIP),01/02/2019,6280991,323.61,VENDOR,PRODUCT DEVELOPMENT CORPORATION,134173
Portsmouth City Council,PCC,Other,Suspense and Capital Schemes,Capital - Traffic & Transportation,Capital Charges,Capital Expenditure (WIP),08/02/2019,6282200,465.69,VENDOR,PRODUCT DEVELOPMENT CORPORATION,134173
Portsmouth City Council,PCC,Highways and Transport Services,Parking Services,Regeneration,Third Party Payments,Private contractors,22/02/2019,6285109,656.88,VENDOR,PRODUCT DEVELOPMENT CORPORATION,134173
Portsmouth City Council,PCC,Children's and Education Services,Family Support Services,Children's Services and Education,Transport-Related Expenditure,Public transport,21/02/2019,6284825,9.79,VENDOR,ATOC LTD,103839
Portsmouth City Council,PCC,Children's and Education Services,Family Support Services,Children's Services and Education,Transport-Related Expenditure,Public transport,21/02/2019,6284825,9.78,VENDOR,ATOC LTD,103839
Portsmouth City Council,PCC,Children's and Education Services,Family Support Services,Children's Services and Education,Transport-Related Expenditure,Public transport,21/02/2019,6284825,21.38,VENDOR,ATOC LTD,103839
Portsmouth City Council,PCC,Children's and Education Services,Family Support Services,Children's Services and Education,Transport-Related Expenditure,Public transport,21/02/2019,6284825,9.78,VENDOR,ATOC LTD,103839
Portsmouth City Council,PCC,Children's and Education Services,Family Support Services,Children's Services and Education,Transport-Related Expenditure,Public transport,21/02/2019,6284825,9.78,VENDOR,ATOC LTD,103839
Portsmouth City Council,PCC,Children's and Education Services,Family Support Services,Children's Services and Education,Transport-Related Expenditure,Public transport,21/02/2019,6284825,61.75,VENDOR,ATOC LTD,103839
Portsmouth City Council,PCC,Children's and Education Services,Safeguarding Children and Young Peoples Services,Children's Services and Education,Transport-Related Expenditure,Public transport,21/02/2019,6284825,9.78,VENDOR,ATOC LTD,103839
Portsmouth City Council,PCC,Children's and Education Services,Family Support Services,Children's Services and Education,Transport-Related Expenditure,Public transport,21/02/2019,6284825,9.78,VENDOR,ATOC LTD,103839
Portsmouth City Council,PCC,Children's and Education Services,Safeguarding Children and Young Peoples Services,Children's Services and Education,Transport-Related Expenditure,Public transport,21/02/2019,6284825,9.79,VENDOR,ATOC LTD,103839
Portsmouth City Council,PCC,Children's and Education Services,Family Support Services,Children's Services and Education,Transport-Related Expenditure,Public transport,21/02/2019,6284825,86.88,VENDOR,ATOC LTD,103839
Portsmouth City Council,PCC,Children's and Education Services,Children Looked After,Children's Services and Education,Transport-Related Expenditure,Public transport,21/02/2019,6284825,9.78,VENDOR,ATOC LTD,103839
Portsmouth City Council,PCC,Children's and Education Services,Safeguarding Children and Young Peoples Services,Children's Services and Education,Transport-Related Expenditure,Public transport,21/02/2019,6284825,9.79,VENDOR,ATOC LTD,103839
Portsmouth City Council,PCC,Children's and Education Services,Children Looked After,Children's Services and Education,Transport-Related Expenditure,Public transport,21/02/2019,6284825,1.88,VENDOR,ATOC LTD,103839
Portsmouth City Council,PCC,Children's and Education Services,Children Looked After,Children's Services and Education,Transport-Related Expenditure,Public transport,21/02/2019,6284825,18.6,VENDOR,ATOC LTD,103839
Portsmouth City Council,PCC,Children's and Education Services,Children Looked After,Children's Services and Education,Transport-Related Expenditure,Public transport,21/02/2019,6284825,9.78,VENDOR,ATOC LTD,103839
Portsmouth City Council,PCC,Children's and Education Services,Children Looked After,Children's Services and Education,Transport-Related Expenditure,Public transport,21/02/2019,6284825,9.78,VENDOR,ATOC LTD,103839
Portsmouth City Council,PCC,Children's and Education Services,Children Looked After,Children's Services and Education,Transport-Related Expenditure,Public transport,21/02/2019,6284825,127.9,VENDOR,ATOC LTD,103839
Portsmouth City Council,PCC,Children's and Education Services,Children Looked After,Children's Services and Education,Transport-Related Expenditure,Public transport,21/02/2019,6284825,87.7,VENDOR,ATOC LTD,103839
Portsmouth City Council,PCC,Children's and Education Services,Other Children and Family Services,Children's Services and Education,Transport-Related Expenditure,Public transport,21/02/2019,6284825,707.48,VENDOR,ATOC LTD,103839
Portsmouth City Council,PCC,Children's and Education Services,Safeguarding Children and Young Peoples Services,Children's Services and Education,Transport-Related Expenditure,Public transport,21/02/2019,6284825,14.38,VENDOR,ATOC LTD,103839
Portsmouth City Council,PCC,Children's and Education Services,Children Looked After,Children's Services and Education,Transport-Related Expenditure,Public transport,21/02/2019,6284825,9.78,VENDOR,ATOC LTD,103839
Portsmouth City Council,PCC,Children's and Education Services,Asylum seekers,Children's Services and Education,Transport-Related Expenditure,Public transport,21/02/2019,6284825,29.9,VENDOR,ATOC LTD,103839
Portsmouth City Council,PCC,Children's and Education Services,Asylum seekers,Children's Services and Education,Transport-Related Expenditure,Public transport,21/02/2019,6284825,9.78,VENDOR,ATOC LTD,103839
Portsmouth City Council,PCC,Children's and Education Services,Asylum seekers,Children's Services and Education,Transport-Related Expenditure,Public transport,21/02/2019,6284825,35.5,VENDOR,ATOC LTD,103839
Portsmouth City Council,PCC,Children's and Education Services,Asylum seekers,Children's Services and Education,Transport-Related Expenditure,Public transport,21/02/2019,6284825,62.2,VENDOR,ATOC LTD,103839
Portsmouth City Council,PCC,Children's and Education Services,Safeguarding Children and Young Peoples Services,Children's Services and Education,Transport-Related Expenditure,Public transport,21/02/2019,6284825,0.59,VENDOR,ATOC LTD,103839
Portsmouth City Council,PCC,Children's and Education Services,Safeguarding Children and Young Peoples Services,Children's Services and Education,Transport-Related Expenditure,Public transport,21/02/2019,6284825,9.2,VENDOR,ATOC LTD,103839
Portsmouth City Council,PCC,Children's and Education Services,Safeguarding Children and Young Peoples Services,Children's Services and Education,Transport-Related Expenditure,Public transport,21/02/2019,6284825,11.7,VENDOR,ATOC LTD,103839
Portsmouth City Council,PCC,Children's and Education Services,Safeguarding Children and Young Peoples Services,Children's Services and Education,Transport-Related Expenditure,Public transport,21/02/2019,6284825,9.78,VENDOR,ATOC LTD,103839
Portsmouth City Council,PCC,Children's and Education Services,Other Children and Family Services,Children's Services and Education,Transport-Related Expenditure,Public transport,21/02/2019,6284825,9.78,VENDOR,ATOC LTD,103839
Portsmouth City Council,PCC,Children's and Education Services,Other Children and Family Services,Children's Services and Education,Transport-Related Expenditure,Public transport,21/02/2019,6284825,9.79,VENDOR,ATOC LTD,103839
Portsmouth City Council,PCC,Children's and Education Services,Youth Justice,Children's Services and Education,Transport-Related Expenditure,Public transport,21/02/2019,6284825,33.19,VENDOR,ATOC LTD,103839
Portsmouth City Council,PCC,Children's and Education Services,Safeguarding Children and Young Peoples Services,Children's Services and Education,Transport-Related Expenditure,Public transport,06/02/2019,6281388,6.2,VENDOR,ATOC LTD,103839
Portsmouth City Council,PCC,Children's and Education Services,Family Support Services,Children's Services and Education,Transport-Related Expenditure,Public transport,06/02/2019,6281388,99.1,VENDOR,ATOC LTD,103839
Portsmouth City Council,PCC,Children's and Education Services,Children Looked After,Children's Services and Education,Transport-Related Expenditure,Public transport,06/02/2019,6281388,11.6,VENDOR,ATOC LTD,103839
Portsmouth City Council,PCC,Children's and Education Services,Children Looked After,Children's Services and Education,Transport-Related Expenditure,Public transport,06/02/2019,6281388,124.4,VENDOR,ATOC LTD,103839
Portsmouth City Council,PCC,Children's and Education Services,Other Children and Family Services,Children's Services and Education,Transport-Related Expenditure,Public transport,06/02/2019,6281388,469.1,VENDOR,ATOC LTD,103839
Portsmouth City Council,PCC,Children's and Education Services,Asylum seekers,Children's Services and Education,Transport-Related Expenditure,Public transport,06/02/2019,6281388,25.4,VENDOR,ATOC LTD,103839
Portsmouth City Council,PCC,Children's and Education Services,Asylum seekers,Children's Services and Education,Transport-Related Expenditure,Public transport,06/02/2019,6281388,32.1,VENDOR,ATOC LTD,103839
Portsmouth City Council,PCC,Children's and Education Services,Children Looked After,Children's Services and Education,Third Party Payments,Other establishments,20/02/2019,6284326,18821.43,VENDOR,KEYS GROUP LIMITED,137236
Portsmouth City Council,PCC,Cultural and Related Services,Open Spaces,Culture & City Development,Premises-Related Expenditure,Grounds maintenance costs,28/02/2019,6286182,4951.31,COMPANY,J B CORRIE AND CO LTD,100911
Portsmouth City Council,PCC,Children's and Education Services,Children Looked After,Children's Services and Education,Third Party Payments,Other establishments,15/02/2019,6283521,39139.16,VENDOR,PRIORS COURT SCHOOL,126243
Portsmouth City Council,PCC,Children's and Education Services,Children Looked After,Children's Services and Education,Third Party Payments,Other establishments,18/02/2019,6283664,3011.34,VENDOR,HORIZON CARE AND EDUCATION GROUP LTD,138450
Portsmouth City Council,PCC,Children's and Education Services,Asylum seekers,Children's Services and Education,Third Party Payments,Other establishments,18/02/2019,6283664,3011.34,VENDOR,HORIZON CARE AND EDUCATION GROUP LTD,138450
Portsmouth City Council,PCC,Children's and Education Services,Children Looked After,Children's Services and Education,Third Party Payments,Other establishments,18/02/2019,6283664,3011.34,VENDOR,HORIZON CARE AND EDUCATION GROUP LTD,138450
Portsmouth City Council,PCC,Children's and Education Services,Children Looked After,Children's Services and Education,Third Party Payments,Other establishments,28/02/2019,6286177,2137.08,VENDOR,HORIZON CARE AND EDUCATION GROUP LTD,138450
Portsmouth City Council,PCC,Children's and Education Services,Children Looked After,Children's Services and Education,Third Party Payments,Other establishments,25/02/2019,6285287,14571.36,VENDOR,KEYS GROUP LIMITED,137236
Portsmouth City Council,PCC,Other,Suspense and Capital Schemes,Capital - Environment,Capital Charges,Capital Expenditure (WIP),20/02/2019,6283934,3493.33,VENDOR,ENGLISH HERITAGE,106883
Portsmouth City Council,PCC,Other,Suspense and Capital Schemes,"Housing, Neighbourhood and Building Services",Premises-Related Expenditure,Rents,14/02/2019,6283394,2947.25,VENDOR,WORKMAN LLP,134174
Portsmouth City Council,PCC,Other,Suspense and Capital Schemes,"Housing, Neighbourhood and Building Services",Premises-Related Expenditure,Rents,14/02/2019,6283394,2947.25,VENDOR,WORKMAN LLP,134174
Portsmouth City Council,PCC,Other,Suspense and Capital Schemes,Capital - Housing RA,Capital Charges,Capital Expenditure (WIP),07/02/2019,6282014,2691.5,VENDOR,WILDE CARTER CLACK LIMITED,138894
Portsmouth City Council,PCC,Other,Suspense and Capital Schemes,Capital - Housing RA,Capital Charges,Capital Expenditure (WIP),27/02/2019,6286072,1627,VENDOR,WILDE CARTER CLACK LIMITED,138894
Portsmouth City Council,PCC,Other,Suspense and Capital Schemes,Capital - Housing RA,Capital Charges,Capital Expenditure (WIP),27/02/2019,6286072,1523,VENDOR,WILDE CARTER CLACK LIMITED,138894
Portsmouth City Council,PCC,Housing Revenue Account,Supervision and Management,"Housing, Neighbourhood and Building Services",Employees,Direct employee expenses,05/02/2019,6281370,1816.25,VENDOR,WATER HYGIENE CENTRE LTD,140294
Portsmouth City Council,PCC,Housing Revenue Account,Repairs and Maintenance,"Housing, Neighbourhood and Building Services",Premises-Related Expenditure,"Repairs, alterations and maintenance of buildings",04/02/2019,6281209,4716.03,COMPANY,VITAL ENERGI UTILITIES LIMITED,112610
Portsmouth City Council,PCC,Other,Suspense and Capital Schemes,Capital - Housing GF,Capital Charges,REFCUS,06/02/2019,6281872,4950.34,VENDOR,VISTAR CONSTRUCTION LIMITED,143212
Portsmouth City Council,PCC,Housing Services,Private Sector Housing Renewal,"Housing, Neighbourhood and Building Services",Income,Other grants reimbursements and contributions,06/02/2019,6281872,-2690.5,VENDOR,VISTAR CONSTRUCTION LIMITED,143212
Portsmouth City Council,PCC,Other,Suspense and Capital Schemes,Capital - Housing GF,Capital Charges,REFCUS,13/02/2019,6283228,1692,VENDOR,VISTAR CONSTRUCTION LIMITED,143212
Portsmouth City Council,PCC,Support Service / Transparency Costs Unallocated,AMS,"Housing, Neighbourhood and Building Services",Third Party Payments,Private contractors,05/02/2019,6281367,167.4,VENDOR,VESPASIAN SECURITY LTD,126345
Portsmouth City Council,PCC,Support Service / Transparency Costs Unallocated,AMS,"Housing, Neighbourhood and Building Services",Third Party Payments,Private contractors,05/02/2019,6281367,334.8,VENDOR,VESPASIAN SECURITY LTD,126345
Portsmouth City Council,PCC,Housing Revenue Account,Special Services,"Housing, Neighbourhood and Building Services",Premises-Related Expenditure,Cleaning and domestic supplies,05/02/2019,6281366,81.78,COMPANY,VEOLIA ES LIMITED,102466
Portsmouth City Council,PCC,Environmental and Regulatory Services,Regulatory Services,Culture & City Development,Supplies and Services,Services,14/02/2019,6283237,734,VENDOR,ALERE TOXICOLOGY PLC,121708
Portsmouth City Council,PCC,Environmental and Regulatory Services,Regulatory Services,Culture & City Development,Supplies and Services,Services,28/02/2019,6286078,468,VENDOR,ALERE TOXICOLOGY PLC,121708
Portsmouth City Council,PCC,Support Service / Transparency Costs Unallocated,Information Services,Finance & IT,Supplies and Services,Communications and computing,22/02/2019,6285138,55,VENDOR,VODAFONE LTD,100173
Portsmouth City Council,PCC,Support Service / Transparency Costs Unallocated,Information Services,Finance & IT,Supplies and Services,Communications and computing,22/02/2019,6285138,55,VENDOR,VODAFONE LTD,100173
Portsmouth City Council,PCC,Adult Social Care,Support with Memory and Cognition Older People (65 - 74),Adult Services,Premises-Related Expenditure,Cleaning and domestic supplies,04/02/2019,6281192,790.5,VENDOR,SRCL LTD,130344
Portsmouth City Council,PCC,Adult Social Care,Learning Disability Support  Adults (18 - 64),Adult Services,Premises-Related Expenditure,Cleaning and domestic supplies,22/02/2019,6285086,5000,VENDOR,LILY AND LIME LD CIC,140817
Portsmouth City Council,PCC,Adult Social Care,Learning Disability Support  Adults (18 - 64),Adult Services,Premises-Related Expenditure,Cleaning and domestic supplies,22/02/2019,6285086,555,VENDOR,LILY AND LIME LD CIC,140817
Portsmouth City Council,PCC,Housing Revenue Account,Special Services,"Housing, Neighbourhood and Building Services",Premises-Related Expenditure,Cleaning and domestic supplies,05/02/2019,6281366,151.06,COMPANY,VEOLIA ES LIMITED,102466
Portsmouth City Council,PCC,Other,Suspense and Capital Schemes,Capital - Education,Capital Charges,Capital Expenditure (WIP),21/02/2019,6284917,6033.84,COMPANY,MOUNTJOY LIMITED,129869
Portsmouth City Council,PCC,Cultural and Related Services,Open Spaces,Culture & City Development,Premises-Related Expenditure,Water Services,15/02/2019,6283424,127.01,VENDOR,CASTLE WATER LIMITED,142798
Portsmouth City Council,PCC,Housing Revenue Account,Special Services,"Housing, Neighbourhood and Building Services",Premises-Related Expenditure,Cleaning and domestic supplies,05/02/2019,6281366,185.7,COMPANY,VEOLIA ES LIMITED,102466
Portsmouth City Council,PCC,Cultural and Related Services,Open Spaces,Culture & City Development,Premises-Related Expenditure,Water Services,18/02/2019,6283588,1056.02,VENDOR,CASTLE WATER LIMITED,142798
Portsmouth City Council,PCC,Highways and Transport Services,"Airports, Harbours and Toll Facilities",Portsmouth International Port,Premises-Related Expenditure,"Repairs, alterations and maintenance of buildings",07/02/2019,6281889,2059,VENDOR,BLD COMPUTER SOLUTIONS LTD,107653
Portsmouth City Council,PCC,Housing Revenue Account,Special Services,"Housing, Neighbourhood and Building Services",Premises-Related Expenditure,Cleaning and domestic supplies,05/02/2019,6281366,116.42,COMPANY,VEOLIA ES LIMITED,102466
Portsmouth City Council,PCC,Housing Revenue Account,Special Services,"Housing, Neighbourhood and Building Services",Premises-Related Expenditure,Cleaning and domestic supplies,05/02/2019,6281366,185.7,COMPANY,VEOLIA ES LIMITED,102466
Portsmouth City Council,PCC,Housing Revenue Account,Special Services,"Housing, Neighbourhood and Building Services",Premises-Related Expenditure,Cleaning and domestic supplies,05/02/2019,6281366,151.06,COMPANY,VEOLIA ES LIMITED,102466
Portsmouth City Council,PCC,Housing Revenue Account,Special Services,"Housing, Neighbourhood and Building Services",Income,Customer and client receipts,27/02/2019,6286068,240.36,COMPANY,VEOLIA ES LIMITED,102466
Portsmouth City Council,PCC,Other,Suspense and Capital Schemes,Capital - Housing RA,Capital Charges,Capital Expenditure (WIP),04/02/2019,6281206,2146,COMPANY,VALE SOUTHERN CONSTRUCTION,108299
Portsmouth City Council,PCC,Adult Social Care,Assistive Equipment & Technology,"Housing, Neighbourhood and Building Services",Supplies and Services,"Equipment, furniture and materials",13/02/2019,6283222,764.25,VENDOR,TYNETEC B/U OF LEGRAND ELECTRIC LTD,140439
Portsmouth City Council,PCC,Adult Social Care,Assistive Equipment & Technology,"Housing, Neighbourhood and Building Services",Supplies and Services,"Equipment, furniture and materials",13/02/2019,6283222,1076.1,VENDOR,TYNETEC B/U OF LEGRAND ELECTRIC LTD,140439
Portsmouth City Council,PCC,Adult Social Care,Social Care Activities,Adult Services,Third Party Payments,Other establishments,13/02/2019,6282666,5496.96,VENDOR,ASTER CARE LTD,130238
Portsmouth City Council,PCC,Central Services,Coroners' Court Services,Culture & City Development,Supplies and Services,Services,01/02/2019,320997,520,VENDOR,DIGNITY FUNERALS LTD,117178
Portsmouth City Council,PCC,Adult Social Care,Social Care Activities,Adult Services,Third Party Payments,Other establishments,20/02/2019,6284337,3097,VENDOR,NURSE PLUS & CARER PLUS (UK) LIMITED,129474
Portsmouth City Council,PCC,Adult Social Care,Social Care Activities,Adult Services,Third Party Payments,Other establishments,13/02/2019,6282666,5714.52,VENDOR,ASTER CARE LTD,130238
Portsmouth City Council,PCC,Adult Social Care,Social Care Activities,Adult Services,Third Party Payments,Other establishments,13/02/2019,6282666,5279.4,VENDOR,ASTER CARE LTD,130238
Portsmouth City Council,PCC,Adult Social Care,Social Care Activities,Adult Services,Third Party Payments,Other establishments,01/02/2019,6280974,945.4,VENDOR,NURSE PLUS & CARER PLUS (UK) LIMITED,129474
Portsmouth City Council,PCC,Adult Social Care,Social Care Activities,Adult Services,Third Party Payments,Other establishments,01/02/2019,6280974,1369.2,VENDOR,NURSE PLUS & CARER PLUS (UK) LIMITED,129474
Portsmouth City Council,PCC,Adult Social Care,Social Care Activities,Adult Services,Third Party Payments,Other establishments,01/02/2019,6280974,2738.4,VENDOR,NURSE PLUS & CARER PLUS (UK) LIMITED,129474
Portsmouth City Council,PCC,Adult Social Care,Social Care Activities,Adult Services,Third Party Payments,Other establishments,08/02/2019,6282185,945.4,VENDOR,NURSE PLUS & CARER PLUS (UK) LIMITED,129474
Portsmouth City Council,PCC,Adult Social Care,Social Care Activities,Adult Services,Third Party Payments,Other establishments,08/02/2019,6282185,1369.2,VENDOR,NURSE PLUS & CARER PLUS (UK) LIMITED,129474
Portsmouth City Council,PCC,Adult Social Care,Social Care Activities,Adult Services,Third Party Payments,Other establishments,08/02/2019,6282185,2738.4,VENDOR,NURSE PLUS & CARER PLUS (UK) LIMITED,129474
Portsmouth City Council,PCC,Adult Social Care,Social Care Activities,Adult Services,Third Party Payments,Other establishments,15/02/2019,6283507,945.4,VENDOR,NURSE PLUS & CARER PLUS (UK) LIMITED,129474
Portsmouth City Council,PCC,Adult Social Care,Social Care Activities,Adult Services,Third Party Payments,Other establishments,15/02/2019,6283507,1369.2,VENDOR,NURSE PLUS & CARER PLUS (UK) LIMITED,129474
Portsmouth City Council,PCC,Adult Social Care,Social Care Activities,Adult Services,Third Party Payments,Other establishments,15/02/2019,6283507,2738.4,VENDOR,NURSE PLUS & CARER PLUS (UK) LIMITED,129474
Portsmouth City Council,PCC,Adult Social Care,Social Care Activities,Adult Services,Third Party Payments,Other establishments,28/02/2019,6286202,945.4,VENDOR,NURSE PLUS & CARER PLUS (UK) LIMITED,129474
Portsmouth City Council,PCC,Adult Social Care,Social Care Activities,Adult Services,Third Party Payments,Other establishments,28/02/2019,6286202,1369.2,VENDOR,NURSE PLUS & CARER PLUS (UK) LIMITED,129474
Portsmouth City Council,PCC,Adult Social Care,Social Care Activities,Adult Services,Third Party Payments,Other establishments,28/02/2019,6286202,2730.25,VENDOR,NURSE PLUS & CARER PLUS (UK) LIMITED,129474
Portsmouth City Council,PCC,Adult Social Care,Social Care Activities,Adult Services,Third Party Payments,Other establishments,13/02/2019,6282666,10417.92,VENDOR,ASTER CARE LTD,130238
Portsmouth City Council,PCC,Children's and Education Services,Children Looked After,Children's Services and Education,Supplies and Services,Services,22/02/2019,6285093,190,OTHER LOCAL AUTHORITY,OLA SCHOOLS,137525
Portsmouth City Council,PCC,Children's and Education Services,Children Looked After,Children's Services and Education,Supplies and Services,Services,22/02/2019,6285093,715,OTHER LOCAL AUTHORITY,OLA SCHOOLS,137525
Portsmouth City Council,PCC,Children's and Education Services,Children Looked After,Children's Services and Education,Supplies and Services,Services,22/02/2019,6285093,127.5,OTHER LOCAL AUTHORITY,OLA SCHOOLS,137525
Portsmouth City Council,PCC,Adult Social Care,Commissioning & service delivery,Adult Services,Employees,Direct employee expenses,11/02/2019,6282397,1290,VENDOR,STHREE PARTNERSHIP LLP,107166
Portsmouth City Council,PCC,Adult Social Care,Commissioning & service delivery,Adult Services,Employees,Direct employee expenses,11/02/2019,6282397,2150,VENDOR,STHREE PARTNERSHIP LLP,107166
Portsmouth City Council,PCC,Adult Social Care,Commissioning & service delivery,Adult Services,Employees,Direct employee expenses,18/02/2019,6283711,2150,VENDOR,STHREE PARTNERSHIP LLP,107166
Portsmouth City Council,PCC,Children's and Education Services,Children Looked After,Children's Services and Education,Third Party Payments,Other establishments,25/02/2019,6285278,5460.96,VENDOR,INTEGRATED SERVICES PROGRAMME,136360
Portsmouth City Council,PCC,Children's and Education Services,Children Looked After,Children's Services and Education,Third Party Payments,Other establishments,25/02/2019,6285278,5460.96,VENDOR,INTEGRATED SERVICES PROGRAMME,136360
Portsmouth City Council,PCC,Children's and Education Services,Children Looked After,Children's Services and Education,Third Party Payments,Other establishments,25/02/2019,6285278,5460.96,VENDOR,INTEGRATED SERVICES PROGRAMME,136360
Portsmouth City Council,PCC,Children's and Education Services,Children Looked After,Children's Services and Education,Third Party Payments,Other establishments,27/02/2019,6286025,3720,VENDOR,ORANGE GROVE FOSTERCARE LIMITED,140168
Portsmouth City Council,PCC,Children's and Education Services,Asylum seekers,Children's Services and Education,Third Party Payments,Other establishments,25/02/2019,6285278,3152.31,VENDOR,INTEGRATED SERVICES PROGRAMME,136360
Portsmouth City Council,PCC,Adult Social Care,Social Care Activities,Adult Services,Third Party Payments,Other establishments,01/02/2019,6280998,2281.1,VENDOR,SAFEGUARDING GP,137636
Portsmouth City Council,PCC,Children's and Education Services,Family Support Services,"Housing, Neighbourhood and Building Services",Supplies and Services,"Equipment, furniture and materials",25/02/2019,6285389,71.12,VENDOR,TYNETEC B/U OF LEGRAND ELECTRIC LTD,140439
Portsmouth City Council,PCC,Children's and Education Services,Family Support Services,"Housing, Neighbourhood and Building Services",Supplies and Services,"Equipment, furniture and materials",25/02/2019,6285389,174.4,VENDOR,TYNETEC B/U OF LEGRAND ELECTRIC LTD,140439
Portsmouth City Council,PCC,Children's and Education Services,Family Support Services,"Housing, Neighbourhood and Building Services",Supplies and Services,"Equipment, furniture and materials",25/02/2019,6285389,151.6,VENDOR,TYNETEC B/U OF LEGRAND ELECTRIC LTD,140439
Portsmouth City Council,PCC,Children's and Education Services,Family Support Services,"Housing, Neighbourhood and Building Services",Supplies and Services,"Equipment, furniture and materials",25/02/2019,6285389,912.72,VENDOR,TYNETEC B/U OF LEGRAND ELECTRIC LTD,140439
Portsmouth City Council,PCC,Children's and Education Services,Family Support Services,"Housing, Neighbourhood and Building Services",Supplies and Services,"Equipment, furniture and materials",04/02/2019,6281202,1014,VENDOR,TYNETEC B/U OF LEGRAND ELECTRIC LTD,140439
Portsmouth City Council,PCC,Children's and Education Services,Family Support Services,"Housing, Neighbourhood and Building Services",Supplies and Services,"Equipment, furniture and materials",04/02/2019,6281202,390,VENDOR,TYNETEC B/U OF LEGRAND ELECTRIC LTD,140439
Portsmouth City Council,PCC,Children's and Education Services,Family Support Services,"Housing, Neighbourhood and Building Services",Supplies and Services,"Equipment, furniture and materials",25/02/2019,6285389,1014,VENDOR,TYNETEC B/U OF LEGRAND ELECTRIC LTD,140439
Portsmouth City Council,PCC,Children's and Education Services,Family Support Services,"Housing, Neighbourhood and Building Services",Supplies and Services,"Equipment, furniture and materials",25/02/2019,6285389,390,VENDOR,TYNETEC B/U OF LEGRAND ELECTRIC LTD,140439
Portsmouth City Council,PCC,Children's and Education Services,Other Children and Family Services,Children's Services and Education,Third Party Payments,Other establishments,15/02/2019,6283403,558.94,VENDOR,APPLETREE SUPPORT LTD,126285
Portsmouth City Council,PCC,Children's and Education Services,Other Children and Family Services,Children's Services and Education,Third Party Payments,Other establishments,15/02/2019,6283403,919.53,VENDOR,APPLETREE SUPPORT LTD,126285
Portsmouth City Council,PCC,Children's and Education Services,Other Children and Family Services,Children's Services and Education,Third Party Payments,Other establishments,15/02/2019,6283403,847.41,VENDOR,APPLETREE SUPPORT LTD,126285
Portsmouth City Council,PCC,Children's and Education Services,Other Children and Family Services,Children's Services and Education,Third Party Payments,Other establishments,15/02/2019,6283403,144.24,VENDOR,APPLETREE SUPPORT LTD,126285
Portsmouth City Council,PCC,Adult Social Care,Social Care Activities,Adult Services,Third Party Payments,Other establishments,15/02/2019,6283403,2668.44,VENDOR,APPLETREE SUPPORT LTD,126285
Portsmouth City Council,PCC,Adult Social Care,Social Care Activities,Adult Services,Third Party Payments,Other establishments,15/02/2019,6283403,432.72,VENDOR,APPLETREE SUPPORT LTD,126285
Portsmouth City Council,PCC,Highways and Transport Services,"Transport Planning, Policy and Strategy",Regeneration,Third Party Payments,Private contractors,15/02/2019,6283514,750,VENDOR,PEDAL POWER TRAINING,134659
Portsmouth City Council,PCC,Children's and Education Services,Children Looked After,Children's Services and Education,Third Party Payments,Other establishments,11/02/2019,6282352,2414.7,VENDOR,HORIZON CARE AND EDUCATION GROUP LTD,138450
Portsmouth City Council,PCC,Adult Social Care,Social Care Activities,Adult Services,Third Party Payments,Other establishments,28/02/2019,6286237,1550.8,VENDOR,SAFEGUARDING GP,137636
Portsmouth City Council,PCC,Adult Social Care,Assistive Equipment & Technology,"Housing, Neighbourhood and Building Services",Supplies and Services,"Equipment, furniture and materials",25/02/2019,6285389,1434.8,VENDOR,TYNETEC B/U OF LEGRAND ELECTRIC LTD,140439
Portsmouth City Council,PCC,Other,Suspense and Capital Schemes,Capital - PRED (Excl. Port & Solent LEP),Capital Charges,Capital Expenditure (WIP),14/02/2019,6283330,8580,VENDOR,INTEGRATED & VERTICALLY ALIGNED SOLUTIONS LTD,144503
Portsmouth City Council,PCC,Children's and Education Services,Safeguarding Children and Young Peoples Services,Children's Services and Education,Third Party Payments,Other establishments,21/02/2019,6284885,560,VENDOR,CUMBRIA COUNTY COUNCIL,142982
Portsmouth City Council,PCC,Adult Social Care,Learning Disability Support  Adults (18 - 64),Adult Services,Third Party Payments,Other establishments,12/02/2019,6282604,26.55,VENDOR,ROYAL MENCAP SOCIETY,102744
Portsmouth City Council,PCC,Adult Social Care,Learning Disability Support  Adults (18 - 64),Adult Services,Third Party Payments,Other establishments,12/02/2019,6282604,65.74,VENDOR,ROYAL MENCAP SOCIETY,102744
Portsmouth City Council,PCC,Adult Social Care,Learning Disability Support  Adults (18 - 64),Adult Services,Third Party Payments,Other establishments,12/02/2019,6282604,92.29,VENDOR,ROYAL MENCAP SOCIETY,102744
Portsmouth City Council,PCC,Adult Social Care,Learning Disability Support  Adults (18 - 64),Adult Services,Third Party Payments,Other establishments,12/02/2019,6282604,39.61,VENDOR,ROYAL MENCAP SOCIETY,102744
Portsmouth City Council,PCC,Adult Social Care,Learning Disability Support  Adults (18 - 64),Adult Services,Third Party Payments,Other establishments,12/02/2019,6282604,60.7,VENDOR,ROYAL MENCAP SOCIETY,102744
Portsmouth City Council,PCC,Adult Social Care,Learning Disability Support  Adults (18 - 64),Adult Services,Third Party Payments,Other establishments,12/02/2019,6282604,45.93,VENDOR,ROYAL MENCAP SOCIETY,102744
Portsmouth City Council,PCC,Adult Social Care,Learning Disability Support  Adults (18 - 64),Adult Services,Third Party Payments,Other establishments,12/02/2019,6282604,105.36,VENDOR,ROYAL MENCAP SOCIETY,102744
Portsmouth City Council,PCC,Adult Social Care,Learning Disability Support  Adults (18 - 64),Adult Services,Third Party Payments,Other establishments,12/02/2019,6282604,52.26,VENDOR,ROYAL MENCAP SOCIETY,102744
Portsmouth City Council,PCC,Adult Social Care,Learning Disability Support  Adults (18 - 64),Adult Services,Third Party Payments,Other establishments,12/02/2019,6282604,79.23,VENDOR,ROYAL MENCAP SOCIETY,102744
Portsmouth City Council,PCC,Adult Social Care,Learning Disability Support  Adults (18 - 64),Adult Services,Third Party Payments,Other establishments,12/02/2019,6282604,26.55,VENDOR,ROYAL MENCAP SOCIETY,102744
Portsmouth City Council,PCC,Adult Social Care,Learning Disability Support  Adults (18 - 64),Adult Services,Third Party Payments,Other establishments,12/02/2019,6282604,52.68,VENDOR,ROYAL MENCAP SOCIETY,102744
Portsmouth City Council,PCC,Adult Social Care,Learning Disability Support  Adults (18 - 64),Adult Services,Third Party Payments,Other establishments,12/02/2019,6282604,197.65,VENDOR,ROYAL MENCAP SOCIETY,102744
Portsmouth City Council,PCC,Adult Social Care,Learning Disability Support  Adults (18 - 64),Adult Services,Third Party Payments,Other establishments,12/02/2019,6282604,182.9,VENDOR,ROYAL MENCAP SOCIETY,102744
Portsmouth City Council,PCC,Adult Social Care,Learning Disability Support  Adults (18 - 64),Adult Services,Third Party Payments,Other establishments,12/02/2019,6282604,415.74,VENDOR,ROYAL MENCAP SOCIETY,102744
Portsmouth City Council,PCC,Adult Social Care,Learning Disability Support  Adults (18 - 64),Adult Services,Third Party Payments,Other establishments,12/02/2019,6282604,52.26,VENDOR,ROYAL MENCAP SOCIETY,102744
Portsmouth City Council,PCC,Adult Social Care,Learning Disability Support  Adults (18 - 64),Adult Services,Third Party Payments,Other establishments,12/02/2019,6282604,270.94,VENDOR,ROYAL MENCAP SOCIETY,102744
Portsmouth City Council,PCC,Adult Social Care,Learning Disability Support  Adults (18 - 64),Adult Services,Third Party Payments,Other establishments,12/02/2019,6282604,242.75,VENDOR,ROYAL MENCAP SOCIETY,102744
Portsmouth City Council,PCC,Adult Social Care,Learning Disability Support  Adults (18 - 64),Adult Services,Third Party Payments,Other establishments,12/02/2019,6282604,56.46,VENDOR,ROYAL MENCAP SOCIETY,102744
Portsmouth City Council,PCC,Adult Social Care,Learning Disability Support  Adults (18 - 64),Adult Services,Third Party Payments,Other establishments,12/02/2019,6282604,127.92,VENDOR,ROYAL MENCAP SOCIETY,102744
Portsmouth City Council,PCC,Adult Social Care,Learning Disability Support  Adults (18 - 64),Adult Services,Third Party Payments,Other establishments,12/02/2019,6282604,319.8,VENDOR,ROYAL MENCAP SOCIETY,102744
Portsmouth City Council,PCC,Adult Social Care,Learning Disability Support  Adults (18 - 64),Adult Services,Third Party Payments,Other establishments,12/02/2019,6282604,447.72,VENDOR,ROYAL MENCAP SOCIETY,102744
Portsmouth City Council,PCC,Adult Social Care,Learning Disability Support  Adults (18 - 64),Adult Services,Third Party Payments,Other establishments,12/02/2019,6282604,191.88,VENDOR,ROYAL MENCAP SOCIETY,102744
Portsmouth City Council,PCC,Adult Social Care,Learning Disability Support  Adults (18 - 64),Adult Services,Third Party Payments,Other establishments,12/02/2019,6282604,1343.16,VENDOR,ROYAL MENCAP SOCIETY,102744
Portsmouth City Council,PCC,Adult Social Care,Learning Disability Support  Adults (18 - 64),Adult Services,Third Party Payments,Other establishments,12/02/2019,6282604,255.84,VENDOR,ROYAL MENCAP SOCIETY,102744
Portsmouth City Council,PCC,Adult Social Care,Learning Disability Support  Adults (18 - 64),Adult Services,Third Party Payments,Other establishments,12/02/2019,6282604,255.84,VENDOR,ROYAL MENCAP SOCIETY,102744
Portsmouth City Council,PCC,Adult Social Care,Learning Disability Support  Adults (18 - 64),Adult Services,Third Party Payments,Other establishments,12/02/2019,6282604,223.84,VENDOR,ROYAL MENCAP SOCIETY,102744
Portsmouth City Council,PCC,Adult Social Care,Learning Disability Support  Adults (18 - 64),Adult Services,Third Party Payments,Other establishments,12/02/2019,6282604,511.72,VENDOR,ROYAL MENCAP SOCIETY,102744
Portsmouth City Council,PCC,Adult Social Care,Learning Disability Support  Adults (18 - 64),Adult Services,Third Party Payments,Other establishments,12/02/2019,6282604,383.76,VENDOR,ROYAL MENCAP SOCIETY,102744
Portsmouth City Council,PCC,Adult Social Care,Learning Disability Support  Adults (18 - 64),Adult Services,Third Party Payments,Other establishments,12/02/2019,6282604,191.88,VENDOR,ROYAL MENCAP SOCIETY,102744
Portsmouth City Council,PCC,Adult Social Care,Learning Disability Support  Adults (18 - 64),Adult Services,Third Party Payments,Other establishments,12/02/2019,6282604,127.92,VENDOR,ROYAL MENCAP SOCIETY,102744
Portsmouth City Council,PCC,Adult Social Care,Learning Disability Support  Adults (18 - 64),Adult Services,Third Party Payments,Other establishments,12/02/2019,6282604,255.84,VENDOR,ROYAL MENCAP SOCIETY,102744
Portsmouth City Council,PCC,Adult Social Care,Learning Disability Support  Adults (18 - 64),Adult Services,Third Party Payments,Other establishments,12/02/2019,6282604,959.4,VENDOR,ROYAL MENCAP SOCIETY,102744
Portsmouth City Council,PCC,Adult Social Care,Learning Disability Support  Adults (18 - 64),Adult Services,Third Party Payments,Other establishments,12/02/2019,6282604,895.44,VENDOR,ROYAL MENCAP SOCIETY,102744
Portsmouth City Council,PCC,Adult Social Care,Learning Disability Support  Adults (18 - 64),Adult Services,Third Party Payments,Other establishments,12/02/2019,6282604,1151.28,VENDOR,ROYAL MENCAP SOCIETY,102744
Portsmouth City Council,PCC,Adult Social Care,Social Care Activities,Adult Services,Third Party Payments,Other establishments,12/02/2019,6282604,9363.2,VENDOR,ROYAL MENCAP SOCIETY,102744
Portsmouth City Council,PCC,Adult Social Care,Social Care Activities,Adult Services,Third Party Payments,Other establishments,12/02/2019,6282604,2779.4,VENDOR,ROYAL MENCAP SOCIETY,102744
Portsmouth City Council,PCC,Adult Social Care,Learning Disability Support  Adults (18 - 64),Adult Services,Third Party Payments,Other establishments,12/02/2019,6282604,2470.48,VENDOR,ROYAL MENCAP SOCIETY,102744
Portsmouth City Council,PCC,Adult Social Care,Learning Disability Support  Adults (18 - 64),Adult Services,Income,Customer and client receipts,12/02/2019,6282604,-444.92,VENDOR,ROYAL MENCAP SOCIETY,102744
Portsmouth City Council,PCC,Adult Social Care,Learning Disability Support  Adults (18 - 64),Adult Services,Third Party Payments,Other establishments,12/02/2019,6282604,2462.64,VENDOR,ROYAL MENCAP SOCIETY,102744
Portsmouth City Council,PCC,Adult Social Care,Learning Disability Support  Adults (18 - 64),Adult Services,Income,Customer and client receipts,12/02/2019,6282604,-409.08,VENDOR,ROYAL MENCAP SOCIETY,102744
Portsmouth City Council,PCC,Adult Social Care,Learning Disability Support  Adults (18 - 64),Adult Services,Third Party Payments,Other establishments,12/02/2019,6282604,2470.56,VENDOR,ROYAL MENCAP SOCIETY,102744
Portsmouth City Council,PCC,Adult Social Care,Learning Disability Support  Adults (18 - 64),Adult Services,Income,Customer and client receipts,12/02/2019,6282604,-534.8,VENDOR,ROYAL MENCAP SOCIETY,102744
Portsmouth City Council,PCC,Adult Social Care,Learning Disability Support  Adults (18 - 64),Adult Services,Third Party Payments,Other establishments,12/02/2019,6282604,2470.6,VENDOR,ROYAL MENCAP SOCIETY,102744
Portsmouth City Council,PCC,Adult Social Care,Learning Disability Support  Adults (18 - 64),Adult Services,Income,Customer and client receipts,12/02/2019,6282604,-552.44,VENDOR,ROYAL MENCAP SOCIETY,102744
Portsmouth City Council,PCC,Adult Social Care,Learning Disability Support  Adults (18 - 64),Adult Services,Third Party Payments,Other establishments,12/02/2019,6282604,2470.56,VENDOR,ROYAL MENCAP SOCIETY,102744
Portsmouth City Council,PCC,Adult Social Care,Social Care Activities,Adult Services,Third Party Payments,Other establishments,01/02/2019,6281000,1100,VENDOR,SAFEGUARDING GP,137636
Portsmouth City Council,PCC,Adult Social Care,Social Care Activities,Adult Services,Third Party Payments,Other establishments,01/02/2019,6281000,1320,VENDOR,SAFEGUARDING GP,137636
Portsmouth City Council,PCC,Adult Social Care,Social Care Activities,Adult Services,Third Party Payments,Other establishments,14/02/2019,6283357,1320,VENDOR,SAFEGUARDING GP,137636
Portsmouth City Council,PCC,Children's and Education Services,Other Education and Community Budget,Children's Services and Education,Transport-Related Expenditure,Car allowances,12/02/2019,6282479,550,VENDOR,CITY WIDE TAXIS,103408
Portsmouth City Council,PCC,Children's and Education Services,Other Education and Community Budget,Children's Services and Education,Transport-Related Expenditure,Car allowances,12/02/2019,6282479,1330,VENDOR,CITY WIDE TAXIS,103408
Portsmouth City Council,PCC,Children's and Education Services,Other Education and Community Budget,Children's Services and Education,Transport-Related Expenditure,Car allowances,12/02/2019,6282479,400,VENDOR,CITY WIDE TAXIS,103408
Portsmouth City Council,PCC,Children's and Education Services,Other Education and Community Budget,Children's Services and Education,Transport-Related Expenditure,Car allowances,12/02/2019,6282479,950,VENDOR,CITY WIDE TAXIS,103408
Portsmouth City Council,PCC,Children's and Education Services,Other Education and Community Budget,Children's Services and Education,Transport-Related Expenditure,Car allowances,12/02/2019,6282479,740,VENDOR,CITY WIDE TAXIS,103408
Portsmouth City Council,PCC,Children's and Education Services,Other Education and Community Budget,Children's Services and Education,Transport-Related Expenditure,Car allowances,12/02/2019,6282479,1235,VENDOR,CITY WIDE TAXIS,103408
Portsmouth City Council,PCC,Children's and Education Services,Other Education and Community Budget,Children's Services and Education,Transport-Related Expenditure,Car allowances,12/02/2019,6282479,1116,VENDOR,CITY WIDE TAXIS,103408
Portsmouth City Council,PCC,Children's and Education Services,Other Education and Community Budget,Children's Services and Education,Transport-Related Expenditure,Car allowances,12/02/2019,6282479,2700,VENDOR,CITY WIDE TAXIS,103408
Portsmouth City Council,PCC,Children's and Education Services,Asylum seekers,Children's Services and Education,Third Party Payments,Other establishments,27/02/2019,6285597,3573.54,VENDOR,FAMILY FIRST FOSTERING,144272
Portsmouth City Council,PCC,Cultural and Related Services,Library Service,Culture & City Development,Supplies and Services,"Equipment, furniture and materials",05/02/2019,6281313,782.19,VENDOR,LONDIS NEWSMARKET,141197
Portsmouth City Council,PCC,Housing Services,Supporting People,"Housing, Neighbourhood and Building Services",Third Party Payments,Other establishments,12/02/2019,6282644,33025,VENDOR,TWO SAINTS LTD,102584
Portsmouth City Council,PCC,Cultural and Related Services,Open Spaces,Culture & City Development,Transport-Related Expenditure,Direct transport costs,27/02/2019,6286066,1189.09,VENDOR,UK INSURANCE LTD,144591
Portsmouth City Council,PCC,Cultural and Related Services,Open Spaces,Culture & City Development,Premises-Related Expenditure,Grounds maintenance costs,28/02/2019,6286171,1520.95,COMPANY,HAGS-SMP LIMITED,106205
Portsmouth City Council,PCC,Support Service / Transparency Costs Unallocated,Information Services,Finance & IT,Supplies and Services,Communications and computing,21/02/2019,6284835,16498.47,COMPANY,BRITISH TELECOMMUNICATIONS PLC,100132
Portsmouth City Council,PCC,Planning Services,Business support,Regeneration,Premises-Related Expenditure,"Repairs, alterations and maintenance of buildings",07/02/2019,6281968,1112,SOLETRADER,M J RITCHIE DECOR AND GUTTERING SERVICES,126505
Portsmouth City Council,PCC,Planning Services,Business support,Regeneration,Premises-Related Expenditure,"Repairs, alterations and maintenance of buildings",07/02/2019,6281968,270,SOLETRADER,M J RITCHIE DECOR AND GUTTERING SERVICES,126505
Portsmouth City Council,PCC,Planning Services,Business support,Regeneration,Premises-Related Expenditure,"Repairs, alterations and maintenance of buildings",15/02/2019,6283499,600,SOLETRADER,M J RITCHIE DECOR AND GUTTERING SERVICES,126505
Portsmouth City Council,PCC,Planning Services,Business support,Regeneration,Premises-Related Expenditure,"Repairs, alterations and maintenance of buildings",15/02/2019,6283499,180,SOLETRADER,M J RITCHIE DECOR AND GUTTERING SERVICES,126505
Portsmouth City Council,PCC,Planning Services,Business support,Regeneration,Premises-Related Expenditure,"Repairs, alterations and maintenance of buildings",11/02/2019,6282370,750,SOLETRADER,M J RITCHIE DECOR AND GUTTERING SERVICES,126505
Portsmouth City Council,PCC,Planning Services,Business support,Regeneration,Premises-Related Expenditure,"Repairs, alterations and maintenance of buildings",11/02/2019,6282370,250,SOLETRADER,M J RITCHIE DECOR AND GUTTERING SERVICES,126505
Portsmouth City Council,PCC,Housing Services,Supporting People,"Housing, Neighbourhood and Building Services",Third Party Payments,Other establishments,12/02/2019,6282644,4166.67,VENDOR,TWO SAINTS LTD,102584
Portsmouth City Council,PCC,Planning Services,Business support,Regeneration,Premises-Related Expenditure,"Repairs, alterations and maintenance of buildings",15/02/2019,6283499,100,SOLETRADER,M J RITCHIE DECOR AND GUTTERING SERVICES,126505
Portsmouth City Council,PCC,Planning Services,Business support,Regeneration,Premises-Related Expenditure,"Repairs, alterations and maintenance of buildings",15/02/2019,6283499,700,SOLETRADER,M J RITCHIE DECOR AND GUTTERING SERVICES,126505
Portsmouth City Council,PCC,Planning Services,Business support,Regeneration,Premises-Related Expenditure,"Repairs, alterations and maintenance of buildings",25/02/2019,6285303,900,SOLETRADER,M J RITCHIE DECOR AND GUTTERING SERVICES,126505
Portsmouth City Council,PCC,Planning Services,Business support,Regeneration,Premises-Related Expenditure,"Repairs, alterations and maintenance of buildings",25/02/2019,6285303,322,SOLETRADER,M J RITCHIE DECOR AND GUTTERING SERVICES,126505
Portsmouth City Council,PCC,Adult Social Care,Commissioning & service delivery,Adult Services,Supplies and Services,Communications and computing,28/02/2019,6286095,785.09,COMPANY,BRITISH TELECOMMUNICATIONS PLC,100132
Portsmouth City Council,PCC,Children's and Education Services,Children Looked After,Children's Services and Education,Third Party Payments,Other establishments,11/02/2019,6282396,9113.77,VENDOR,STEPDOWN COMMUNITY SERVICES,144749
Portsmouth City Council,PCC,Housing Services,Supporting People,"Housing, Neighbourhood and Building Services",Third Party Payments,Other establishments,12/02/2019,6282644,33025,VENDOR,TWO SAINTS LTD,102584
Portsmouth City Council,PCC,Housing Services,Supporting People,"Housing, Neighbourhood and Building Services",Third Party Payments,Other establishments,12/02/2019,6282644,4166.67,VENDOR,TWO SAINTS LTD,102584
Portsmouth City Council,PCC,Housing Revenue Account,Special Services,"Housing, Neighbourhood and Building Services",Premises-Related Expenditure,Energy costs,20/02/2019,6284372,-19.26,VENDOR,TOTAL GAS & POWER LTD,133467
Portsmouth City Council,PCC,Children's and Education Services,Children Looked After,Children's Services and Education,Supplies and Services,Services,01/02/2019,6280943,576,VENDOR,HOME SCHOOL TUTORING,140194
Portsmouth City Council,PCC,Children's and Education Services,Children Looked After,Children's Services and Education,Supplies and Services,Services,01/02/2019,6280943,160,VENDOR,HOME SCHOOL TUTORING,140194
Portsmouth City Council,PCC,Children's and Education Services,Children Looked After,Children's Services and Education,Supplies and Services,Services,01/02/2019,6280943,96,VENDOR,HOME SCHOOL TUTORING,140194
Portsmouth City Council,PCC,Housing Revenue Account,Special Services,"Housing, Neighbourhood and Building Services",Premises-Related Expenditure,Energy costs,20/02/2019,6284372,-19.53,VENDOR,TOTAL GAS & POWER LTD,133467
Portsmouth City Council,PCC,Housing Revenue Account,Special Services,"Housing, Neighbourhood and Building Services",Premises-Related Expenditure,Energy costs,20/02/2019,6284372,-19.81,VENDOR,TOTAL GAS & POWER LTD,133467
Portsmouth City Council,PCC,Children's and Education Services,Other Children and Family Services,Children's Services and Education,Employees,Direct employee expenses,12/02/2019,6282528,850,VENDOR,FREEDOM FROM ABUSE,144707
Portsmouth City Council,PCC,Planning Services,Environmental Initiatives,Regeneration,Third Party Payments,Other local authorities,13/02/2019,6282686,500,OTHER LOCAL AUTHORITY,CHICHESTER DISTRICT COUNCIL,110472
Portsmouth City Council,PCC,Adult Social Care,Social Care Activities,Adult Services,Third Party Payments,Other establishments,20/02/2019,6284337,-244.5,VENDOR,NURSE PLUS & CARER PLUS (UK) LIMITED,129474
Portsmouth City Council,PCC,Adult Social Care,Social Care Activities,Adult Services,Third Party Payments,Other establishments,20/02/2019,6284337,-114.1,VENDOR,NURSE PLUS & CARER PLUS (UK) LIMITED,129474
Portsmouth City Council,PCC,Housing Revenue Account,Special Services,"Housing, Neighbourhood and Building Services",Premises-Related Expenditure,Energy costs,20/02/2019,6284372,-19.97,VENDOR,TOTAL GAS & POWER LTD,133467
Portsmouth City Council,PCC,Housing Revenue Account,Special Services,"Housing, Neighbourhood and Building Services",Premises-Related Expenditure,Energy costs,20/02/2019,6284372,-18.4,VENDOR,TOTAL GAS & POWER LTD,133467
Portsmouth City Council,PCC,Adult Social Care,Information and Early Intervention,Adult Services,Third Party Payments,Other establishments,06/02/2019,6281374,22441,VENDOR,APETITO LTD,100127
Portsmouth City Council,PCC,Adult Social Care,Information and Early Intervention,Adult Services,Income,Customer and client receipts,06/02/2019,6281374,-22441,VENDOR,APETITO LTD,100127
Portsmouth City Council,PCC,Highways and Transport Services,"Airports, Harbours and Toll Facilities",Portsmouth International Port,Premises-Related Expenditure,"Repairs, alterations and maintenance of buildings",14/02/2019,6283246,246,COMPANY,BALMORAL FLOORING,121767
Portsmouth City Council,PCC,Highways and Transport Services,"Airports, Harbours and Toll Facilities",Portsmouth International Port,Premises-Related Expenditure,"Repairs, alterations and maintenance of buildings",14/02/2019,6283246,505,COMPANY,BALMORAL FLOORING,121767
Portsmouth City Council,PCC,Costs below Net Cost of Services,Trading,Regeneration,Third Party Payments,Private contractors,06/02/2019,6281389,330,COMPANY,BAILEY BROS (SOUTHERN) LTD,114153
Portsmouth City Council,PCC,Adult Social Care,Support with Memory and Cognition Older People (65 - 74),Adult Services,Premises-Related Expenditure,Cleaning and domestic supplies,08/02/2019,6282048,571.5,VENDOR,CIRCOM LIMITED,144011
Portsmouth City Council,PCC,Costs below Net Cost of Services,Trading,Regeneration,Third Party Payments,Private contractors,06/02/2019,6281389,990,COMPANY,BAILEY BROS (SOUTHERN) LTD,114153
Portsmouth City Council,PCC,Costs below Net Cost of Services,Trading,Regeneration,Third Party Payments,Private contractors,07/02/2019,6281886,660,COMPANY,BAILEY BROS (SOUTHERN) LTD,114153
Portsmouth City Council,PCC,Costs below Net Cost of Services,Trading,Regeneration,Third Party Payments,Private contractors,20/02/2019,6283881,1650,COMPANY,BAILEY BROS (SOUTHERN) LTD,114153
Portsmouth City Council,PCC,Children's and Education Services,Children Looked After,Children's Services and Education,Supplies and Services,Services,01/02/2019,6280943,64,VENDOR,HOME SCHOOL TUTORING,140194
Portsmouth City Council,PCC,Support Service / Transparency Costs Unallocated,Personnel,"HR, Legal, Audit & Performance",Employees,Direct employee expenses,01/02/2019,6280901,65605.37,VENDOR,COMENSURA LTD,140265
Portsmouth City Council,PCC,Support Service / Transparency Costs Unallocated,Personnel,"HR, Legal, Audit & Performance",Employees,Direct employee expenses,08/02/2019,6282050,66769.83,VENDOR,COMENSURA LTD,140265
Portsmouth City Council,PCC,Support Service / Transparency Costs Unallocated,Personnel,"HR, Legal, Audit & Performance",Employees,Direct employee expenses,15/02/2019,6283429,76312.98,VENDOR,COMENSURA LTD,140265
Portsmouth City Council,PCC,Support Service / Transparency Costs Unallocated,Personnel,"HR, Legal, Audit & Performance",Employees,Direct employee expenses,22/02/2019,6285003,66925.98,VENDOR,COMENSURA LTD,140265
Portsmouth City Council,PCC,Children's and Education Services,Children Looked After,Children's Services and Education,Supplies and Services,Services,01/02/2019,6280943,64,VENDOR,HOME SCHOOL TUTORING,140194
Portsmouth City Council,PCC,Other,Suspense and Capital Schemes,Capital - Traffic & Transportation,Capital Charges,Capital Expenditure (WIP),14/02/2019,6283363,5897,COMPANY,SIEMENS PLC,106546
Portsmouth City Council,PCC,Other,Suspense and Capital Schemes,Capital - Traffic & Transportation,Capital Charges,Capital Expenditure (WIP),25/02/2019,6285353,638.28,COMPANY,SIEMENS PLC,106546
Portsmouth City Council,PCC,Adult Social Care,Physical Support Older People (85+),Adult Services,Third Party Payments,Other establishments,12/02/2019,6282562,135,VENDOR,JSM DAYCENTRES LTD T/AS AS THE LODGE,144000
Portsmouth City Council,PCC,Environmental and Regulatory Services,"Cemetery, Cremation and Mortuary Services",Culture & City Development,Third Party Payments,Private contractors,05/02/2019,6281285,648.27,VENDOR,F G MARSHALL LTD,100786
Portsmouth City Council,PCC,Environmental and Regulatory Services,"Cemetery, Cremation and Mortuary Services",Culture & City Development,Third Party Payments,Private contractors,05/02/2019,6281285,476.28,VENDOR,F G MARSHALL LTD,100786
Portsmouth City Council,PCC,Children's and Education Services,Children Looked After,Children's Services and Education,Third Party Payments,Other establishments,13/02/2019,6283190,677,VENDOR,PERSONAL SECURITY SERVICE LTD,142603
Portsmouth City Council,PCC,Children's and Education Services,Children Looked After,Children's Services and Education,Third Party Payments,Other establishments,13/02/2019,6283190,774.5,VENDOR,PERSONAL SECURITY SERVICE LTD,142603
Portsmouth City Council,PCC,Children's and Education Services,Children Looked After,Children's Services and Education,Supplies and Services,Services,01/02/2019,6280943,160,VENDOR,HOME SCHOOL TUTORING,140194
Portsmouth City Council,PCC,Cultural and Related Services,Open Spaces,Culture & City Development,Transport-Related Expenditure,Direct transport costs,07/02/2019,6281878,1500,VENDOR,A & J LAWRENCE LTD,141283
Portsmouth City Council,PCC,Costs below Net Cost of Services,Trading,Finance & IT,Supplies and Services,Miscellaneous expenses,07/02/2019,6281878,121.09,VENDOR,A & J LAWRENCE LTD,141283
Portsmouth City Council,PCC,Costs below Net Cost of Services,Trading,Finance & IT,Supplies and Services,Miscellaneous expenses,12/02/2019,6282429,1153.61,VENDOR,A & J LAWRENCE LTD,141283
Portsmouth City Council,PCC,Children's and Education Services,Children Looked After,Children's Services and Education,Supplies and Services,Services,01/02/2019,6280943,96,VENDOR,HOME SCHOOL TUTORING,140194
Portsmouth City Council,PCC,Children's and Education Services,Children Looked After,Children's Services and Education,Supplies and Services,Services,01/02/2019,6280943,192,VENDOR,HOME SCHOOL TUTORING,140194
Portsmouth City Council,PCC,Children's and Education Services,Children Looked After,Children's Services and Education,Supplies and Services,Services,01/02/2019,6280943,96,VENDOR,HOME SCHOOL TUTORING,140194
Portsmouth City Council,PCC,Highways and Transport Services,"Airports, Harbours and Toll Facilities",Portsmouth International Port,Supplies and Services,Communications and computing,21/02/2019,6284842,934.99,VENDOR,CIVICA UK LTD,104001
Portsmouth City Council,PCC,Adult Social Care,Commissioning & service delivery,Adult Services,Supplies and Services,Services,27/02/2019,6286005,2500,VENDOR,Classified as 'personal data' (under the Data Protection Act 1998),144325
Portsmouth City Council,PCC,Adult Social Care,Physical Support Older People (85+),Adult Services,Third Party Payments,Other establishments,07/02/2019,6281982,-14.73,VENDOR,PLATINUM CARE SOLUTIONS,138675
Portsmouth City Council,PCC,Adult Social Care,Physical Support Older People (85+),Adult Services,Third Party Payments,Other establishments,12/02/2019,6282562,360,VENDOR,JSM DAYCENTRES LTD T/AS AS THE LODGE,144000
Portsmouth City Council,PCC,Housing Revenue Account,Special Services,"Housing, Neighbourhood and Building Services",Premises-Related Expenditure,Energy costs,20/02/2019,6284372,-19.65,VENDOR,TOTAL GAS & POWER LTD,133467
Portsmouth City Council,PCC,Housing Revenue Account,Special Services,"Housing, Neighbourhood and Building Services",Premises-Related Expenditure,Energy costs,20/02/2019,6284372,-16.24,VENDOR,TOTAL GAS & POWER LTD,133467
Portsmouth City Council,PCC,Children's and Education Services,Children Looked After,Children's Services and Education,Third Party Payments,Other establishments,28/02/2019,6286168,3608.4,VENDOR,FUSION FOSTERING LIMITED,140473
Portsmouth City Council,PCC,Children's and Education Services,Children Looked After,Children's Services and Education,Third Party Payments,Other establishments,28/02/2019,6286168,3608.4,VENDOR,FUSION FOSTERING LIMITED,140473
Portsmouth City Council,PCC,Adult Social Care,Physical Support Older People (85+),Adult Services,Third Party Payments,Other establishments,12/02/2019,6282562,180,VENDOR,JSM DAYCENTRES LTD T/AS AS THE LODGE,144000
Portsmouth City Council,PCC,Housing Revenue Account,Special Services,"Housing, Neighbourhood and Building Services",Premises-Related Expenditure,Energy costs,20/02/2019,6284372,-23.47,VENDOR,TOTAL GAS & POWER LTD,133467
Portsmouth City Council,PCC,Support Service / Transparency Costs Unallocated,Information Services,Finance & IT,Transport-Related Expenditure,Direct transport costs,11/02/2019,6282246,239.6,VENDOR,AQUA CARS LIMITED,100011
Portsmouth City Council,PCC,Adult Social Care,Physical Support Older People (85+),Adult Services,Third Party Payments,Other establishments,12/02/2019,6282562,180,VENDOR,JSM DAYCENTRES LTD T/AS AS THE LODGE,144000
Portsmouth City Council,PCC,Support Service / Transparency Costs Unallocated,Procurement,Finance & IT,Supplies and Services,Communications and computing,11/02/2019,6282356,3433.48,VENDOR,IN-TEND LTD,121323
Portsmouth City Council,PCC,Support Service / Transparency Costs Unallocated,Procurement,Finance & IT,Supplies and Services,Communications and computing,11/02/2019,6282356,0.01,VENDOR,IN-TEND LTD,121323
Portsmouth City Council,PCC,Other,Suspense and Capital Schemes,Capital - PRED - Port,Capital Charges,Capital Expenditure (WIP),22/02/2019,6285099,440.2,VENDOR,PHILSPACE LTD,108152
Portsmouth City Council,PCC,Housing Revenue Account,Special Services,"Housing, Neighbourhood and Building Services",Premises-Related Expenditure,Energy costs,20/02/2019,6284372,-13.43,VENDOR,TOTAL GAS & POWER LTD,133467
Portsmouth City Council,PCC,Housing Revenue Account,Special Services,"Housing, Neighbourhood and Building Services",Premises-Related Expenditure,Energy costs,20/02/2019,6284372,-14.19,VENDOR,TOTAL GAS & POWER LTD,133467
Portsmouth City Council,PCC,Adult Social Care,Social Care Activities,Adult Services,Third Party Payments,Other establishments,01/02/2019,6280996,186.31,VENDOR,SAFEGUARDING GP,137636
Portsmouth City Council,PCC,Adult Social Care,Social Care Activities,Adult Services,Third Party Payments,Other establishments,28/02/2019,6286240,193.38,VENDOR,SAFEGUARDING GP,137636
Portsmouth City Council,PCC,Adult Social Care,Social Care Activities,Adult Services,Third Party Payments,Other establishments,28/02/2019,6286240,186.31,VENDOR,SAFEGUARDING GP,137636
Portsmouth City Council,PCC,Adult Social Care,Social Care Activities,Adult Services,Third Party Payments,Other establishments,28/02/2019,6286240,186.31,VENDOR,SAFEGUARDING GP,137636
Portsmouth City Council,PCC,Adult Social Care,Social Care Activities,Adult Services,Third Party Payments,Other establishments,28/02/2019,6286234,186.31,VENDOR,SAFEGUARDING GP,137636
Portsmouth City Council,PCC,Adult Social Care,Social Care Activities,Adult Services,Third Party Payments,Other establishments,28/02/2019,6286240,186.31,VENDOR,SAFEGUARDING GP,137636
Portsmouth City Council,PCC,Children's and Education Services,Children Looked After,Children's Services and Education,Third Party Payments,Other establishments,18/02/2019,6283662,16275,VENDOR,HILLCREST CHILDRENS SERVICES LIMITED,117913
Portsmouth City Council,PCC,Children's and Education Services,Special Schools,Children's Services and Education,Third Party Payments,Other establishments,22/02/2019,6285064,4603.5,VENDOR,HILLCREST CHILDRENS SERVICES LIMITED,117913
Portsmouth City Council,PCC,Children's and Education Services,Children Looked After,Children's Services and Education,Third Party Payments,Other establishments,22/02/2019,6285064,14700,VENDOR,HILLCREST CHILDRENS SERVICES LIMITED,117913
Portsmouth City Council,PCC,Children's and Education Services,Special Schools,Children's Services and Education,Third Party Payments,Other establishments,22/02/2019,6285064,4158,VENDOR,HILLCREST CHILDRENS SERVICES LIMITED,117913
Portsmouth City Council,PCC,Adult Social Care,Learning Disability Support  Adults (18 - 64),Adult Services,Transport-Related Expenditure,Public transport,04/02/2019,6281059,1072.4,VENDOR,AQUA CARS LIMITED,100011
Portsmouth City Council,PCC,Adult Social Care,Learning Disability Support  Adults (18 - 64),Adult Services,Transport-Related Expenditure,Public transport,11/02/2019,6282246,2242.6,VENDOR,AQUA CARS LIMITED,100011
Portsmouth City Council,PCC,Adult Social Care,Learning Disability Support  Adults (18 - 64),Adult Services,Transport-Related Expenditure,Public transport,18/02/2019,6283581,2250.2,VENDOR,AQUA CARS LIMITED,100011
Portsmouth City Council,PCC,Adult Social Care,Learning Disability Support  Adults (18 - 64),Adult Services,Transport-Related Expenditure,Public transport,25/02/2019,6285159,2235.3,VENDOR,AQUA CARS LIMITED,100011
Portsmouth City Council,PCC,Adult Social Care,Social Care Activities,Adult Services,Third Party Payments,Other establishments,14/02/2019,6283240,741,VENDOR,AQUA CARS LIMITED,100011
Portsmouth City Council,PCC,Housing Revenue Account,Special Services,"Housing, Neighbourhood and Building Services",Premises-Related Expenditure,Energy costs,20/02/2019,6284372,-14.35,VENDOR,TOTAL GAS & POWER LTD,133467
Portsmouth City Council,PCC,Children's and Education Services,Children Looked After,Children's Services and Education,Transport-Related Expenditure,Direct transport costs,06/02/2019,6281376,6772.4,VENDOR,AQUA CARS LIMITED,100011
Portsmouth City Council,PCC,Adult Social Care,Social Care Activities,Adult Services,Third Party Payments,Other establishments,27/02/2019,6286058,2940,VENDOR,THE OUT OF TOWN CENTRE LIMITED,133198
Portsmouth City Council,PCC,Adult Social Care,Social Care Activities,Adult Services,Third Party Payments,Other establishments,27/02/2019,6286058,5100,VENDOR,THE OUT OF TOWN CENTRE LIMITED,133198
Portsmouth City Council,PCC,Cultural and Related Services,Open Spaces,Culture & City Development,Supplies and Services,"Equipment, furniture and materials",21/02/2019,6284924,1937,VENDOR,PALMSTEAD NURSERIES LTD,135396
Portsmouth City Council,PCC,Cultural and Related Services,Open Spaces,Culture & City Development,Supplies and Services,"Printing, stationery and general office expenses",25/02/2019,6285329,93,VENDOR,PALMSTEAD NURSERIES LTD,135396
Portsmouth City Council,PCC,Cultural and Related Services,Open Spaces,Culture & City Development,Third Party Payments,Private contractors,25/02/2019,6285329,2486.55,VENDOR,PALMSTEAD NURSERIES LTD,135396
Portsmouth City Council,PCC,Adult Social Care,Physical Support Adults (18 - 64),Adult Services,Third Party Payments,Other establishments,14/02/2019,6283240,75,VENDOR,AQUA CARS LIMITED,100011
Portsmouth City Council,PCC,Children's and Education Services,Safeguarding Children and Young Peoples Services,Children's Services and Education,Supplies and Services,Miscellaneous expenses,18/02/2019,6283656,981.6,VENDOR,FREEDOM IOW LTD,110290
Portsmouth City Council,PCC,Other,Suspense and Capital Schemes,Capital - PRED (Excl. Port & Solent LEP),Capital Charges,Capital Expenditure (WIP),08/02/2019,6282237,41246.25,COMPANY,WESSEX DEMOLITION AND SALVAGE LTD,136629
Portsmouth City Council,PCC,Children's and Education Services,Children Looked After,Children's Services and Education,Third Party Payments,Other establishments,13/02/2019,6283190,757.88,VENDOR,PERSONAL SECURITY SERVICE LTD,142603
Portsmouth City Council,PCC,Other,Suspense and Capital Schemes,Capital - PRED (Excl. Port & Solent LEP),Capital Charges,Capital Expenditure (WIP),19/02/2019,6283864,13748.75,COMPANY,WESSEX DEMOLITION AND SALVAGE LTD,136629
Portsmouth City Council,PCC,Other,Suspense and Capital Schemes,Capital - PRED (Excl. Port & Solent LEP),Capital Charges,Capital Expenditure (WIP),19/02/2019,6283864,2820,COMPANY,WESSEX DEMOLITION AND SALVAGE LTD,136629
Portsmouth City Council,PCC,Adult Social Care,Learning Disability Support  Adults (18 - 64),Adult Services,Third Party Payments,Other establishments,01/02/2019,6280990,5890,VENDOR,PRECIOUS HOMES LTD,135973
Portsmouth City Council,PCC,Planning Services,Business support,Regeneration,Premises-Related Expenditure,"Repairs, alterations and maintenance of buildings",11/02/2019,6282390,20.16,VENDOR,SIX DEGREES TECHNOLOGY GROUP LTD,137034
Portsmouth City Council,PCC,Planning Services,Business support,Regeneration,Premises-Related Expenditure,"Repairs, alterations and maintenance of buildings",11/02/2019,6282390,37.32,VENDOR,SIX DEGREES TECHNOLOGY GROUP LTD,137034
Portsmouth City Council,PCC,Cultural and Related Services,Recreation and Sport,Culture & City Development,Premises-Related Expenditure,"Repairs, alterations and maintenance of buildings",11/02/2019,6282390,37.32,VENDOR,SIX DEGREES TECHNOLOGY GROUP LTD,137034
Portsmouth City Council,PCC,Housing Revenue Account,Special Services,"Housing, Neighbourhood and Building Services",Premises-Related Expenditure,Energy costs,20/02/2019,6284372,-15.93,VENDOR,TOTAL GAS & POWER LTD,133467
Portsmouth City Council,PCC,Housing Revenue Account,Special Services,"Housing, Neighbourhood and Building Services",Premises-Related Expenditure,Energy costs,20/02/2019,6284372,-177.8,VENDOR,TOTAL GAS & POWER LTD,133467
Portsmouth City Council,PCC,Housing Revenue Account,Special Services,"Housing, Neighbourhood and Building Services",Premises-Related Expenditure,Energy costs,20/02/2019,6284372,-115.07,VENDOR,TOTAL GAS & POWER LTD,133467
Portsmouth City Council,PCC,Housing Revenue Account,Special Services,"Housing, Neighbourhood and Building Services",Premises-Related Expenditure,Energy costs,20/02/2019,6284372,-24.21,VENDOR,TOTAL GAS & POWER LTD,133467
Portsmouth City Council,PCC,Housing Revenue Account,Special Services,"Housing, Neighbourhood and Building Services",Premises-Related Expenditure,Energy costs,19/02/2019,6283855,128.77,VENDOR,TOTAL GAS & POWER LTD,133467
Portsmouth City Council,PCC,Housing Revenue Account,Special Services,"Housing, Neighbourhood and Building Services",Premises-Related Expenditure,Energy costs,19/02/2019,6283855,88.65,VENDOR,TOTAL GAS & POWER LTD,133467
Portsmouth City Council,PCC,Housing Revenue Account,Special Services,"Housing, Neighbourhood and Building Services",Premises-Related Expenditure,Energy costs,19/02/2019,6283855,90.88,VENDOR,TOTAL GAS & POWER LTD,133467
Portsmouth City Council,PCC,Housing Revenue Account,Special Services,"Housing, Neighbourhood and Building Services",Premises-Related Expenditure,Energy costs,19/02/2019,6283855,95.79,VENDOR,TOTAL GAS & POWER LTD,133467
Portsmouth City Council,PCC,Housing Revenue Account,Special Services,"Housing, Neighbourhood and Building Services",Premises-Related Expenditure,Energy costs,19/02/2019,6283855,93.62,VENDOR,TOTAL GAS & POWER LTD,133467
Portsmouth City Council,PCC,Housing Revenue Account,Special Services,"Housing, Neighbourhood and Building Services",Premises-Related Expenditure,Energy costs,19/02/2019,6283855,96.06,VENDOR,TOTAL GAS & POWER LTD,133467
Portsmouth City Council,PCC,Housing Revenue Account,Special Services,"Housing, Neighbourhood and Building Services",Premises-Related Expenditure,Energy costs,19/02/2019,6283855,95.99,VENDOR,TOTAL GAS & POWER LTD,133467
Portsmouth City Council,PCC,Housing Revenue Account,Special Services,"Housing, Neighbourhood and Building Services",Premises-Related Expenditure,Energy costs,20/02/2019,6284372,392.02,VENDOR,TOTAL GAS & POWER LTD,133467
Portsmouth City Council,PCC,Housing Revenue Account,Special Services,"Housing, Neighbourhood and Building Services",Premises-Related Expenditure,Energy costs,19/02/2019,6283855,71.96,VENDOR,TOTAL GAS & POWER LTD,133467
Portsmouth City Council,PCC,Housing Revenue Account,Special Services,"Housing, Neighbourhood and Building Services",Premises-Related Expenditure,Energy costs,19/02/2019,6283855,73.69,VENDOR,TOTAL GAS & POWER LTD,133467
Portsmouth City Council,PCC,Housing Revenue Account,Special Services,"Housing, Neighbourhood and Building Services",Premises-Related Expenditure,Energy costs,19/02/2019,6283855,79.14,VENDOR,TOTAL GAS & POWER LTD,133467
Portsmouth City Council,PCC,Housing Revenue Account,Special Services,"Housing, Neighbourhood and Building Services",Premises-Related Expenditure,Energy costs,19/02/2019,6283855,80.31,VENDOR,TOTAL GAS & POWER LTD,133467
Portsmouth City Council,PCC,Housing Revenue Account,Special Services,"Housing, Neighbourhood and Building Services",Premises-Related Expenditure,Energy costs,19/02/2019,6283855,83.67,VENDOR,TOTAL GAS & POWER LTD,133467
Portsmouth City Council,PCC,Housing Revenue Account,Special Services,"Housing, Neighbourhood and Building Services",Premises-Related Expenditure,Energy costs,19/02/2019,6283855,92.05,VENDOR,TOTAL GAS & POWER LTD,133467
Portsmouth City Council,PCC,Housing Revenue Account,Special Services,"Housing, Neighbourhood and Building Services",Premises-Related Expenditure,Energy costs,20/02/2019,6284372,104.01,VENDOR,TOTAL GAS & POWER LTD,133467
Portsmouth City Council,PCC,Housing Revenue Account,Supervision and Management,"Housing, Neighbourhood and Building Services",Premises-Related Expenditure,Energy costs,20/02/2019,6284372,364.5,VENDOR,TOTAL GAS & POWER LTD,133467
Portsmouth City Council,PCC,Housing Revenue Account,Special Services,"Housing, Neighbourhood and Building Services",Premises-Related Expenditure,Energy costs,19/02/2019,6283855,12.2,VENDOR,TOTAL GAS & POWER LTD,133467
Portsmouth City Council,PCC,Housing Revenue Account,Special Services,"Housing, Neighbourhood and Building Services",Premises-Related Expenditure,Energy costs,19/02/2019,6283855,62.12,VENDOR,TOTAL GAS & POWER LTD,133467
Portsmouth City Council,PCC,Housing Revenue Account,Special Services,"Housing, Neighbourhood and Building Services",Premises-Related Expenditure,Energy costs,20/02/2019,6284372,31.26,VENDOR,TOTAL GAS & POWER LTD,133467
Portsmouth City Council,PCC,Planning Services,Planning Policy,Regeneration,Employees,Direct employee expenses,28/02/2019,6286232,2320,VENDOR,ROYAL TOWN PLANNING INSTITUTE LONDON,125058
Portsmouth City Council,PCC,Other,Suspense and Capital Schemes,Regeneration,Third Party Payments,Private contractors,26/02/2019,6285476,450000,OTHER LOCAL AUTHORITY,HAMPSHIRE COUNTY COUNCIL,100030
Portsmouth City Council,PCC,Housing Revenue Account,Special Services,"Housing, Neighbourhood and Building Services",Premises-Related Expenditure,Energy costs,19/02/2019,6283855,402.43,VENDOR,TOTAL GAS & POWER LTD,133467
Portsmouth City Council,PCC,Adult Social Care,Social Care Activities,Adult Services,Third Party Payments,Other establishments,01/02/2019,6280995,186.31,VENDOR,SAFEGUARDING GP,137636
Portsmouth City Council,PCC,Adult Social Care,Social Care Activities,Adult Services,Third Party Payments,Other establishments,01/02/2019,6280995,186.31,VENDOR,SAFEGUARDING GP,137636
Portsmouth City Council,PCC,Adult Social Care,Social Care Activities,Adult Services,Third Party Payments,Other establishments,01/02/2019,6280995,186.31,VENDOR,SAFEGUARDING GP,137636
Portsmouth City Council,PCC,Adult Social Care,Social Care Activities,Adult Services,Third Party Payments,Other establishments,28/02/2019,6286234,186.31,VENDOR,SAFEGUARDING GP,137636
Portsmouth City Council,PCC,Adult Social Care,Social Care Activities,Adult Services,Third Party Payments,Other establishments,28/02/2019,6286234,186.31,VENDOR,SAFEGUARDING GP,137636
Portsmouth City Council,PCC,Adult Social Care,Social Care Activities,Adult Services,Third Party Payments,Other establishments,28/02/2019,6286234,186.31,VENDOR,SAFEGUARDING GP,137636
Portsmouth City Council,PCC,Adult Social Care,Social Care Activities,Adult Services,Third Party Payments,Other establishments,28/02/2019,6286234,217.86,VENDOR,SAFEGUARDING GP,137636
Portsmouth City Council,PCC,Adult Social Care,Social Care Activities,Adult Services,Third Party Payments,Other establishments,28/02/2019,6286234,186.31,VENDOR,SAFEGUARDING GP,137636
Portsmouth City Council,PCC,Highways and Transport Services,"Airports, Harbours and Toll Facilities",Portsmouth International Port,Supplies and Services,"Equipment, furniture and materials",07/02/2019,6281986,1200,VENDOR,RAPISCAN SYSTEMS LIMITED,108247
Portsmouth City Council,PCC,Housing Revenue Account,Special Services,"Housing, Neighbourhood and Building Services",Premises-Related Expenditure,Energy costs,19/02/2019,6283855,1448.33,VENDOR,TOTAL GAS & POWER LTD,133467
Portsmouth City Council,PCC,Adult Social Care,Physical Support Older People (85+),Adult Services,Third Party Payments,Other establishments,11/02/2019,6282244,1817.06,VENDOR,AGINCARE UK,134367
Portsmouth City Council,PCC,Adult Social Care,Physical Support Older People (85+),Adult Services,Third Party Payments,Other establishments,22/02/2019,6284981,1817.06,VENDOR,AGINCARE UK,134367
Portsmouth City Council,PCC,Children's and Education Services,Children Looked After,Children's Services and Education,Third Party Payments,Other establishments,14/02/2019,6283343,105,VENDOR,PARENTS AND CHILDREN TOGETHER,129849
Portsmouth City Council,PCC,Children's and Education Services,Children Looked After,Children's Services and Education,Third Party Payments,Other establishments,14/02/2019,6283343,2730,VENDOR,PARENTS AND CHILDREN TOGETHER,129849
Portsmouth City Council,PCC,Housing Revenue Account,Special Services,"Housing, Neighbourhood and Building Services",Premises-Related Expenditure,Energy costs,19/02/2019,6283855,1911.02,VENDOR,TOTAL GAS & POWER LTD,133467
Portsmouth City Council,PCC,Children's and Education Services,Children Looked After,Children's Services and Education,Third Party Payments,Other establishments,12/02/2019,6282452,18533.57,VENDOR,BARFORD CHILDRENS SERVICES LIMITED,143811
Portsmouth City Council,PCC,Adult Social Care,Physical Support Older People (85+),Adult Services,Third Party Payments,Other establishments,12/02/2019,6282637,54.08,VENDOR,THE PORTSMOUTH SITTING SERVICE AND COMMUNITY CARE SERVICES LTD T/A ASSURED CARE,100201
Portsmouth City Council,PCC,Support Service / Transparency Costs Unallocated,AMS,Regeneration,Third Party Payments,Private contractors,14/02/2019,6283314,2000,VENDOR,ECD ARCHITECTS LTD,136285
Portsmouth City Council,PCC,Support Service / Transparency Costs Unallocated,AMS,Regeneration,Third Party Payments,Private contractors,14/02/2019,6283314,2500,VENDOR,ECD ARCHITECTS LTD,136285
Portsmouth City Council,PCC,Other,Suspense and Capital Schemes,Capital - Resources,Capital Charges,Capital Expenditure (WIP),21/02/2019,6284839,16680.4,COMPANY,CEI ELECTRICAL LTD,134197
Portsmouth City Council,PCC,Other,Suspense and Capital Schemes,Capital - Resources,Capital Charges,Capital Expenditure (WIP),21/02/2019,6284839,14624.64,COMPANY,CEI ELECTRICAL LTD,134197
Portsmouth City Council,PCC,Highways and Transport Services,"Airports, Harbours and Toll Facilities",Portsmouth International Port,Transport-Related Expenditure,Direct transport costs,07/02/2019,6281990,16778.04,VENDOR,SGS UNITED KINGDOM LTD,105507
Portsmouth City Council,PCC,Children's and Education Services,Other Education and Community Budget,Children's Services and Education,Supplies and Services,Grants and subscriptions,22/02/2019,6285071,4767.4,VENDOR,HTP APPRENTICESHIP COLLEGE LTD,131545
Portsmouth City Council,PCC,Children's and Education Services,Other Education and Community Budget,Children's Services and Education,Supplies and Services,Grants and subscriptions,22/02/2019,6285071,1029.82,VENDOR,HTP APPRENTICESHIP COLLEGE LTD,131545
Portsmouth City Council,PCC,Other,Suspense and Capital Schemes,"HR, Legal, Audit & Performance",Employees,Direct employee expenses,28/02/2019,6286230,733.4,VENDOR,RMC EMEA LIMITED,122070
Portsmouth City Council,PCC,Support Service / Transparency Costs Unallocated,Personnel,"HR, Legal, Audit & Performance",Employees,Direct employee expenses,28/02/2019,6286230,481.85,VENDOR,RMC EMEA LIMITED,122070
Portsmouth City Council,PCC,Support Service / Transparency Costs Unallocated,Personnel,"HR, Legal, Audit & Performance",Employees,Direct employee expenses,28/02/2019,6286230,165.36,VENDOR,RMC EMEA LIMITED,122070
Portsmouth City Council,PCC,Planning Services,Business support,Regeneration,Supplies and Services,"Equipment, furniture and materials",04/02/2019,6281143,728,VENDOR,KEITHS WELDING,115976
Portsmouth City Council,PCC,Highways and Transport Services,"Airports, Harbours and Toll Facilities",Portsmouth International Port,Premises-Related Expenditure,Cleaning and domestic supplies,28/02/2019,6286203,8514.07,VENDOR,NVIRO LTD,124507
Portsmouth City Council,PCC,Highways and Transport Services,"Airports, Harbours and Toll Facilities",Portsmouth International Port,Premises-Related Expenditure,Cleaning and domestic supplies,28/02/2019,6286203,8514.06,VENDOR,NVIRO LTD,124507
Portsmouth City Council,PCC,Highways and Transport Services,"Airports, Harbours and Toll Facilities",Portsmouth International Port,Premises-Related Expenditure,Cleaning and domestic supplies,28/02/2019,6286203,2167,VENDOR,NVIRO LTD,124507
Portsmouth City Council,PCC,Children's and Education Services,Other Education and Community Budget,Children's Services and Education,Supplies and Services,Grants and subscriptions,22/02/2019,6285071,4888.94,VENDOR,HTP APPRENTICESHIP COLLEGE LTD,131545
Portsmouth City Council,PCC,Adult Social Care,Physical Support Older People (85+),Adult Services,Third Party Payments,Other establishments,12/02/2019,6282637,116.13,VENDOR,THE PORTSMOUTH SITTING SERVICE AND COMMUNITY CARE SERVICES LTD T/A ASSURED CARE,100201
Portsmouth City Council,PCC,Housing Revenue Account,Special Services,"Housing, Neighbourhood and Building Services",Premises-Related Expenditure,Energy costs,19/02/2019,6283855,2239.64,VENDOR,TOTAL GAS & POWER LTD,133467
Portsmouth City Council,PCC,Adult Social Care,Social Care Activities,Adult Services,Premises-Related Expenditure,"Repairs, alterations and maintenance of buildings",08/02/2019,6282021,4950,COMPANY,ALL ENGLAND FIRE STOPPING LIMITED,143053
Portsmouth City Council,PCC,Adult Social Care,Physical Support Older People (85+),Adult Services,Third Party Payments,Other establishments,01/02/2019,6280956,3642.86,VENDOR,JASMINE HOUSE NURSING HOME,142842
Portsmouth City Council,PCC,Adult Social Care,Social Care Activities,Adult Services,Premises-Related Expenditure,"Repairs, alterations and maintenance of buildings",08/02/2019,6282021,5445,COMPANY,ALL ENGLAND FIRE STOPPING LIMITED,143053
Portsmouth City Council,PCC,Planning Services,Business support,Regeneration,Supplies and Services,"Equipment, furniture and materials",28/02/2019,6286256,187.89,VENDOR,SPANDEX LIMITED,100163
Portsmouth City Council,PCC,Planning Services,Business support,Regeneration,Supplies and Services,"Equipment, furniture and materials",28/02/2019,6286256,190.61,VENDOR,SPANDEX LIMITED,100163
Portsmouth City Council,PCC,Planning Services,Business support,Regeneration,Supplies and Services,"Equipment, furniture and materials",28/02/2019,6286256,285.91,VENDOR,SPANDEX LIMITED,100163
Portsmouth City Council,PCC,Planning Services,Business support,Regeneration,Supplies and Services,"Equipment, furniture and materials",28/02/2019,6286256,294.24,VENDOR,SPANDEX LIMITED,100163
Portsmouth City Council,PCC,Environmental and Regulatory Services,Regulatory Services,Culture & City Development,Supplies and Services,"Equipment, furniture and materials",13/02/2019,6283189,538.37,VENDOR,PELSIS LIMITED,133905
Portsmouth City Council,PCC,Adult Social Care,Social Care Activities,Adult Services,Third Party Payments,Other establishments,01/02/2019,6280996,186.31,VENDOR,SAFEGUARDING GP,137636
Portsmouth City Council,PCC,Adult Social Care,Social Care Activities,Adult Services,Third Party Payments,Other establishments,01/02/2019,6281003,186.31,VENDOR,SAFEGUARDING GP,137636
Portsmouth City Council,PCC,Adult Social Care,Social Care Activities,Adult Services,Third Party Payments,Other establishments,01/02/2019,6280996,200.45,VENDOR,SAFEGUARDING GP,137636
Portsmouth City Council,PCC,Adult Social Care,Social Care Activities,Adult Services,Third Party Payments,Other establishments,01/02/2019,6280996,186.31,VENDOR,SAFEGUARDING GP,137636
Portsmouth City Council,PCC,Adult Social Care,Social Care Activities,Adult Services,Third Party Payments,Other establishments,01/02/2019,6280996,221.12,VENDOR,SAFEGUARDING GP,137636
Portsmouth City Council,PCC,Adult Social Care,Social Care Activities,Adult Services,Third Party Payments,Other establishments,01/02/2019,6280996,186.31,VENDOR,SAFEGUARDING GP,137636
Portsmouth City Council,PCC,Adult Social Care,Social Care Activities,Adult Services,Third Party Payments,Other establishments,01/02/2019,6280996,186.31,VENDOR,SAFEGUARDING GP,137636
Portsmouth City Council,PCC,Adult Social Care,Social Care Activities,Adult Services,Third Party Payments,Other establishments,01/02/2019,6280996,186.31,VENDOR,SAFEGUARDING GP,137636
Portsmouth City Council,PCC,Adult Social Care,Social Care Activities,Adult Services,Third Party Payments,Other establishments,01/02/2019,6280996,186.31,VENDOR,SAFEGUARDING GP,137636
Portsmouth City Council,PCC,Adult Social Care,Social Care Activities,Adult Services,Third Party Payments,Other establishments,01/02/2019,6280996,186.31,VENDOR,SAFEGUARDING GP,137636
Portsmouth City Council,PCC,Adult Social Care,Social Care Activities,Adult Services,Third Party Payments,Other establishments,01/02/2019,6280996,186.31,VENDOR,SAFEGUARDING GP,137636
Portsmouth City Council,PCC,Adult Social Care,Social Care Activities,Adult Services,Third Party Payments,Other establishments,28/02/2019,6286234,186.31,VENDOR,SAFEGUARDING GP,137636
Portsmouth City Council,PCC,Housing Revenue Account,Special Services,"Housing, Neighbourhood and Building Services",Premises-Related Expenditure,Energy costs,19/02/2019,6283855,490.12,VENDOR,TOTAL GAS & POWER LTD,133467
Portsmouth City Council,PCC,Adult Social Care,Social Care Activities,Adult Services,Premises-Related Expenditure,"Repairs, alterations and maintenance of buildings",21/02/2019,6284821,4950,COMPANY,ALL ENGLAND FIRE STOPPING LIMITED,143053
Portsmouth City Council,PCC,Adult Social Care,Physical Support Older People (85+),Adult Services,Third Party Payments,Other establishments,01/02/2019,6280956,3764.29,VENDOR,JASMINE HOUSE NURSING HOME,142842
Portsmouth City Council,PCC,Adult Social Care,Physical Support Older People (85+),Adult Services,Third Party Payments,Other establishments,12/02/2019,6282637,154.56,VENDOR,THE PORTSMOUTH SITTING SERVICE AND COMMUNITY CARE SERVICES LTD T/A ASSURED CARE,100201
Portsmouth City Council,PCC,Adult Social Care,Social Care Activities,Adult Services,Premises-Related Expenditure,"Repairs, alterations and maintenance of buildings",21/02/2019,6284821,2445,COMPANY,ALL ENGLAND FIRE STOPPING LIMITED,143053
Portsmouth City Council,PCC,Adult Social Care,Physical Support Older People (85+),Adult Services,Third Party Payments,Other establishments,12/02/2019,6282637,1507.96,VENDOR,THE PORTSMOUTH SITTING SERVICE AND COMMUNITY CARE SERVICES LTD T/A ASSURED CARE,100201
Portsmouth City Council,PCC,Adult Social Care,Physical Support Older People (85+),Adult Services,Third Party Payments,Other establishments,12/02/2019,6282637,110.79,VENDOR,THE PORTSMOUTH SITTING SERVICE AND COMMUNITY CARE SERVICES LTD T/A ASSURED CARE,100201
Portsmouth City Council,PCC,Adult Social Care,Physical Support Older People (85+),Adult Services,Third Party Payments,Other establishments,12/02/2019,6282637,7.68,VENDOR,THE PORTSMOUTH SITTING SERVICE AND COMMUNITY CARE SERVICES LTD T/A ASSURED CARE,100201
Portsmouth City Council,PCC,Adult Social Care,Physical Support Older People (85+),Adult Services,Third Party Payments,Other establishments,12/02/2019,6282637,11.52,VENDOR,THE PORTSMOUTH SITTING SERVICE AND COMMUNITY CARE SERVICES LTD T/A ASSURED CARE,100201
Portsmouth City Council,PCC,Adult Social Care,Physical Support Older People (85+),Adult Services,Third Party Payments,Other establishments,12/02/2019,6282637,1.28,VENDOR,THE PORTSMOUTH SITTING SERVICE AND COMMUNITY CARE SERVICES LTD T/A ASSURED CARE,100201
Portsmouth City Council,PCC,Adult Social Care,Physical Support Older People (85+),Adult Services,Third Party Payments,Other establishments,12/02/2019,6282637,7.04,VENDOR,THE PORTSMOUTH SITTING SERVICE AND COMMUNITY CARE SERVICES LTD T/A ASSURED CARE,100201
Portsmouth City Council,PCC,Adult Social Care,Physical Support Older People (85+),Adult Services,Third Party Payments,Other establishments,12/02/2019,6282637,7.68,VENDOR,THE PORTSMOUTH SITTING SERVICE AND COMMUNITY CARE SERVICES LTD T/A ASSURED CARE,100201
Portsmouth City Council,PCC,Adult Social Care,Physical Support Older People (85+),Adult Services,Third Party Payments,Other establishments,12/02/2019,6282637,10.56,VENDOR,THE PORTSMOUTH SITTING SERVICE AND COMMUNITY CARE SERVICES LTD T/A ASSURED CARE,100201
Portsmouth City Council,PCC,Adult Social Care,Physical Support Older People (85+),Adult Services,Third Party Payments,Other establishments,12/02/2019,6282637,11.52,VENDOR,THE PORTSMOUTH SITTING SERVICE AND COMMUNITY CARE SERVICES LTD T/A ASSURED CARE,100201
Portsmouth City Council,PCC,Adult Social Care,Physical Support Older People (85+),Adult Services,Third Party Payments,Other establishments,12/02/2019,6282637,7.68,VENDOR,THE PORTSMOUTH SITTING SERVICE AND COMMUNITY CARE SERVICES LTD T/A ASSURED CARE,100201
Portsmouth City Council,PCC,Adult Social Care,Physical Support Older People (85+),Adult Services,Third Party Payments,Other establishments,12/02/2019,6282637,2.56,VENDOR,THE PORTSMOUTH SITTING SERVICE AND COMMUNITY CARE SERVICES LTD T/A ASSURED CARE,100201
Portsmouth City Council,PCC,Adult Social Care,Physical Support Older People (85+),Adult Services,Third Party Payments,Other establishments,12/02/2019,6282637,633.36,VENDOR,THE PORTSMOUTH SITTING SERVICE AND COMMUNITY CARE SERVICES LTD T/A ASSURED CARE,100201
Portsmouth City Council,PCC,Adult Social Care,Physical Support Older People (85+),Adult Services,Third Party Payments,Other establishments,12/02/2019,6282637,9.6,VENDOR,THE PORTSMOUTH SITTING SERVICE AND COMMUNITY CARE SERVICES LTD T/A ASSURED CARE,100201
Portsmouth City Council,PCC,Children's and Education Services,Other Children and Family Services,Children's Services and Education,Supplies and Services,Services,13/02/2019,321130,300,SOLETRADER,Classified as 'personal data' (under the Data Protection Act 1998),143461
Portsmouth City Council,PCC,Children's and Education Services,Other Children and Family Services,Children's Services and Education,Supplies and Services,Services,13/02/2019,321130,225,SOLETRADER,Classified as 'personal data' (under the Data Protection Act 1998),143461
Portsmouth City Council,PCC,Other,Suspense and Capital Schemes,Finance & IT,Transport-Related Expenditure,Contract hire and operating leases,05/02/2019,6281361,2023.01,VENDOR,TUSKERDIRECT LIMITED,141146
Portsmouth City Council,PCC,Other,Suspense and Capital Schemes,Finance & IT,Supplies and Services,Miscellaneous expenses,05/02/2019,6281361,587.32,VENDOR,TUSKERDIRECT LIMITED,141146
Portsmouth City Council,PCC,Other,Suspense and Capital Schemes,Finance & IT,Financing Costs,Interest Payments,05/02/2019,6281361,4783.19,VENDOR,TUSKERDIRECT LIMITED,141146
Portsmouth City Council,PCC,Adult Social Care,Physical Support Older People (85+),Adult Services,Third Party Payments,Other establishments,12/02/2019,6282637,54.08,VENDOR,THE PORTSMOUTH SITTING SERVICE AND COMMUNITY CARE SERVICES LTD T/A ASSURED CARE,100201
Portsmouth City Council,PCC,Adult Social Care,Physical Support Older People (85+),Adult Services,Third Party Payments,Other establishments,12/02/2019,6282637,47.16,VENDOR,THE PORTSMOUTH SITTING SERVICE AND COMMUNITY CARE SERVICES LTD T/A ASSURED CARE,100201
Portsmouth City Council,PCC,Highways and Transport Services,"Airports, Harbours and Toll Facilities",Portsmouth International Port,Third Party Payments,Private contractors,07/02/2019,6281998,257.3,VENDOR,SOUTHERN MARITIME SERVICES LIMITED,120765
Portsmouth City Council,PCC,Highways and Transport Services,"Airports, Harbours and Toll Facilities",Portsmouth International Port,Third Party Payments,Private contractors,07/02/2019,6281998,4007.81,VENDOR,SOUTHERN MARITIME SERVICES LIMITED,120765
Portsmouth City Council,PCC,Adult Social Care,Social Care Activities,Adult Services,Third Party Payments,Other establishments,01/02/2019,6280999,201.54,VENDOR,SAFEGUARDING GP,137636
Portsmouth City Council,PCC,Adult Social Care,Social Care Activities,Adult Services,Third Party Payments,Other establishments,01/02/2019,6280999,186.31,VENDOR,SAFEGUARDING GP,137636
Portsmouth City Council,PCC,Adult Social Care,Social Care Activities,Adult Services,Third Party Payments,Other establishments,01/02/2019,6280999,186.31,VENDOR,SAFEGUARDING GP,137636
Portsmouth City Council,PCC,Cultural and Related Services,Culture and Heritage,Community & Communication,Supplies and Services,Grants and subscriptions,04/02/2019,6281198,11500,VENDOR,THE GOOD MENTAL HEALTH CIC,139320
Portsmouth City Council,PCC,Highways and Transport Services,"Airports, Harbours and Toll Facilities",Portsmouth International Port,Third Party Payments,Private contractors,28/02/2019,6286255,4303.75,VENDOR,SOUTHERN MARITIME SERVICES LIMITED,120765
Portsmouth City Council,PCC,Central Services,Coroners' Court Services,Culture & City Development,Supplies and Services,Communications and computing,14/02/2019,6283395,12000,VENDOR,WPC SOFTWARE LTD,142322
Portsmouth City Council,PCC,Highways and Transport Services,"Airports, Harbours and Toll Facilities",Portsmouth International Port,Supplies and Services,"Printing, stationery and general office expenses",28/02/2019,6286219,2126.88,VENDOR,PORT SKILLS AND SAFETY,108229
Portsmouth City Council,PCC,Other,Suspense and Capital Schemes,Capital - Childrens Services,Capital Charges,Capital Expenditure (WIP),13/02/2019,6282673,280,VENDOR,BIERCE SURVEYING LTD,144619
Portsmouth City Council,PCC,Other,Suspense and Capital Schemes,Capital - Childrens Services,Capital Charges,Capital Expenditure (WIP),13/02/2019,6282673,280,VENDOR,BIERCE SURVEYING LTD,144619
Portsmouth City Council,PCC,Children's and Education Services,Children Looked After,Children's Services and Education,Transport-Related Expenditure,Direct transport costs,22/02/2019,6284988,1932,VENDOR,BARNARDO SERVICES LTD,107155
Portsmouth City Council,PCC,Children's and Education Services,Children Looked After,Children's Services and Education,Third Party Payments,Other establishments,28/02/2019,6286087,3484.36,VENDOR,BARNARDO SERVICES LTD,107155
Portsmouth City Council,PCC,Adult Social Care,Physical Support Older People (85+),Adult Services,Third Party Payments,Other establishments,27/02/2019,6286019,237.22,VENDOR,NIGHTINGALES GOLDEN CARE,103699
Portsmouth City Council,PCC,Adult Social Care,Physical Support Older People (85+),Adult Services,Third Party Payments,Other establishments,07/02/2019,6281884,1824.14,VENDOR,APEX PROPERTY VENTURES LTD,108437
Portsmouth City Council,PCC,Adult Social Care,Physical Support Older People (85+),Adult Services,Third Party Payments,Other establishments,19/02/2019,6283739,1312.15,VENDOR,APEX PROPERTY VENTURES LTD,108437
Portsmouth City Council,PCC,Adult Social Care,Physical Support Older People (85+),Adult Services,Third Party Payments,Other establishments,19/02/2019,6283739,98.16,VENDOR,APEX PROPERTY VENTURES LTD,108437
Portsmouth City Council,PCC,Adult Social Care,Physical Support Older People (85+),Adult Services,Third Party Payments,Other establishments,07/02/2019,6281884,916.16,VENDOR,APEX PROPERTY VENTURES LTD,108437
Portsmouth City Council,PCC,Adult Social Care,Physical Support Adults (18 - 64),Adult Services,Third Party Payments,Other establishments,07/02/2019,6281884,134.97,VENDOR,APEX PROPERTY VENTURES LTD,108437
Portsmouth City Council,PCC,Housing Revenue Account,Special Services,"Housing, Neighbourhood and Building Services",Premises-Related Expenditure,Energy costs,19/02/2019,6283855,2063.25,VENDOR,TOTAL GAS & POWER LTD,133467
Portsmouth City Council,PCC,Adult Social Care,Social Care Activities,Adult Services,Third Party Payments,Other establishments,14/02/2019,6283383,506.88,VENDOR,THE PORTSMOUTH SITTING SERVICE AND COMMUNITY CARE SERVICES LTD T/A ASSURED CARE,100201
Portsmouth City Council,PCC,Adult Social Care,Social Care Activities,Adult Services,Third Party Payments,Other establishments,14/02/2019,6283383,458.08,VENDOR,THE PORTSMOUTH SITTING SERVICE AND COMMUNITY CARE SERVICES LTD T/A ASSURED CARE,100201
Portsmouth City Council,PCC,Adult Social Care,Social Support - Support for Carer,Adult Services,Third Party Payments,Other establishments,14/02/2019,6283383,295.68,VENDOR,THE PORTSMOUTH SITTING SERVICE AND COMMUNITY CARE SERVICES LTD T/A ASSURED CARE,100201
Portsmouth City Council,PCC,Adult Social Care,Social Support - Support for Carer,Adult Services,Third Party Payments,Other establishments,14/02/2019,6283383,337.92,VENDOR,THE PORTSMOUTH SITTING SERVICE AND COMMUNITY CARE SERVICES LTD T/A ASSURED CARE,100201
Portsmouth City Council,PCC,Adult Social Care,Social Support - Support for Carer,Adult Services,Third Party Payments,Other establishments,14/02/2019,6283383,56.32,VENDOR,THE PORTSMOUTH SITTING SERVICE AND COMMUNITY CARE SERVICES LTD T/A ASSURED CARE,100201
Portsmouth City Council,PCC,Adult Social Care,Social Support - Support for Carer,Adult Services,Third Party Payments,Other establishments,14/02/2019,6283383,253.44,VENDOR,THE PORTSMOUTH SITTING SERVICE AND COMMUNITY CARE SERVICES LTD T/A ASSURED CARE,100201
Portsmouth City Council,PCC,Adult Social Care,Social Support - Support for Carer,Adult Services,Third Party Payments,Other establishments,14/02/2019,6283383,281.6,VENDOR,THE PORTSMOUTH SITTING SERVICE AND COMMUNITY CARE SERVICES LTD T/A ASSURED CARE,100201
Portsmouth City Council,PCC,Adult Social Care,Physical Support Adults (18 - 64),Adult Services,Third Party Payments,Other establishments,14/02/2019,6283383,621.68,VENDOR,THE PORTSMOUTH SITTING SERVICE AND COMMUNITY CARE SERVICES LTD T/A ASSURED CARE,100201
Portsmouth City Council,PCC,Adult Social Care,Physical Support Older People (85+),Adult Services,Third Party Payments,Other establishments,14/02/2019,6283383,658.96,VENDOR,THE PORTSMOUTH SITTING SERVICE AND COMMUNITY CARE SERVICES LTD T/A ASSURED CARE,100201
Portsmouth City Council,PCC,Adult Social Care,Social Support - Support for Carer,Adult Services,Third Party Payments,Other establishments,14/02/2019,6283383,337.92,VENDOR,THE PORTSMOUTH SITTING SERVICE AND COMMUNITY CARE SERVICES LTD T/A ASSURED CARE,100201
Portsmouth City Council,PCC,Adult Social Care,Social Support - Support for Carer,Adult Services,Third Party Payments,Other establishments,14/02/2019,6283383,168.96,VENDOR,THE PORTSMOUTH SITTING SERVICE AND COMMUNITY CARE SERVICES LTD T/A ASSURED CARE,100201
Portsmouth City Council,PCC,Adult Social Care,Physical Support Older People (85+),Adult Services,Third Party Payments,Other establishments,14/02/2019,6283383,654.4,VENDOR,THE PORTSMOUTH SITTING SERVICE AND COMMUNITY CARE SERVICES LTD T/A ASSURED CARE,100201
Portsmouth City Council,PCC,Adult Social Care,Physical Support Older People (85+),Adult Services,Third Party Payments,Other establishments,14/02/2019,6283383,34,VENDOR,THE PORTSMOUTH SITTING SERVICE AND COMMUNITY CARE SERVICES LTD T/A ASSURED CARE,100201
Portsmouth City Council,PCC,Adult Social Care,Physical Support Older People (85+),Adult Services,Third Party Payments,Other establishments,14/02/2019,6283383,51.42,VENDOR,THE PORTSMOUTH SITTING SERVICE AND COMMUNITY CARE SERVICES LTD T/A ASSURED CARE,100201
Portsmouth City Council,PCC,Adult Social Care,Physical Support Older People (85+),Adult Services,Third Party Payments,Other establishments,14/02/2019,6283383,591.64,VENDOR,THE PORTSMOUTH SITTING SERVICE AND COMMUNITY CARE SERVICES LTD T/A ASSURED CARE,100201
Portsmouth City Council,PCC,Adult Social Care,Physical Support Older People (85+),Adult Services,Third Party Payments,Other establishments,14/02/2019,6283383,130.88,VENDOR,THE PORTSMOUTH SITTING SERVICE AND COMMUNITY CARE SERVICES LTD T/A ASSURED CARE,100201
Portsmouth City Council,PCC,Adult Social Care,Physical Support Older People (85+),Adult Services,Third Party Payments,Other establishments,14/02/2019,6283383,515.34,VENDOR,THE PORTSMOUTH SITTING SERVICE AND COMMUNITY CARE SERVICES LTD T/A ASSURED CARE,100201
Portsmouth City Council,PCC,Adult Social Care,Physical Support Older People (85+),Adult Services,Third Party Payments,Other establishments,14/02/2019,6283383,162.64,VENDOR,THE PORTSMOUTH SITTING SERVICE AND COMMUNITY CARE SERVICES LTD T/A ASSURED CARE,100201
Portsmouth City Council,PCC,Adult Social Care,Physical Support Older People (85+),Adult Services,Third Party Payments,Other establishments,14/02/2019,6283383,230,VENDOR,THE PORTSMOUTH SITTING SERVICE AND COMMUNITY CARE SERVICES LTD T/A ASSURED CARE,100201
Portsmouth City Council,PCC,Adult Social Care,Physical Support Older People (85+),Adult Services,Third Party Payments,Other establishments,14/02/2019,6283383,241.31,VENDOR,THE PORTSMOUTH SITTING SERVICE AND COMMUNITY CARE SERVICES LTD T/A ASSURED CARE,100201
Portsmouth City Council,PCC,Adult Social Care,Physical Support Older People (85+),Adult Services,Third Party Payments,Other establishments,14/02/2019,6283383,253.44,VENDOR,THE PORTSMOUTH SITTING SERVICE AND COMMUNITY CARE SERVICES LTD T/A ASSURED CARE,100201
Portsmouth City Council,PCC,Adult Social Care,Physical Support Older People (85+),Adult Services,Third Party Payments,Other establishments,14/02/2019,6283383,24.54,VENDOR,THE PORTSMOUTH SITTING SERVICE AND COMMUNITY CARE SERVICES LTD T/A ASSURED CARE,100201
Portsmouth City Council,PCC,Adult Social Care,Physical Support Older People (85+),Adult Services,Third Party Payments,Other establishments,14/02/2019,6283383,24.54,VENDOR,THE PORTSMOUTH SITTING SERVICE AND COMMUNITY CARE SERVICES LTD T/A ASSURED CARE,100201
Portsmouth City Council,PCC,Adult Social Care,Social Support - Support for Carer,Adult Services,Third Party Payments,Other establishments,14/02/2019,6283383,253.44,VENDOR,THE PORTSMOUTH SITTING SERVICE AND COMMUNITY CARE SERVICES LTD T/A ASSURED CARE,100201
Portsmouth City Council,PCC,Adult Social Care,Physical Support Older People (85+),Adult Services,Third Party Payments,Other establishments,14/02/2019,6283383,343.56,VENDOR,THE PORTSMOUTH SITTING SERVICE AND COMMUNITY CARE SERVICES LTD T/A ASSURED CARE,100201
Portsmouth City Council,PCC,Adult Social Care,Social Support - Support for Carer,Adult Services,Third Party Payments,Other establishments,14/02/2019,6283383,168.96,VENDOR,THE PORTSMOUTH SITTING SERVICE AND COMMUNITY CARE SERVICES LTD T/A ASSURED CARE,100201
Portsmouth City Council,PCC,Adult Social Care,Physical Support Older People (85+),Adult Services,Third Party Payments,Other establishments,14/02/2019,6283383,73.62,VENDOR,THE PORTSMOUTH SITTING SERVICE AND COMMUNITY CARE SERVICES LTD T/A ASSURED CARE,100201
Portsmouth City Council,PCC,Adult Social Care,Social Support - Support for Carer,Adult Services,Third Party Payments,Other establishments,14/02/2019,6283383,197.12,VENDOR,THE PORTSMOUTH SITTING SERVICE AND COMMUNITY CARE SERVICES LTD T/A ASSURED CARE,100201
Portsmouth City Council,PCC,Adult Social Care,Physical Support Older People (85+),Adult Services,Third Party Payments,Other establishments,14/02/2019,6283383,28.63,VENDOR,THE PORTSMOUTH SITTING SERVICE AND COMMUNITY CARE SERVICES LTD T/A ASSURED CARE,100201
Portsmouth City Council,PCC,Adult Social Care,Physical Support Older People (85+),Adult Services,Third Party Payments,Other establishments,14/02/2019,6283383,220.86,VENDOR,THE PORTSMOUTH SITTING SERVICE AND COMMUNITY CARE SERVICES LTD T/A ASSURED CARE,100201
Portsmouth City Council,PCC,Adult Social Care,Physical Support Older People (85+),Adult Services,Third Party Payments,Other establishments,14/02/2019,6283383,57.26,VENDOR,THE PORTSMOUTH SITTING SERVICE AND COMMUNITY CARE SERVICES LTD T/A ASSURED CARE,100201
Portsmouth City Council,PCC,Adult Social Care,Physical Support Older People (85+),Adult Services,Third Party Payments,Other establishments,14/02/2019,6283383,797.55,VENDOR,THE PORTSMOUTH SITTING SERVICE AND COMMUNITY CARE SERVICES LTD T/A ASSURED CARE,100201
Portsmouth City Council,PCC,Adult Social Care,Physical Support Older People (85+),Adult Services,Third Party Payments,Other establishments,14/02/2019,6283383,65.44,VENDOR,THE PORTSMOUTH SITTING SERVICE AND COMMUNITY CARE SERVICES LTD T/A ASSURED CARE,100201
Portsmouth City Council,PCC,Adult Social Care,Mental Health Support Older People (65 - 74),Adult Services,Third Party Payments,Other establishments,14/02/2019,6283383,417.18,VENDOR,THE PORTSMOUTH SITTING SERVICE AND COMMUNITY CARE SERVICES LTD T/A ASSURED CARE,100201
Portsmouth City Council,PCC,Adult Social Care,Social Support - Support for Carer,Adult Services,Third Party Payments,Other establishments,14/02/2019,6283383,253.44,VENDOR,THE PORTSMOUTH SITTING SERVICE AND COMMUNITY CARE SERVICES LTD T/A ASSURED CARE,100201
Portsmouth City Council,PCC,Adult Social Care,Physical Support Older People (85+),Adult Services,Third Party Payments,Other establishments,14/02/2019,6283383,772.54,VENDOR,THE PORTSMOUTH SITTING SERVICE AND COMMUNITY CARE SERVICES LTD T/A ASSURED CARE,100201
Portsmouth City Council,PCC,Adult Social Care,Social Support - Support for Carer,Adult Services,Third Party Payments,Other establishments,14/02/2019,6283383,239.36,VENDOR,THE PORTSMOUTH SITTING SERVICE AND COMMUNITY CARE SERVICES LTD T/A ASSURED CARE,100201
Portsmouth City Council,PCC,Adult Social Care,Physical Support Older People (85+),Adult Services,Third Party Payments,Other establishments,14/02/2019,6283383,458.08,VENDOR,THE PORTSMOUTH SITTING SERVICE AND COMMUNITY CARE SERVICES LTD T/A ASSURED CARE,100201
Portsmouth City Council,PCC,Adult Social Care,Physical Support Older People (85+),Adult Services,Third Party Payments,Other establishments,14/02/2019,6283383,1259.72,VENDOR,THE PORTSMOUTH SITTING SERVICE AND COMMUNITY CARE SERVICES LTD T/A ASSURED CARE,100201
Portsmouth City Council,PCC,Adult Social Care,Physical Support Older People (85+),Adult Services,Third Party Payments,Other establishments,14/02/2019,6283383,216.16,VENDOR,THE PORTSMOUTH SITTING SERVICE AND COMMUNITY CARE SERVICES LTD T/A ASSURED CARE,100201
Portsmouth City Council,PCC,Adult Social Care,Physical Support Older People (85+),Adult Services,Third Party Payments,Other establishments,14/02/2019,6283383,687.12,VENDOR,THE PORTSMOUTH SITTING SERVICE AND COMMUNITY CARE SERVICES LTD T/A ASSURED CARE,100201
Portsmouth City Council,PCC,Adult Social Care,Social Support - Support for Carer,Adult Services,Third Party Payments,Other establishments,14/02/2019,6283383,295.68,VENDOR,THE PORTSMOUTH SITTING SERVICE AND COMMUNITY CARE SERVICES LTD T/A ASSURED CARE,100201
Portsmouth City Council,PCC,Adult Social Care,Social Support - Support for Carer,Adult Services,Third Party Payments,Other establishments,14/02/2019,6283383,288.64,VENDOR,THE PORTSMOUTH SITTING SERVICE AND COMMUNITY CARE SERVICES LTD T/A ASSURED CARE,100201
Portsmouth City Council,PCC,Adult Social Care,Social Support - Support for Carer,Adult Services,Third Party Payments,Other establishments,14/02/2019,6283383,168.96,VENDOR,THE PORTSMOUTH SITTING SERVICE AND COMMUNITY CARE SERVICES LTD T/A ASSURED CARE,100201
Portsmouth City Council,PCC,Adult Social Care,Social Care Activities,Adult Services,Third Party Payments,Other establishments,27/02/2019,6286019,5227.02,VENDOR,NIGHTINGALES GOLDEN CARE,103699
Portsmouth City Council,PCC,Adult Social Care,Social Care Activities,Adult Services,Third Party Payments,Other establishments,27/02/2019,6286019,4122.72,VENDOR,NIGHTINGALES GOLDEN CARE,103699
Portsmouth City Council,PCC,Adult Social Care,Social Support - Support for Carer,Adult Services,Third Party Payments,Other establishments,27/02/2019,6286019,337.92,VENDOR,NIGHTINGALES GOLDEN CARE,103699
Portsmouth City Council,PCC,Adult Social Care,Social Support - Support for Carer,Adult Services,Third Party Payments,Other establishments,27/02/2019,6286019,281.6,VENDOR,NIGHTINGALES GOLDEN CARE,103699
Portsmouth City Council,PCC,Adult Social Care,Physical Support Older People (85+),Adult Services,Third Party Payments,Other establishments,27/02/2019,6286019,281.6,VENDOR,NIGHTINGALES GOLDEN CARE,103699
Portsmouth City Council,PCC,Adult Social Care,Physical Support Older People (85+),Adult Services,Third Party Payments,Other establishments,27/02/2019,6286019,337.92,VENDOR,NIGHTINGALES GOLDEN CARE,103699
Portsmouth City Council,PCC,Adult Social Care,Social Care Activities,Adult Services,Third Party Payments,Other establishments,27/02/2019,6286019,337.92,VENDOR,NIGHTINGALES GOLDEN CARE,103699
Portsmouth City Council,PCC,Adult Social Care,Physical Support Older People (85+),Adult Services,Third Party Payments,Other establishments,27/02/2019,6286019,2274.04,VENDOR,NIGHTINGALES GOLDEN CARE,103699
Portsmouth City Council,PCC,Adult Social Care,Learning Disability Support  Adults (18 - 64),Adult Services,Third Party Payments,Other establishments,27/02/2019,6286019,736.2,VENDOR,NIGHTINGALES GOLDEN CARE,103699
Portsmouth City Council,PCC,Adult Social Care,Physical Support Older People (85+),Adult Services,Third Party Payments,Other establishments,27/02/2019,6286019,1132.93,VENDOR,NIGHTINGALES GOLDEN CARE,103699
Portsmouth City Council,PCC,Adult Social Care,Physical Support Older People (85+),Adult Services,Third Party Payments,Other establishments,27/02/2019,6286019,801.64,VENDOR,NIGHTINGALES GOLDEN CARE,103699
Portsmouth City Council,PCC,Adult Social Care,Physical Support Older People (85+),Adult Services,Third Party Payments,Other establishments,27/02/2019,6286019,49.08,VENDOR,NIGHTINGALES GOLDEN CARE,103699
Portsmouth City Council,PCC,Adult Social Care,Physical Support Older People (85+),Adult Services,Third Party Payments,Other establishments,27/02/2019,6286019,458.08,VENDOR,NIGHTINGALES GOLDEN CARE,103699
Portsmouth City Council,PCC,Adult Social Care,Physical Support Older People (85+),Adult Services,Third Party Payments,Other establishments,27/02/2019,6286019,245.4,VENDOR,NIGHTINGALES GOLDEN CARE,103699
Portsmouth City Council,PCC,Adult Social Care,Physical Support Older People (85+),Adult Services,Third Party Payments,Other establishments,27/02/2019,6286019,57.26,VENDOR,NIGHTINGALES GOLDEN CARE,103699
Portsmouth City Council,PCC,Adult Social Care,Physical Support Older People (85+),Adult Services,Third Party Payments,Other establishments,27/02/2019,6286019,229.04,VENDOR,NIGHTINGALES GOLDEN CARE,103699
Portsmouth City Council,PCC,Adult Social Care,Physical Support Older People (85+),Adult Services,Third Party Payments,Other establishments,27/02/2019,6286019,916.16,VENDOR,NIGHTINGALES GOLDEN CARE,103699
Portsmouth City Council,PCC,Adult Social Care,Physical Support Older People (85+),Adult Services,Third Party Payments,Other establishments,27/02/2019,6286019,343.56,VENDOR,NIGHTINGALES GOLDEN CARE,103699
Portsmouth City Council,PCC,Adult Social Care,Physical Support Older People (85+),Adult Services,Third Party Payments,Other establishments,27/02/2019,6286019,458.08,VENDOR,NIGHTINGALES GOLDEN CARE,103699
Portsmouth City Council,PCC,Adult Social Care,Physical Support Older People (85+),Adult Services,Third Party Payments,Other establishments,27/02/2019,6286019,65.44,VENDOR,NIGHTINGALES GOLDEN CARE,103699
Portsmouth City Council,PCC,Adult Social Care,Physical Support Older People (85+),Adult Services,Third Party Payments,Other establishments,27/02/2019,6286019,1603.28,VENDOR,NIGHTINGALES GOLDEN CARE,103699
Portsmouth City Council,PCC,Adult Social Care,Social Care Activities,Adult Services,Third Party Payments,Other establishments,27/02/2019,6286019,253.44,VENDOR,NIGHTINGALES GOLDEN CARE,103699
Portsmouth City Council,PCC,Adult Social Care,Social Care Activities,Adult Services,Third Party Payments,Other establishments,27/02/2019,6286019,42.24,VENDOR,NIGHTINGALES GOLDEN CARE,103699
Portsmouth City Council,PCC,Adult Social Care,Physical Support Older People (85+),Adult Services,Third Party Payments,Other establishments,27/02/2019,6286019,1030.68,VENDOR,NIGHTINGALES GOLDEN CARE,103699
Portsmouth City Council,PCC,Adult Social Care,Physical Support Older People (85+),Adult Services,Third Party Payments,Other establishments,27/02/2019,6286019,482.62,VENDOR,NIGHTINGALES GOLDEN CARE,103699
Portsmouth City Council,PCC,Adult Social Care,Social Support - Support for Carer,Adult Services,Third Party Payments,Other establishments,27/02/2019,6286019,295.68,VENDOR,NIGHTINGALES GOLDEN CARE,103699
Portsmouth City Council,PCC,Adult Social Care,Physical Support Older People (85+),Adult Services,Third Party Payments,Other establishments,27/02/2019,6286019,973.42,VENDOR,NIGHTINGALES GOLDEN CARE,103699
Portsmouth City Council,PCC,Adult Social Care,Social Support - Support for Carer,Adult Services,Third Party Payments,Other establishments,27/02/2019,6286019,112.64,VENDOR,NIGHTINGALES GOLDEN CARE,103699
Portsmouth City Council,PCC,Adult Social Care,Physical Support Older People (85+),Adult Services,Third Party Payments,Other establishments,27/02/2019,6286019,368.1,VENDOR,NIGHTINGALES GOLDEN CARE,103699
Portsmouth City Council,PCC,Adult Social Care,Physical Support Older People (85+),Adult Services,Third Party Payments,Other establishments,27/02/2019,6286019,1034.77,VENDOR,NIGHTINGALES GOLDEN CARE,103699
Portsmouth City Council,PCC,Adult Social Care,Physical Support Older People (85+),Adult Services,Third Party Payments,Other establishments,27/02/2019,6286019,44.99,VENDOR,NIGHTINGALES GOLDEN CARE,103699
Portsmouth City Council,PCC,Adult Social Care,Physical Support Older People (85+),Adult Services,Third Party Payments,Other establishments,27/02/2019,6286019,175.87,VENDOR,NIGHTINGALES GOLDEN CARE,103699
Portsmouth City Council,PCC,Adult Social Care,Physical Support Older People (85+),Adult Services,Third Party Payments,Other establishments,27/02/2019,6286019,728.02,VENDOR,NIGHTINGALES GOLDEN CARE,103699
Portsmouth City Council,PCC,Adult Social Care,Social Support - Support for Carer,Adult Services,Third Party Payments,Other establishments,27/02/2019,6286019,225.28,VENDOR,NIGHTINGALES GOLDEN CARE,103699
Portsmouth City Council,PCC,Adult Social Care,Physical Support Older People (85+),Adult Services,Third Party Payments,Other establishments,27/02/2019,6286019,229.04,VENDOR,NIGHTINGALES GOLDEN CARE,103699
Portsmouth City Council,PCC,Adult Social Care,Physical Support Older People (85+),Adult Services,Third Party Payments,Other establishments,27/02/2019,6286019,1337.83,VENDOR,NIGHTINGALES GOLDEN CARE,103699
Portsmouth City Council,PCC,Adult Social Care,Physical Support Adults (18 - 64),Adult Services,Third Party Payments,Other establishments,27/02/2019,6286019,867.08,VENDOR,NIGHTINGALES GOLDEN CARE,103699
Portsmouth City Council,PCC,Adult Social Care,Physical Support Older People (85+),Adult Services,Third Party Payments,Other establishments,27/02/2019,6286019,449.9,VENDOR,NIGHTINGALES GOLDEN CARE,103699
Portsmouth City Council,PCC,Adult Social Care,Physical Support Older People (85+),Adult Services,Third Party Payments,Other establishments,27/02/2019,6286019,343.56,VENDOR,NIGHTINGALES GOLDEN CARE,103699
Portsmouth City Council,PCC,Adult Social Care,Physical Support Older People (85+),Adult Services,Third Party Payments,Other establishments,27/02/2019,6286019,466.26,VENDOR,NIGHTINGALES GOLDEN CARE,103699
Portsmouth City Council,PCC,Adult Social Care,Physical Support Older People (85+),Adult Services,Third Party Payments,Other establishments,27/02/2019,6286019,670.76,VENDOR,NIGHTINGALES GOLDEN CARE,103699
Portsmouth City Council,PCC,Adult Social Care,Physical Support Older People (85+),Adult Services,Third Party Payments,Other establishments,27/02/2019,6286019,1030.68,VENDOR,NIGHTINGALES GOLDEN CARE,103699
Portsmouth City Council,PCC,Adult Social Care,Social Care Activities,Adult Services,Third Party Payments,Other establishments,27/02/2019,6286019,2998.8,VENDOR,NIGHTINGALES GOLDEN CARE,103699
Portsmouth City Council,PCC,Adult Social Care,Social Care Activities,Adult Services,Third Party Payments,Other establishments,27/02/2019,6286019,761.79,VENDOR,NIGHTINGALES GOLDEN CARE,103699
Portsmouth City Council,PCC,Cultural and Related Services,Open Spaces,Culture & City Development,Premises-Related Expenditure,Grounds maintenance costs,14/02/2019,6283349,1900,COMPANY,REDS BUILDERS LTD,108228
Portsmouth City Council,PCC,Housing Revenue Account,Special Services,"Housing, Neighbourhood and Building Services",Premises-Related Expenditure,Energy costs,19/02/2019,6283855,1930.03,VENDOR,TOTAL GAS & POWER LTD,133467
Portsmouth City Council,PCC,Support Service / Transparency Costs Unallocated,AMS,"Housing, Neighbourhood and Building Services",Premises-Related Expenditure,Energy costs,19/02/2019,6283855,18949.88,VENDOR,TOTAL GAS & POWER LTD,133467
Portsmouth City Council,PCC,Highways and Transport Services,Parking Services,Regeneration,Supplies and Services,Communications and computing,14/02/2019,6283262,19577.14,VENDOR,CONDUENT PARKING ENFORCEMENT SOLUTIONS LIMITED,113838
Portsmouth City Council,PCC,Highways and Transport Services,Parking Services,Regeneration,Supplies and Services,Communications and computing,14/02/2019,6283262,6600.98,VENDOR,CONDUENT PARKING ENFORCEMENT SOLUTIONS LIMITED,113838
Portsmouth City Council,PCC,Highways and Transport Services,Parking Services,Regeneration,Supplies and Services,Communications and computing,14/02/2019,6283262,303.96,VENDOR,CONDUENT PARKING ENFORCEMENT SOLUTIONS LIMITED,113838
Portsmouth City Council,PCC,Highways and Transport Services,Parking Services,Regeneration,Supplies and Services,Communications and computing,14/02/2019,6283262,152.48,VENDOR,CONDUENT PARKING ENFORCEMENT SOLUTIONS LIMITED,113838
Portsmouth City Council,PCC,Adult Social Care,Social Care Activities,Adult Services,Third Party Payments,Other establishments,07/02/2019,6281884,2494.9,VENDOR,APEX PROPERTY VENTURES LTD,108437
Portsmouth City Council,PCC,Adult Social Care,Social Care Activities,Adult Services,Third Party Payments,Other establishments,07/02/2019,6281884,168.96,VENDOR,APEX PROPERTY VENTURES LTD,108437
Portsmouth City Council,PCC,Adult Social Care,Physical Support Older People (85+),Adult Services,Third Party Payments,Other establishments,07/02/2019,6281884,1832.32,VENDOR,APEX PROPERTY VENTURES LTD,108437
Portsmouth City Council,PCC,Adult Social Care,Physical Support Older People (85+),Adult Services,Third Party Payments,Other establishments,14/02/2019,6283239,458.08,VENDOR,APEX PROPERTY VENTURES LTD,108437
Portsmouth City Council,PCC,Adult Social Care,Physical Support Older People (85+),Adult Services,Third Party Payments,Other establishments,14/02/2019,6283239,147.24,VENDOR,APEX PROPERTY VENTURES LTD,108437
Portsmouth City Council,PCC,Adult Social Care,Physical Support Adults (18 - 64),Adult Services,Third Party Payments,Other establishments,14/02/2019,6283239,229.04,VENDOR,APEX PROPERTY VENTURES LTD,108437
Portsmouth City Council,PCC,Adult Social Care,Mental Health Support Older People (65 - 74),Adult Services,Third Party Payments,Other establishments,07/02/2019,6281884,916.16,VENDOR,APEX PROPERTY VENTURES LTD,108437
Portsmouth City Council,PCC,Adult Social Care,Physical Support Older People (85+),Adult Services,Third Party Payments,Other establishments,07/02/2019,6281884,458.08,VENDOR,APEX PROPERTY VENTURES LTD,108437
Portsmouth City Council,PCC,Adult Social Care,Physical Support Adults (18 - 64),Adult Services,Third Party Payments,Other establishments,07/02/2019,6281884,458.08,VENDOR,APEX PROPERTY VENTURES LTD,108437
Portsmouth City Council,PCC,Adult Social Care,Physical Support Older People (85+),Adult Services,Third Party Payments,Other establishments,07/02/2019,6281884,229.04,VENDOR,APEX PROPERTY VENTURES LTD,108437
Portsmouth City Council,PCC,Adult Social Care,Physical Support Adults (18 - 64),Adult Services,Third Party Payments,Other establishments,07/02/2019,6281884,376.28,VENDOR,APEX PROPERTY VENTURES LTD,108437
Portsmouth City Council,PCC,Cultural and Related Services,Library Service,Culture & City Development,Premises-Related Expenditure,Cleaning and domestic supplies,05/02/2019,6281237,550,VENDOR,STONE & MARBLE FLOOR RESTORATION LTD T/A CLEAN-A-CARPET,122206
Portsmouth City Council,PCC,Other,Suspense and Capital Schemes,Capital - Education,Capital Charges,Capital Expenditure (WIP),08/02/2019,6282159,4125,COMPANY,HAMPSHIRE PARTITIONING CONTRACTS LTD,104637
Portsmouth City Council,PCC,Children's and Education Services,Special Schools,Children's Services and Education,Third Party Payments,Other establishments,04/02/2019,6281124,21116.51,VENDOR,FAIRWAYS CARE (UK) LTD,111915
Portsmouth City Council,PCC,Environmental and Regulatory Services,Agricultural and Fisheries Services,Portsmouth International Port,Third Party Payments,Private contractors,28/02/2019,6286185,2949.8,VENDOR,KEN BROWN BOATS LTD,100926
Portsmouth City Council,PCC,Environmental and Regulatory Services,Agricultural and Fisheries Services,Portsmouth International Port,Third Party Payments,Private contractors,28/02/2019,6286185,382.6,VENDOR,KEN BROWN BOATS LTD,100926
Portsmouth City Council,PCC,Cultural and Related Services,Culture and Heritage,Culture & City Development,Premises-Related Expenditure,"Repairs, alterations and maintenance of buildings",21/02/2019,6284829,1550.9,COMPANY,BARHILL PLANT LTD,100355
Portsmouth City Council,PCC,Cultural and Related Services,Culture and Heritage,Culture & City Development,Premises-Related Expenditure,"Repairs, alterations and maintenance of buildings",21/02/2019,6284829,0.06,COMPANY,BARHILL PLANT LTD,100355
Portsmouth City Council,PCC,Adult Social Care,Social Care Activities,Adult Services,Third Party Payments,Other establishments,04/02/2019,6281058,2493.56,VENDOR,APEX PROPERTY VENTURES LTD,108437
Portsmouth City Council,PCC,Adult Social Care,Social Care Activities,Adult Services,Third Party Payments,Other establishments,04/02/2019,6281058,168.96,VENDOR,APEX PROPERTY VENTURES LTD,108437
Portsmouth City Council,PCC,Adult Social Care,Physical Support Older People (85+),Adult Services,Third Party Payments,Other establishments,04/02/2019,6281058,229.04,VENDOR,APEX PROPERTY VENTURES LTD,108437
Portsmouth City Council,PCC,Adult Social Care,Physical Support Older People (85+),Adult Services,Third Party Payments,Other establishments,04/02/2019,6281058,396.73,VENDOR,APEX PROPERTY VENTURES LTD,108437
Portsmouth City Council,PCC,Adult Social Care,Social Care Activities,Adult Services,Third Party Payments,Other establishments,18/02/2019,6283580,11443.82,VENDOR,APEX PROPERTY VENTURES LTD,108437
Portsmouth City Council,PCC,Adult Social Care,Social Care Activities,Adult Services,Third Party Payments,Other establishments,04/02/2019,6281058,417.18,VENDOR,APEX PROPERTY VENTURES LTD,108437
Portsmouth City Council,PCC,Adult Social Care,Physical Support Older People (85+),Adult Services,Third Party Payments,Other establishments,04/02/2019,6281058,44.99,VENDOR,APEX PROPERTY VENTURES LTD,108437
Portsmouth City Council,PCC,Adult Social Care,Social Care Activities,Adult Services,Third Party Payments,Other establishments,04/02/2019,6281058,2274.04,VENDOR,APEX PROPERTY VENTURES LTD,108437
Portsmouth City Council,PCC,Adult Social Care,Physical Support Adults (18 - 64),Adult Services,Third Party Payments,Other establishments,04/02/2019,6281058,179.96,VENDOR,APEX PROPERTY VENTURES LTD,108437
Portsmouth City Council,PCC,Adult Social Care,Physical Support Older People (85+),Adult Services,Third Party Payments,Other establishments,04/02/2019,6281058,638.04,VENDOR,APEX PROPERTY VENTURES LTD,108437
Portsmouth City Council,PCC,Adult Social Care,Physical Support Older People (85+),Adult Services,Third Party Payments,Other establishments,04/02/2019,6281058,2290.4,VENDOR,APEX PROPERTY VENTURES LTD,108437
Portsmouth City Council,PCC,Adult Social Care,Physical Support Older People (85+),Adult Services,Third Party Payments,Other establishments,04/02/2019,6281058,478.53,VENDOR,APEX PROPERTY VENTURES LTD,108437
Portsmouth City Council,PCC,Adult Social Care,Physical Support Older People (85+),Adult Services,Third Party Payments,Other establishments,04/02/2019,6281058,359.92,VENDOR,APEX PROPERTY VENTURES LTD,108437
Portsmouth City Council,PCC,Adult Social Care,Physical Support Older People (85+),Adult Services,Third Party Payments,Other establishments,04/02/2019,6281058,302.66,VENDOR,APEX PROPERTY VENTURES LTD,108437
Portsmouth City Council,PCC,Adult Social Care,Physical Support Older People (85+),Adult Services,Third Party Payments,Other establishments,04/02/2019,6281058,916.16,VENDOR,APEX PROPERTY VENTURES LTD,108437
Portsmouth City Council,PCC,Adult Social Care,Physical Support Older People (85+),Adult Services,Third Party Payments,Other establishments,04/02/2019,6281058,343.56,VENDOR,APEX PROPERTY VENTURES LTD,108437
Portsmouth City Council,PCC,Adult Social Care,Physical Support Older People (85+),Adult Services,Third Party Payments,Other establishments,07/02/2019,6281884,1832.32,VENDOR,APEX PROPERTY VENTURES LTD,108437
Portsmouth City Council,PCC,Adult Social Care,Physical Support Older People (85+),Adult Services,Third Party Payments,Other establishments,04/02/2019,6281058,24.54,VENDOR,APEX PROPERTY VENTURES LTD,108437
Portsmouth City Council,PCC,Adult Social Care,Mental Health Support Older People (65 - 74),Adult Services,Third Party Payments,Other establishments,04/02/2019,6281058,711.66,VENDOR,APEX PROPERTY VENTURES LTD,108437
Portsmouth City Council,PCC,Adult Social Care,Physical Support Older People (85+),Adult Services,Third Party Payments,Other establishments,04/02/2019,6281058,576.69,VENDOR,APEX PROPERTY VENTURES LTD,108437
Portsmouth City Council,PCC,Adult Social Care,Physical Support Older People (85+),Adult Services,Third Party Payments,Other establishments,04/02/2019,6281058,229.04,VENDOR,APEX PROPERTY VENTURES LTD,108437
Portsmouth City Council,PCC,Adult Social Care,Physical Support Older People (85+),Adult Services,Third Party Payments,Other establishments,04/02/2019,6281058,687.12,VENDOR,APEX PROPERTY VENTURES LTD,108437
Portsmouth City Council,PCC,Adult Social Care,Physical Support Older People (85+),Adult Services,Third Party Payments,Other establishments,04/02/2019,6281058,8.18,VENDOR,APEX PROPERTY VENTURES LTD,108437
Portsmouth City Council,PCC,Adult Social Care,Physical Support Older People (85+),Adult Services,Third Party Payments,Other establishments,04/02/2019,6281058,2049.09,VENDOR,APEX PROPERTY VENTURES LTD,108437
Portsmouth City Council,PCC,Adult Social Care,Physical Support Older People (85+),Adult Services,Third Party Payments,Other establishments,04/02/2019,6281058,1832.32,VENDOR,APEX PROPERTY VENTURES LTD,108437
Portsmouth City Council,PCC,Adult Social Care,Physical Support Older People (85+),Adult Services,Third Party Payments,Other establishments,04/02/2019,6281058,229.04,VENDOR,APEX PROPERTY VENTURES LTD,108437
Portsmouth City Council,PCC,Adult Social Care,Physical Support Older People (85+),Adult Services,Third Party Payments,Other establishments,04/02/2019,6281058,687.12,VENDOR,APEX PROPERTY VENTURES LTD,108437
Portsmouth City Council,PCC,Adult Social Care,Physical Support Older People (85+),Adult Services,Third Party Payments,Other establishments,04/02/2019,6281058,2049.09,VENDOR,APEX PROPERTY VENTURES LTD,108437
Portsmouth City Council,PCC,Adult Social Care,Physical Support Older People (85+),Adult Services,Third Party Payments,Other establishments,04/02/2019,6281058,229.04,VENDOR,APEX PROPERTY VENTURES LTD,108437
Portsmouth City Council,PCC,Adult Social Care,Physical Support Older People (85+),Adult Services,Third Party Payments,Other establishments,04/02/2019,6281058,65.44,VENDOR,APEX PROPERTY VENTURES LTD,108437
Portsmouth City Council,PCC,Adult Social Care,Physical Support Older People (85+),Adult Services,Third Party Payments,Other establishments,04/02/2019,6281058,65.44,VENDOR,APEX PROPERTY VENTURES LTD,108437
Portsmouth City Council,PCC,Adult Social Care,Physical Support Older People (85+),Adult Services,Third Party Payments,Other establishments,04/02/2019,6281058,1832.32,VENDOR,APEX PROPERTY VENTURES LTD,108437
Portsmouth City Council,PCC,Adult Social Care,Physical Support Adults (18 - 64),Adult Services,Third Party Payments,Other establishments,04/02/2019,6281058,335.38,VENDOR,APEX PROPERTY VENTURES LTD,108437
Portsmouth City Council,PCC,Adult Social Care,Physical Support Older People (85+),Adult Services,Third Party Payments,Other establishments,04/02/2019,6281058,233.13,VENDOR,APEX PROPERTY VENTURES LTD,108437
Portsmouth City Council,PCC,Adult Social Care,Physical Support Older People (85+),Adult Services,Third Party Payments,Other establishments,04/02/2019,6281058,916.16,VENDOR,APEX PROPERTY VENTURES LTD,108437
Portsmouth City Council,PCC,Adult Social Care,Physical Support Older People (85+),Adult Services,Third Party Payments,Other establishments,04/02/2019,6281058,572.6,VENDOR,APEX PROPERTY VENTURES LTD,108437
Portsmouth City Council,PCC,Adult Social Care,Physical Support Older People (85+),Adult Services,Third Party Payments,Other establishments,04/02/2019,6281058,580.78,VENDOR,APEX PROPERTY VENTURES LTD,108437
Portsmouth City Council,PCC,Adult Social Care,Physical Support Adults (18 - 64),Adult Services,Third Party Payments,Other establishments,04/02/2019,6281058,3206.56,VENDOR,APEX PROPERTY VENTURES LTD,108437
Portsmouth City Council,PCC,Adult Social Care,Physical Support Older People (85+),Adult Services,Third Party Payments,Other establishments,04/02/2019,6281058,409,VENDOR,APEX PROPERTY VENTURES LTD,108437
Portsmouth City Council,PCC,Adult Social Care,Physical Support Older People (85+),Adult Services,Third Party Payments,Other establishments,04/02/2019,6281058,65.44,VENDOR,APEX PROPERTY VENTURES LTD,108437
Portsmouth City Council,PCC,Adult Social Care,Physical Support Older People (85+),Adult Services,Third Party Payments,Other establishments,04/02/2019,6281058,1286.94,VENDOR,APEX PROPERTY VENTURES LTD,108437
Portsmouth City Council,PCC,Adult Social Care,Physical Support Older People (85+),Adult Services,Third Party Payments,Other establishments,04/02/2019,6281058,98.16,VENDOR,APEX PROPERTY VENTURES LTD,108437
Portsmouth City Council,PCC,Adult Social Care,Physical Support Older People (85+),Adult Services,Third Party Payments,Other establishments,04/02/2019,6281058,57.26,VENDOR,APEX PROPERTY VENTURES LTD,108437
Portsmouth City Council,PCC,Adult Social Care,Physical Support Older People (85+),Adult Services,Third Party Payments,Other establishments,04/02/2019,6281058,384.46,VENDOR,APEX PROPERTY VENTURES LTD,108437
Portsmouth City Council,PCC,Adult Social Care,Physical Support Older People (85+),Adult Services,Third Party Payments,Other establishments,04/02/2019,6281058,478.53,VENDOR,APEX PROPERTY VENTURES LTD,108437
Portsmouth City Council,PCC,Adult Social Care,Physical Support Older People (85+),Adult Services,Third Party Payments,Other establishments,04/02/2019,6281058,662.58,VENDOR,APEX PROPERTY VENTURES LTD,108437
Portsmouth City Council,PCC,Adult Social Care,Physical Support Older People (85+),Adult Services,Third Party Payments,Other establishments,04/02/2019,6281058,924.34,VENDOR,APEX PROPERTY VENTURES LTD,108437
Portsmouth City Council,PCC,Adult Social Care,Learning Disability Support  Adults (18 - 64),Adult Services,Third Party Payments,Other establishments,04/02/2019,6281058,785.28,VENDOR,APEX PROPERTY VENTURES LTD,108437
Portsmouth City Council,PCC,Adult Social Care,Physical Support Older People (85+),Adult Services,Third Party Payments,Other establishments,04/02/2019,6281058,458.08,VENDOR,APEX PROPERTY VENTURES LTD,108437
Portsmouth City Council,PCC,Adult Social Care,Physical Support Older People (85+),Adult Services,Third Party Payments,Other establishments,04/02/2019,6281058,98.16,VENDOR,APEX PROPERTY VENTURES LTD,108437
Portsmouth City Council,PCC,Adult Social Care,Physical Support Older People (85+),Adult Services,Third Party Payments,Other establishments,04/02/2019,6281058,699.39,VENDOR,APEX PROPERTY VENTURES LTD,108437
Portsmouth City Council,PCC,Adult Social Care,Physical Support Older People (85+),Adult Services,Third Party Payments,Other establishments,04/02/2019,6281058,537.2,VENDOR,APEX PROPERTY VENTURES LTD,108437
Portsmouth City Council,PCC,Adult Social Care,Social Support - Support for Carer,Adult Services,Third Party Payments,Other establishments,04/02/2019,6281058,112.64,VENDOR,APEX PROPERTY VENTURES LTD,108437
Portsmouth City Council,PCC,Adult Social Care,Physical Support Older People (85+),Adult Services,Third Party Payments,Other establishments,04/02/2019,6281058,65.44,VENDOR,APEX PROPERTY VENTURES LTD,108437
Portsmouth City Council,PCC,Adult Social Care,Physical Support Adults (18 - 64),Adult Services,Third Party Payments,Other establishments,04/02/2019,6281058,384.46,VENDOR,APEX PROPERTY VENTURES LTD,108437
Portsmouth City Council,PCC,Adult Social Care,Physical Support Older People (85+),Adult Services,Third Party Payments,Other establishments,04/02/2019,6281058,572.6,VENDOR,APEX PROPERTY VENTURES LTD,108437
Portsmouth City Council,PCC,Adult Social Care,Physical Support Older People (85+),Adult Services,Third Party Payments,Other establishments,04/02/2019,6281058,2175.88,VENDOR,APEX PROPERTY VENTURES LTD,108437
Portsmouth City Council,PCC,Adult Social Care,Physical Support Older People (85+),Adult Services,Third Party Payments,Other establishments,04/02/2019,6281058,801.64,VENDOR,APEX PROPERTY VENTURES LTD,108437
Portsmouth City Council,PCC,Adult Social Care,Physical Support Older People (85+),Adult Services,Third Party Payments,Other establishments,04/02/2019,6281058,343.56,VENDOR,APEX PROPERTY VENTURES LTD,108437
Portsmouth City Council,PCC,Adult Social Care,Physical Support Adults (18 - 64),Adult Services,Third Party Payments,Other establishments,04/02/2019,6281058,49.08,VENDOR,APEX PROPERTY VENTURES LTD,108437
Portsmouth City Council,PCC,Adult Social Care,Physical Support Older People (85+),Adult Services,Third Party Payments,Other establishments,04/02/2019,6281058,1586.92,VENDOR,APEX PROPERTY VENTURES LTD,108437
Portsmouth City Council,PCC,Adult Social Care,Physical Support Adults (18 - 64),Adult Services,Third Party Payments,Other establishments,04/02/2019,6281058,229.04,VENDOR,APEX PROPERTY VENTURES LTD,108437
Portsmouth City Council,PCC,Adult Social Care,Physical Support Adults (18 - 64),Adult Services,Third Party Payments,Other establishments,04/02/2019,6281058,98.16,VENDOR,APEX PROPERTY VENTURES LTD,108437
Portsmouth City Council,PCC,Adult Social Care,Physical Support Older People (85+),Adult Services,Third Party Payments,Other establishments,04/02/2019,6281058,1832.32,VENDOR,APEX PROPERTY VENTURES LTD,108437
Portsmouth City Council,PCC,Adult Social Care,Physical Support Adults (18 - 64),Adult Services,Third Party Payments,Other establishments,04/02/2019,6281058,458.08,VENDOR,APEX PROPERTY VENTURES LTD,108437
Portsmouth City Council,PCC,Adult Social Care,Physical Support Older People (85+),Adult Services,Third Party Payments,Other establishments,04/02/2019,6281058,229.04,VENDOR,APEX PROPERTY VENTURES LTD,108437
Portsmouth City Council,PCC,Adult Social Care,Physical Support Older People (85+),Adult Services,Third Party Payments,Other establishments,04/02/2019,6281058,993.87,VENDOR,APEX PROPERTY VENTURES LTD,108437
Portsmouth City Council,PCC,Adult Social Care,Physical Support Older People (85+),Adult Services,Third Party Payments,Other establishments,04/02/2019,6281058,1558.29,VENDOR,APEX PROPERTY VENTURES LTD,108437
Portsmouth City Council,PCC,Adult Social Care,Physical Support Older People (85+),Adult Services,Third Party Payments,Other establishments,04/02/2019,6281058,568.51,VENDOR,APEX PROPERTY VENTURES LTD,108437
Portsmouth City Council,PCC,Adult Social Care,Physical Support Older People (85+),Adult Services,Third Party Payments,Other establishments,04/02/2019,6281058,1374.24,VENDOR,APEX PROPERTY VENTURES LTD,108437
Portsmouth City Council,PCC,Adult Social Care,Physical Support Adults (18 - 64),Adult Services,Third Party Payments,Other establishments,04/02/2019,6281058,295.68,VENDOR,APEX PROPERTY VENTURES LTD,108437
Portsmouth City Council,PCC,Adult Social Care,Physical Support Older People (85+),Adult Services,Third Party Payments,Other establishments,04/02/2019,6281058,212.68,VENDOR,APEX PROPERTY VENTURES LTD,108437
Portsmouth City Council,PCC,Adult Social Care,Mental Health Support Older People (65 - 74),Adult Services,Third Party Payments,Other establishments,04/02/2019,6281058,858.9,VENDOR,APEX PROPERTY VENTURES LTD,108437
Portsmouth City Council,PCC,Adult Social Care,Physical Support Older People (85+),Adult Services,Third Party Payments,Other establishments,04/02/2019,6281058,229.04,VENDOR,APEX PROPERTY VENTURES LTD,108437
Portsmouth City Council,PCC,Adult Social Care,Physical Support Older People (85+),Adult Services,Third Party Payments,Other establishments,04/02/2019,6281058,339.47,VENDOR,APEX PROPERTY VENTURES LTD,108437
Portsmouth City Council,PCC,Adult Social Care,Physical Support Older People (85+),Adult Services,Third Party Payments,Other establishments,04/02/2019,6281058,16.36,VENDOR,APEX PROPERTY VENTURES LTD,108437
Portsmouth City Council,PCC,Adult Social Care,Physical Support Older People (85+),Adult Services,Third Party Payments,Other establishments,04/02/2019,6281058,16.36,VENDOR,APEX PROPERTY VENTURES LTD,108437
Portsmouth City Council,PCC,Adult Social Care,Physical Support Older People (85+),Adult Services,Third Party Payments,Other establishments,04/02/2019,6281058,433.54,VENDOR,APEX PROPERTY VENTURES LTD,108437
Portsmouth City Council,PCC,Adult Social Care,Physical Support Older People (85+),Adult Services,Third Party Payments,Other establishments,04/02/2019,6281058,196.32,VENDOR,APEX PROPERTY VENTURES LTD,108437
Portsmouth City Council,PCC,Adult Social Care,Physical Support Older People (85+),Adult Services,Third Party Payments,Other establishments,04/02/2019,6281058,1603.28,VENDOR,APEX PROPERTY VENTURES LTD,108437
Portsmouth City Council,PCC,Adult Social Care,Physical Support Older People (85+),Adult Services,Third Party Payments,Other establishments,04/02/2019,6281058,2073.63,VENDOR,APEX PROPERTY VENTURES LTD,108437
Portsmouth City Council,PCC,Adult Social Care,Physical Support Older People (85+),Adult Services,Third Party Payments,Other establishments,04/02/2019,6281058,229.04,VENDOR,APEX PROPERTY VENTURES LTD,108437
Portsmouth City Council,PCC,Adult Social Care,Physical Support Adults (18 - 64),Adult Services,Third Party Payments,Other establishments,04/02/2019,6281058,122.7,VENDOR,APEX PROPERTY VENTURES LTD,108437
Portsmouth City Council,PCC,Adult Social Care,Physical Support Older People (85+),Adult Services,Third Party Payments,Other establishments,04/02/2019,6281058,204.5,VENDOR,APEX PROPERTY VENTURES LTD,108437
Portsmouth City Council,PCC,Adult Social Care,Physical Support Older People (85+),Adult Services,Third Party Payments,Other establishments,04/02/2019,6281058,229.04,VENDOR,APEX PROPERTY VENTURES LTD,108437
Portsmouth City Council,PCC,Adult Social Care,Physical Support Older People (85+),Adult Services,Third Party Payments,Other establishments,04/02/2019,6281058,2274.04,VENDOR,APEX PROPERTY VENTURES LTD,108437
Portsmouth City Council,PCC,Adult Social Care,Physical Support Older People (85+),Adult Services,Third Party Payments,Other establishments,04/02/2019,6281058,147.24,VENDOR,APEX PROPERTY VENTURES LTD,108437
Portsmouth City Council,PCC,Adult Social Care,Physical Support Older People (85+),Adult Services,Third Party Payments,Other establishments,04/02/2019,6281058,147.24,VENDOR,APEX PROPERTY VENTURES LTD,108437
Portsmouth City Council,PCC,Adult Social Care,Physical Support Older People (85+),Adult Services,Third Party Payments,Other establishments,04/02/2019,6281058,552.15,VENDOR,APEX PROPERTY VENTURES LTD,108437
Portsmouth City Council,PCC,Adult Social Care,Physical Support Adults (18 - 64),Adult Services,Third Party Payments,Other establishments,04/02/2019,6281058,200.41,VENDOR,APEX PROPERTY VENTURES LTD,108437
Portsmouth City Council,PCC,Adult Social Care,Learning Disability Support  Adults (18 - 64),Adult Services,Third Party Payments,Other establishments,04/02/2019,6281058,155.42,VENDOR,APEX PROPERTY VENTURES LTD,108437
Portsmouth City Council,PCC,Adult Social Care,Physical Support Older People (85+),Adult Services,Third Party Payments,Other establishments,04/02/2019,6281058,343.56,VENDOR,APEX PROPERTY VENTURES LTD,108437
Portsmouth City Council,PCC,Adult Social Care,Physical Support Older People (85+),Adult Services,Third Party Payments,Other establishments,04/02/2019,6281058,106.34,VENDOR,APEX PROPERTY VENTURES LTD,108437
Portsmouth City Council,PCC,Adult Social Care,Physical Support Older People (85+),Adult Services,Third Party Payments,Other establishments,04/02/2019,6281058,2061.36,VENDOR,APEX PROPERTY VENTURES LTD,108437
Portsmouth City Council,PCC,Adult Social Care,Physical Support Adults (18 - 64),Adult Services,Third Party Payments,Other establishments,04/02/2019,6281058,233.13,VENDOR,APEX PROPERTY VENTURES LTD,108437
Portsmouth City Council,PCC,Adult Social Care,Physical Support Older People (85+),Adult Services,Third Party Payments,Other establishments,04/02/2019,6281058,139.06,VENDOR,APEX PROPERTY VENTURES LTD,108437
Portsmouth City Council,PCC,Adult Social Care,Physical Support Older People (85+),Adult Services,Third Party Payments,Other establishments,04/02/2019,6281058,756.65,VENDOR,APEX PROPERTY VENTURES LTD,108437
Portsmouth City Council,PCC,Adult Social Care,Physical Support Older People (85+),Adult Services,Third Party Payments,Other establishments,04/02/2019,6281058,98.16,VENDOR,APEX PROPERTY VENTURES LTD,108437
Portsmouth City Council,PCC,Adult Social Care,Physical Support Older People (85+),Adult Services,Third Party Payments,Other establishments,04/02/2019,6281058,98.16,VENDOR,APEX PROPERTY VENTURES LTD,108437
Portsmouth City Council,PCC,Adult Social Care,Physical Support Older People (85+),Adult Services,Third Party Payments,Other establishments,04/02/2019,6281058,760.74,VENDOR,APEX PROPERTY VENTURES LTD,108437
Portsmouth City Council,PCC,Adult Social Care,Physical Support Older People (85+),Adult Services,Third Party Payments,Other establishments,04/02/2019,6281058,114.52,VENDOR,APEX PROPERTY VENTURES LTD,108437
Portsmouth City Council,PCC,Adult Social Care,Physical Support Adults (18 - 64),Adult Services,Third Party Payments,Other establishments,04/02/2019,6281058,114.52,VENDOR,APEX PROPERTY VENTURES LTD,108437
Portsmouth City Council,PCC,Adult Social Care,Physical Support Older People (85+),Adult Services,Third Party Payments,Other establishments,04/02/2019,6281058,458.08,VENDOR,APEX PROPERTY VENTURES LTD,108437
Portsmouth City Council,PCC,Adult Social Care,Physical Support Adults (18 - 64),Adult Services,Third Party Payments,Other establishments,04/02/2019,6281058,458.08,VENDOR,APEX PROPERTY VENTURES LTD,108437
Portsmouth City Council,PCC,Adult Social Care,Physical Support Older People (85+),Adult Services,Third Party Payments,Other establishments,04/02/2019,6281058,343.56,VENDOR,APEX PROPERTY VENTURES LTD,108437
Portsmouth City Council,PCC,Adult Social Care,Physical Support Older People (85+),Adult Services,Third Party Payments,Other establishments,04/02/2019,6281058,57.26,VENDOR,APEX PROPERTY VENTURES LTD,108437
Portsmouth City Council,PCC,Adult Social Care,Physical Support Older People (85+),Adult Services,Third Party Payments,Other establishments,04/02/2019,6281058,425.36,VENDOR,APEX PROPERTY VENTURES LTD,108437
Portsmouth City Council,PCC,Adult Social Care,Physical Support Older People (85+),Adult Services,Third Party Payments,Other establishments,04/02/2019,6281058,204.5,VENDOR,APEX PROPERTY VENTURES LTD,108437
Portsmouth City Council,PCC,Adult Social Care,Physical Support Older People (85+),Adult Services,Third Party Payments,Other establishments,04/02/2019,6281058,188.14,VENDOR,APEX PROPERTY VENTURES LTD,108437
Portsmouth City Council,PCC,Adult Social Care,Physical Support Older People (85+),Adult Services,Third Party Payments,Other establishments,04/02/2019,6281058,997.96,VENDOR,APEX PROPERTY VENTURES LTD,108437
Portsmouth City Council,PCC,Adult Social Care,Physical Support Older People (85+),Adult Services,Third Party Payments,Other establishments,04/02/2019,6281058,462.17,VENDOR,APEX PROPERTY VENTURES LTD,108437
Portsmouth City Council,PCC,Adult Social Care,Physical Support Older People (85+),Adult Services,Third Party Payments,Other establishments,04/02/2019,6281058,1374.24,VENDOR,APEX PROPERTY VENTURES LTD,108437
Portsmouth City Council,PCC,Adult Social Care,Physical Support Older People (85+),Adult Services,Third Party Payments,Other establishments,04/02/2019,6281058,668.03,VENDOR,APEX PROPERTY VENTURES LTD,108437
Portsmouth City Council,PCC,Adult Social Care,Learning Disability Support  Adults (18 - 64),Adult Services,Third Party Payments,Other establishments,04/02/2019,6281058,204.5,VENDOR,APEX PROPERTY VENTURES LTD,108437
Portsmouth City Council,PCC,Adult Social Care,Learning Disability Support  Adults (18 - 64),Adult Services,Third Party Payments,Other establishments,04/02/2019,6281058,274.03,VENDOR,APEX PROPERTY VENTURES LTD,108437
Portsmouth City Council,PCC,Adult Social Care,Physical Support Older People (85+),Adult Services,Third Party Payments,Other establishments,04/02/2019,6281058,2290.4,VENDOR,APEX PROPERTY VENTURES LTD,108437
Portsmouth City Council,PCC,Adult Social Care,Physical Support Older People (85+),Adult Services,Third Party Payments,Other establishments,04/02/2019,6281058,507.16,VENDOR,APEX PROPERTY VENTURES LTD,108437
Portsmouth City Council,PCC,Adult Social Care,Physical Support Adults (18 - 64),Adult Services,Third Party Payments,Other establishments,04/02/2019,6281058,613.5,VENDOR,APEX PROPERTY VENTURES LTD,108437
Portsmouth City Council,PCC,Adult Social Care,Physical Support Adults (18 - 64),Adult Services,Third Party Payments,Other establishments,04/02/2019,6281058,229.04,VENDOR,APEX PROPERTY VENTURES LTD,108437
Portsmouth City Council,PCC,Adult Social Care,Physical Support Older People (85+),Adult Services,Third Party Payments,Other establishments,04/02/2019,6281058,458.08,VENDOR,APEX PROPERTY VENTURES LTD,108437
Portsmouth City Council,PCC,Adult Social Care,Physical Support Older People (85+),Adult Services,Third Party Payments,Other establishments,04/02/2019,6281058,171.78,VENDOR,APEX PROPERTY VENTURES LTD,108437
Portsmouth City Council,PCC,Adult Social Care,Physical Support Older People (85+),Adult Services,Third Party Payments,Other establishments,04/02/2019,6281058,130.88,VENDOR,APEX PROPERTY VENTURES LTD,108437
Portsmouth City Council,PCC,Adult Social Care,Social Care Activities,Adult Services,Third Party Payments,Other establishments,04/02/2019,6281058,409,VENDOR,APEX PROPERTY VENTURES LTD,108437
Portsmouth City Council,PCC,Adult Social Care,Physical Support Older People (85+),Adult Services,Third Party Payments,Other establishments,04/02/2019,6281058,588.96,VENDOR,APEX PROPERTY VENTURES LTD,108437
Portsmouth City Council,PCC,Adult Social Care,Physical Support Older People (85+),Adult Services,Third Party Payments,Other establishments,04/02/2019,6281058,1832.32,VENDOR,APEX PROPERTY VENTURES LTD,108437
Portsmouth City Council,PCC,Adult Social Care,Physical Support Older People (85+),Adult Services,Third Party Payments,Other establishments,04/02/2019,6281058,204.5,VENDOR,APEX PROPERTY VENTURES LTD,108437
Portsmouth City Council,PCC,Adult Social Care,Physical Support Older People (85+),Adult Services,Third Party Payments,Other establishments,04/02/2019,6281058,229.04,VENDOR,APEX PROPERTY VENTURES LTD,108437
Portsmouth City Council,PCC,Adult Social Care,Physical Support Adults (18 - 64),Adult Services,Third Party Payments,Other establishments,04/02/2019,6281058,339.47,VENDOR,APEX PROPERTY VENTURES LTD,108437
Portsmouth City Council,PCC,Adult Social Care,Physical Support Adults (18 - 64),Adult Services,Third Party Payments,Other establishments,04/02/2019,6281058,298.57,VENDOR,APEX PROPERTY VENTURES LTD,108437
Portsmouth City Council,PCC,Adult Social Care,Physical Support Older People (85+),Adult Services,Third Party Payments,Other establishments,04/02/2019,6281058,458.08,VENDOR,APEX PROPERTY VENTURES LTD,108437
Portsmouth City Council,PCC,Adult Social Care,Physical Support Older People (85+),Adult Services,Third Party Payments,Other establishments,04/02/2019,6281058,1795.51,VENDOR,APEX PROPERTY VENTURES LTD,108437
Portsmouth City Council,PCC,Adult Social Care,Physical Support Older People (85+),Adult Services,Third Party Payments,Other establishments,04/02/2019,6281058,98.16,VENDOR,APEX PROPERTY VENTURES LTD,108437
Portsmouth City Council,PCC,Adult Social Care,Physical Support Older People (85+),Adult Services,Third Party Payments,Other establishments,04/02/2019,6281058,449.9,VENDOR,APEX PROPERTY VENTURES LTD,108437
Portsmouth City Council,PCC,Adult Social Care,Physical Support Older People (85+),Adult Services,Third Party Payments,Other establishments,04/02/2019,6281058,282.21,VENDOR,APEX PROPERTY VENTURES LTD,108437
Portsmouth City Council,PCC,Adult Social Care,Learning Disability Support  Adults (18 - 64),Adult Services,Third Party Payments,Other establishments,04/02/2019,6281058,139.06,VENDOR,APEX PROPERTY VENTURES LTD,108437
Portsmouth City Council,PCC,Adult Social Care,Physical Support Older People (85+),Adult Services,Third Party Payments,Other establishments,04/02/2019,6281058,49.08,VENDOR,APEX PROPERTY VENTURES LTD,108437
Portsmouth City Council,PCC,Adult Social Care,Physical Support Older People (85+),Adult Services,Third Party Payments,Other establishments,04/02/2019,6281058,233.13,VENDOR,APEX PROPERTY VENTURES LTD,108437
Portsmouth City Council,PCC,Housing Revenue Account,Special Services,"Housing, Neighbourhood and Building Services",Premises-Related Expenditure,Energy costs,19/02/2019,6283855,9.88,VENDOR,TOTAL GAS & POWER LTD,133467
Portsmouth City Council,PCC,Housing Revenue Account,Special Services,"Housing, Neighbourhood and Building Services",Premises-Related Expenditure,Energy costs,20/02/2019,6284372,169.95,VENDOR,TOTAL GAS & POWER LTD,133467
Portsmouth City Council,PCC,Housing Revenue Account,Special Services,"Housing, Neighbourhood and Building Services",Premises-Related Expenditure,Energy costs,20/02/2019,6284372,277.97,VENDOR,TOTAL GAS & POWER LTD,133467
Portsmouth City Council,PCC,Cultural and Related Services,Open Spaces,Culture & City Development,Premises-Related Expenditure,Grounds maintenance costs,27/02/2019,6285560,2315.66,COMPANY,BARHILL PLANT LTD,100355
Portsmouth City Council,PCC,Cultural and Related Services,Open Spaces,Culture & City Development,Third Party Payments,Private contractors,04/02/2019,6281065,210,COMPANY,BARHILL PLANT LTD,100355
Portsmouth City Council,PCC,Other,Suspense and Capital Schemes,Capital - Culture Leisure & Sport,Capital Charges,Capital Expenditure (WIP),04/02/2019,6281065,3061.09,COMPANY,BARHILL PLANT LTD,100355
Portsmouth City Council,PCC,Other,Suspense and Capital Schemes,Capital - Culture Leisure & Sport,Capital Charges,Capital Expenditure (WIP),04/02/2019,6281065,2520.9,COMPANY,BARHILL PLANT LTD,100355
Portsmouth City Council,PCC,Other,Suspense and Capital Schemes,Capital - Culture Leisure & Sport,Capital Charges,Capital Expenditure (WIP),04/02/2019,6281065,720.25,COMPANY,BARHILL PLANT LTD,100355
Portsmouth City Council,PCC,Cultural and Related Services,Open Spaces,Culture & City Development,Premises-Related Expenditure,"Repairs, alterations and maintenance of buildings",04/02/2019,6281065,550,COMPANY,BARHILL PLANT LTD,100355
Portsmouth City Council,PCC,Cultural and Related Services,Open Spaces,Culture & City Development,Third Party Payments,Private contractors,04/02/2019,6281065,299.72,COMPANY,BARHILL PLANT LTD,100355
Portsmouth City Council,PCC,Cultural and Related Services,Open Spaces,Culture & City Development,Third Party Payments,Private contractors,04/02/2019,6281065,150,COMPANY,BARHILL PLANT LTD,100355
Portsmouth City Council,PCC,Highways and Transport Services,Parking Services,Regeneration,Premises-Related Expenditure,"Repairs, alterations and maintenance of buildings",13/02/2019,6282667,1573.8,COMPANY,BARHILL PLANT LTD,100355
Portsmouth City Council,PCC,Cultural and Related Services,Open Spaces,Culture & City Development,Third Party Payments,Private contractors,26/02/2019,6285427,78.66,COMPANY,BARHILL PLANT LTD,100355
Portsmouth City Council,PCC,Cultural and Related Services,Open Spaces,Culture & City Development,Third Party Payments,Private contractors,26/02/2019,6285427,385.72,COMPANY,BARHILL PLANT LTD,100355
Portsmouth City Council,PCC,Cultural and Related Services,Open Spaces,Culture & City Development,Third Party Payments,Private contractors,26/02/2019,6285427,141.5,COMPANY,BARHILL PLANT LTD,100355
Portsmouth City Council,PCC,Cultural and Related Services,Open Spaces,Culture & City Development,Premises-Related Expenditure,Grounds maintenance costs,27/02/2019,6285560,3210,COMPANY,BARHILL PLANT LTD,100355
Portsmouth City Council,PCC,Children's and Education Services,Children Looked After,Children's Services and Education,Third Party Payments,Other establishments,07/02/2019,6281947,4403.82,VENDOR,FAIRWAYS CARE (UK) LTD,111915
Portsmouth City Council,PCC,Children's and Education Services,Children Looked After,Children's Services and Education,Third Party Payments,Other establishments,07/02/2019,6281947,-461.43,VENDOR,FAIRWAYS CARE (UK) LTD,111915
Portsmouth City Council,PCC,Children's and Education Services,Children Looked After,Children's Services and Education,Third Party Payments,Other establishments,07/02/2019,6281947,4942.18,VENDOR,FAIRWAYS CARE (UK) LTD,111915
Portsmouth City Council,PCC,Children's and Education Services,Asylum seekers,Children's Services and Education,Third Party Payments,Other establishments,07/02/2019,6281947,2368.92,VENDOR,FAIRWAYS CARE (UK) LTD,111915
Portsmouth City Council,PCC,Housing Revenue Account,Special Services,"Housing, Neighbourhood and Building Services",Premises-Related Expenditure,Energy costs,20/02/2019,6284372,89.09,VENDOR,TOTAL GAS & POWER LTD,133467
Portsmouth City Council,PCC,Housing Revenue Account,Special Services,"Housing, Neighbourhood and Building Services",Premises-Related Expenditure,Energy costs,20/02/2019,6284372,181.78,VENDOR,TOTAL GAS & POWER LTD,133467
Portsmouth City Council,PCC,Housing Revenue Account,Special Services,"Housing, Neighbourhood and Building Services",Premises-Related Expenditure,Energy costs,20/02/2019,6284372,85.36,VENDOR,TOTAL GAS & POWER LTD,133467
Portsmouth City Council,PCC,Children's and Education Services,Other Children and Family Services,Children's Services and Education,Third Party Payments,Private contractors,19/02/2019,6283823,545.6,VENDOR,RRC (RRCONSULTANCY) LTD,144765
Portsmouth City Council,PCC,Housing Revenue Account,Supervision and Management,"Housing, Neighbourhood and Building Services",Premises-Related Expenditure,Energy costs,20/02/2019,6284372,8.68,VENDOR,TOTAL GAS & POWER LTD,133467
Portsmouth City Council,PCC,Housing Revenue Account,Special Services,"Housing, Neighbourhood and Building Services",Premises-Related Expenditure,Energy costs,20/02/2019,6284372,13.33,VENDOR,TOTAL GAS & POWER LTD,133467
Portsmouth City Council,PCC,Housing Revenue Account,Special Services,"Housing, Neighbourhood and Building Services",Premises-Related Expenditure,Energy costs,20/02/2019,6284372,51.83,VENDOR,TOTAL GAS & POWER LTD,133467
Portsmouth City Council,PCC,Housing Revenue Account,Supervision and Management,"Housing, Neighbourhood and Building Services",Premises-Related Expenditure,Energy costs,20/02/2019,6284372,137.37,VENDOR,TOTAL GAS & POWER LTD,133467
Portsmouth City Council,PCC,Housing Revenue Account,Special Services,"Housing, Neighbourhood and Building Services",Premises-Related Expenditure,Energy costs,19/02/2019,6283855,405.01,VENDOR,TOTAL GAS & POWER LTD,133467
Portsmouth City Council,PCC,Housing Revenue Account,Special Services,"Housing, Neighbourhood and Building Services",Premises-Related Expenditure,Energy costs,20/02/2019,6284372,204.65,VENDOR,TOTAL GAS & POWER LTD,133467
Portsmouth City Council,PCC,Housing Revenue Account,Special Services,"Housing, Neighbourhood and Building Services",Premises-Related Expenditure,Energy costs,20/02/2019,6284372,436.92,VENDOR,TOTAL GAS & POWER LTD,133467
Portsmouth City Council,PCC,Housing Revenue Account,Special Services,"Housing, Neighbourhood and Building Services",Premises-Related Expenditure,Energy costs,20/02/2019,6284372,124.11,VENDOR,TOTAL GAS & POWER LTD,133467
Portsmouth City Council,PCC,Housing Revenue Account,Special Services,"Housing, Neighbourhood and Building Services",Premises-Related Expenditure,Energy costs,20/02/2019,6284372,19.88,VENDOR,TOTAL GAS & POWER LTD,133467
Portsmouth City Council,PCC,Children's and Education Services,Asylum seekers,Children's Services and Education,Third Party Payments,Other establishments,13/02/2019,6282771,2368.92,VENDOR,FAIRWAYS CARE (UK) LTD,111915
Portsmouth City Council,PCC,Children's and Education Services,Children Looked After,Children's Services and Education,Third Party Payments,Other establishments,13/02/2019,6282771,3177.13,VENDOR,FAIRWAYS CARE (UK) LTD,111915
Portsmouth City Council,PCC,Children's and Education Services,Children Looked After,Children's Services and Education,Third Party Payments,Other establishments,13/02/2019,6282771,2831.03,VENDOR,FAIRWAYS CARE (UK) LTD,111915
Portsmouth City Council,PCC,Children's and Education Services,Asylum seekers,Children's Services and Education,Third Party Payments,Other establishments,15/02/2019,6283467,3912.2,VENDOR,FAIRWAYS CARE (UK) LTD,111915
Portsmouth City Council,PCC,Adult Social Care,Social Care Activities,Adult Services,Third Party Payments,Other establishments,20/02/2019,6284323,490.8,VENDOR,KARE PLUS NATIONAL,142667
Portsmouth City Council,PCC,Adult Social Care,Social Care Activities,Adult Services,Third Party Payments,Other establishments,20/02/2019,6284323,1145.2,VENDOR,KARE PLUS NATIONAL,142667
Portsmouth City Council,PCC,Adult Social Care,Social Care Activities,Adult Services,Third Party Payments,Other establishments,20/02/2019,6284323,196.32,VENDOR,KARE PLUS NATIONAL,142667
Portsmouth City Council,PCC,Children's and Education Services,Asylum seekers,Children's Services and Education,Third Party Payments,Other establishments,26/02/2019,6285469,2368.92,VENDOR,FAIRWAYS CARE (UK) LTD,111915
Portsmouth City Council,PCC,Housing Services,Housing Benefits Administration,Community & Communication,Third Party Payments,Private contractors,20/02/2019,6284346,7824,VENDOR,PORTSMOUTH CITIZENS ADVICE BUREAU,104582
Portsmouth City Council,PCC,Housing Services,Housing Benefits Administration,Community & Communication,Third Party Payments,Private contractors,20/02/2019,6284346,4103,VENDOR,PORTSMOUTH CITIZENS ADVICE BUREAU,104582
Portsmouth City Council,PCC,Adult Social Care,Social Care Activities,Adult Services,Third Party Payments,Other establishments,01/02/2019,6280996,191.75,VENDOR,SAFEGUARDING GP,137636
Portsmouth City Council,PCC,Adult Social Care,Social Care Activities,Adult Services,Third Party Payments,Other establishments,28/02/2019,6286234,186.31,VENDOR,SAFEGUARDING GP,137636
Portsmouth City Council,PCC,Adult Social Care,Social Care Activities,Adult Services,Third Party Payments,Other establishments,28/02/2019,6286234,186.31,VENDOR,SAFEGUARDING GP,137636
Portsmouth City Council,PCC,Adult Social Care,Social Care Activities,Adult Services,Third Party Payments,Other establishments,28/02/2019,6286234,186.31,VENDOR,SAFEGUARDING GP,137636
Portsmouth City Council,PCC,Adult Social Care,Social Care Activities,Adult Services,Third Party Payments,Other establishments,28/02/2019,6286234,221.12,VENDOR,SAFEGUARDING GP,137636
Portsmouth City Council,PCC,Adult Social Care,Social Care Activities,Adult Services,Third Party Payments,Other establishments,28/02/2019,6286234,186.31,VENDOR,SAFEGUARDING GP,137636
Portsmouth City Council,PCC,Adult Social Care,Social Care Activities,Adult Services,Third Party Payments,Other establishments,28/02/2019,6286234,198.28,VENDOR,SAFEGUARDING GP,137636
Portsmouth City Council,PCC,Adult Social Care,Social Care Activities,Adult Services,Third Party Payments,Other establishments,28/02/2019,6286234,186.31,VENDOR,SAFEGUARDING GP,137636
Portsmouth City Council,PCC,Adult Social Care,Social Care Activities,Adult Services,Third Party Payments,Other establishments,28/02/2019,6286234,186.31,VENDOR,SAFEGUARDING GP,137636
Portsmouth City Council,PCC,Adult Social Care,Social Care Activities,Adult Services,Third Party Payments,Other establishments,25/02/2019,6285256,225,VENDOR,HAVANT AND EAST HANTS MIND ADVOCACY SERVICE,141653
Portsmouth City Council,PCC,Adult Social Care,Social Care Activities,Adult Services,Third Party Payments,Other establishments,25/02/2019,6285256,225,VENDOR,HAVANT AND EAST HANTS MIND ADVOCACY SERVICE,141653
Portsmouth City Council,PCC,Adult Social Care,Social Care Activities,Adult Services,Third Party Payments,Other establishments,25/02/2019,6285256,225,VENDOR,HAVANT AND EAST HANTS MIND ADVOCACY SERVICE,141653
Portsmouth City Council,PCC,Adult Social Care,Social Care Activities,Adult Services,Third Party Payments,Other establishments,25/02/2019,6285256,225,VENDOR,HAVANT AND EAST HANTS MIND ADVOCACY SERVICE,141653
Portsmouth City Council,PCC,Adult Social Care,Social Care Activities,Adult Services,Third Party Payments,Other establishments,25/02/2019,6285256,150,VENDOR,HAVANT AND EAST HANTS MIND ADVOCACY SERVICE,141653
Portsmouth City Council,PCC,Adult Social Care,Social Care Activities,Adult Services,Third Party Payments,Other establishments,25/02/2019,6285256,150,VENDOR,HAVANT AND EAST HANTS MIND ADVOCACY SERVICE,141653
Portsmouth City Council,PCC,Adult Social Care,Social Care Activities,Adult Services,Third Party Payments,Other establishments,25/02/2019,6285256,150,VENDOR,HAVANT AND EAST HANTS MIND ADVOCACY SERVICE,141653
Portsmouth City Council,PCC,Adult Social Care,Social Care Activities,Adult Services,Third Party Payments,Other establishments,25/02/2019,6285256,300,VENDOR,HAVANT AND EAST HANTS MIND ADVOCACY SERVICE,141653
Portsmouth City Council,PCC,Adult Social Care,Social Care Activities,Adult Services,Third Party Payments,Other establishments,25/02/2019,6285256,225,VENDOR,HAVANT AND EAST HANTS MIND ADVOCACY SERVICE,141653
Portsmouth City Council,PCC,Adult Social Care,Social Care Activities,Adult Services,Third Party Payments,Other establishments,25/02/2019,6285256,270,VENDOR,HAVANT AND EAST HANTS MIND ADVOCACY SERVICE,141653
Portsmouth City Council,PCC,Adult Social Care,Social Care Activities,Adult Services,Third Party Payments,Other establishments,25/02/2019,6285256,225,VENDOR,HAVANT AND EAST HANTS MIND ADVOCACY SERVICE,141653
Portsmouth City Council,PCC,Adult Social Care,Social Care Activities,Adult Services,Third Party Payments,Other establishments,25/02/2019,6285256,75,VENDOR,HAVANT AND EAST HANTS MIND ADVOCACY SERVICE,141653
Portsmouth City Council,PCC,Adult Social Care,Social Care Activities,Adult Services,Third Party Payments,Other establishments,25/02/2019,6285256,225,VENDOR,HAVANT AND EAST HANTS MIND ADVOCACY SERVICE,141653
Portsmouth City Council,PCC,Adult Social Care,Social Care Activities,Adult Services,Third Party Payments,Other establishments,25/02/2019,6285256,225,VENDOR,HAVANT AND EAST HANTS MIND ADVOCACY SERVICE,141653
Portsmouth City Council,PCC,Adult Social Care,Social Care Activities,Adult Services,Third Party Payments,Other establishments,25/02/2019,6285256,225,VENDOR,HAVANT AND EAST HANTS MIND ADVOCACY SERVICE,141653
Portsmouth City Council,PCC,Adult Social Care,Social Care Activities,Adult Services,Third Party Payments,Other establishments,25/02/2019,6285256,225,VENDOR,HAVANT AND EAST HANTS MIND ADVOCACY SERVICE,141653
Portsmouth City Council,PCC,Adult Social Care,Social Care Activities,Adult Services,Third Party Payments,Other establishments,25/02/2019,6285256,300,VENDOR,HAVANT AND EAST HANTS MIND ADVOCACY SERVICE,141653
Portsmouth City Council,PCC,Adult Social Care,Social Care Activities,Adult Services,Third Party Payments,Other establishments,25/02/2019,6285256,240,VENDOR,HAVANT AND EAST HANTS MIND ADVOCACY SERVICE,141653
Portsmouth City Council,PCC,Adult Social Care,Social Care Activities,Adult Services,Third Party Payments,Other establishments,25/02/2019,6285256,225,VENDOR,HAVANT AND EAST HANTS MIND ADVOCACY SERVICE,141653
Portsmouth City Council,PCC,Adult Social Care,Social Care Activities,Adult Services,Third Party Payments,Other establishments,25/02/2019,6285256,405,VENDOR,HAVANT AND EAST HANTS MIND ADVOCACY SERVICE,141653
Portsmouth City Council,PCC,Adult Social Care,Social Care Activities,Adult Services,Third Party Payments,Other establishments,25/02/2019,6285256,405,VENDOR,HAVANT AND EAST HANTS MIND ADVOCACY SERVICE,141653
Portsmouth City Council,PCC,Adult Social Care,Social Care Activities,Adult Services,Third Party Payments,Other establishments,25/02/2019,6285256,225,VENDOR,HAVANT AND EAST HANTS MIND ADVOCACY SERVICE,141653
Portsmouth City Council,PCC,Adult Social Care,Social Care Activities,Adult Services,Third Party Payments,Other establishments,25/02/2019,6285256,225,VENDOR,HAVANT AND EAST HANTS MIND ADVOCACY SERVICE,141653
Portsmouth City Council,PCC,Adult Social Care,Social Care Activities,Adult Services,Third Party Payments,Other establishments,25/02/2019,6285256,225,VENDOR,HAVANT AND EAST HANTS MIND ADVOCACY SERVICE,141653
Portsmouth City Council,PCC,Adult Social Care,Social Care Activities,Adult Services,Third Party Payments,Other establishments,25/02/2019,6285256,180,VENDOR,HAVANT AND EAST HANTS MIND ADVOCACY SERVICE,141653
Portsmouth City Council,PCC,Adult Social Care,Social Care Activities,Adult Services,Third Party Payments,Other establishments,25/02/2019,6285256,425,VENDOR,HAVANT AND EAST HANTS MIND ADVOCACY SERVICE,141653
Portsmouth City Council,PCC,Cultural and Related Services,Culture and Heritage,Finance & IT,Premises-Related Expenditure,"Repairs, alterations and maintenance of buildings",01/02/2019,6280941,4000,VENDOR,HOARE LEA LLP,106505
Portsmouth City Council,PCC,Housing Revenue Account,Supervision and Management,"Housing, Neighbourhood and Building Services",Premises-Related Expenditure,Energy costs,20/02/2019,6284372,119.36,VENDOR,TOTAL GAS & POWER LTD,133467
Portsmouth City Council,PCC,Cultural and Related Services,Culture and Heritage,Culture & City Development,Third Party Payments,Private contractors,11/02/2019,6282377,725,VENDOR,PAINS FIREWORKS LTD,144492
Portsmouth City Council,PCC,Children's and Education Services,Asylum seekers,Children's Services and Education,Third Party Payments,Other establishments,14/02/2019,6283321,3080,VENDOR,FAMILYPLACEMENT.COM LIMITED,137231
Portsmouth City Council,PCC,Adult Social Care,Social Care Activities,Adult Services,Third Party Payments,Other establishments,12/02/2019,6282486,-932.14,VENDOR,COMMUNITY INTEGRATED CARE (CIC),102442
Portsmouth City Council,PCC,Adult Social Care,Social Care Activities,Adult Services,Third Party Payments,Other establishments,12/02/2019,6282486,-700.71,VENDOR,COMMUNITY INTEGRATED CARE (CIC),102442
Portsmouth City Council,PCC,Adult Social Care,Learning Disability Support  Adults (18 - 64),Adult Services,Third Party Payments,Other establishments,20/02/2019,6283892,43965.47,VENDOR,COMMUNITY INTEGRATED CARE (CIC),102442
Portsmouth City Council,PCC,Adult Social Care,Social Care Activities,Adult Services,Third Party Payments,Other establishments,19/02/2019,6283796,1400,VENDOR,KARE PLUS NATIONAL,142667
Portsmouth City Council,PCC,Adult Social Care,Social Care Activities,Adult Services,Third Party Payments,Other establishments,21/02/2019,6284906,1233.13,VENDOR,KARE PLUS NATIONAL,142667
Portsmouth City Council,PCC,Adult Social Care,Social Care Activities,Adult Services,Third Party Payments,Other establishments,21/02/2019,6284906,180,VENDOR,KARE PLUS NATIONAL,142667
Portsmouth City Council,PCC,Adult Social Care,Physical Support Older People (85+),Adult Services,Third Party Payments,Other establishments,21/02/2019,6284906,32.72,VENDOR,KARE PLUS NATIONAL,142667
Portsmouth City Council,PCC,Housing Services,Housing Benefits Administration,Community & Communication,Supplies and Services,Communications and computing,28/02/2019,6286206,3640.21,VENDOR,ORACLE CORPORATION UK LTD,100470
Portsmouth City Council,PCC,Housing Revenue Account,Special Services,"Housing, Neighbourhood and Building Services",Premises-Related Expenditure,Energy costs,20/02/2019,6284372,170.46,VENDOR,TOTAL GAS & POWER LTD,133467
Portsmouth City Council,PCC,Support Service / Transparency Costs Unallocated,Information Services,Finance & IT,Supplies and Services,Communications and computing,26/02/2019,6285502,734.52,VENDOR,ORACLE CORPORATION UK LTD,100470
Portsmouth City Council,PCC,Support Service / Transparency Costs Unallocated,Financial Services,Finance & IT,Supplies and Services,Communications and computing,22/02/2019,6285096,3935.58,VENDOR,ORACLE CORPORATION UK LTD,100470
Portsmouth City Council,PCC,Housing Revenue Account,Special Services,"Housing, Neighbourhood and Building Services",Premises-Related Expenditure,Energy costs,20/02/2019,6284372,10.85,VENDOR,TOTAL GAS & POWER LTD,133467
Portsmouth City Council,PCC,Planning Services,Business support,Regeneration,Premises-Related Expenditure,"Repairs, alterations and maintenance of buildings",27/02/2019,6285575,700,COMPANY,CLAMEG CONSTRUCTION,118383
Portsmouth City Council,PCC,Planning Services,Business support,Regeneration,Premises-Related Expenditure,"Repairs, alterations and maintenance of buildings",27/02/2019,6285575,1466.13,COMPANY,CLAMEG CONSTRUCTION,118383
Portsmouth City Council,PCC,Adult Social Care,Physical Support Adults (18 - 64),Adult Services,Third Party Payments,Other establishments,05/02/2019,6281306,458.08,VENDOR,KARE PLUS NATIONAL,142667
Portsmouth City Council,PCC,Adult Social Care,Social Care Activities,Adult Services,Third Party Payments,Other establishments,05/02/2019,6281306,6216,VENDOR,KARE PLUS NATIONAL,142667
Portsmouth City Council,PCC,Adult Social Care,Physical Support Older People (85+),Adult Services,Third Party Payments,Other establishments,05/02/2019,6281306,535.5,VENDOR,KARE PLUS NATIONAL,142667
Portsmouth City Council,PCC,Adult Social Care,Social Support - Support for Carer,Adult Services,Third Party Payments,Other establishments,05/02/2019,6281306,84.48,VENDOR,KARE PLUS NATIONAL,142667
Portsmouth City Council,PCC,Adult Social Care,Physical Support Older People (85+),Adult Services,Third Party Payments,Other establishments,05/02/2019,6281306,515.34,VENDOR,KARE PLUS NATIONAL,142667
Portsmouth City Council,PCC,Adult Social Care,Physical Support Older People (85+),Adult Services,Third Party Payments,Other establishments,05/02/2019,6281306,85.89,VENDOR,KARE PLUS NATIONAL,142667
Portsmouth City Council,PCC,Adult Social Care,Physical Support Adults (18 - 64),Adult Services,Third Party Payments,Other establishments,05/02/2019,6281306,572.6,VENDOR,KARE PLUS NATIONAL,142667
Portsmouth City Council,PCC,Adult Social Care,Physical Support Older People (85+),Adult Services,Third Party Payments,Other establishments,05/02/2019,6281306,595,VENDOR,KARE PLUS NATIONAL,142667
Portsmouth City Council,PCC,Adult Social Care,Social Care Activities,Adult Services,Third Party Payments,Other establishments,05/02/2019,6281306,1428,VENDOR,KARE PLUS NATIONAL,142667
Portsmouth City Council,PCC,Adult Social Care,Physical Support Adults (18 - 64),Adult Services,Third Party Payments,Other establishments,05/02/2019,6281306,49.08,VENDOR,KARE PLUS NATIONAL,142667
Portsmouth City Council,PCC,Adult Social Care,Physical Support Older People (85+),Adult Services,Third Party Payments,Other establishments,05/02/2019,6281306,114.52,VENDOR,KARE PLUS NATIONAL,142667
Portsmouth City Council,PCC,Adult Social Care,Social Support - Support for Carer,Adult Services,Third Party Payments,Other establishments,05/02/2019,6281306,84.48,VENDOR,KARE PLUS NATIONAL,142667
Portsmouth City Council,PCC,Adult Social Care,Physical Support Older People (85+),Adult Services,Third Party Payments,Other establishments,05/02/2019,6281306,57.26,VENDOR,KARE PLUS NATIONAL,142667
Portsmouth City Council,PCC,Adult Social Care,Social Care Activities,Adult Services,Third Party Payments,Other establishments,05/02/2019,6281306,170,VENDOR,KARE PLUS NATIONAL,142667
Portsmouth City Council,PCC,Adult Social Care,Physical Support Older People (85+),Adult Services,Third Party Payments,Other establishments,05/02/2019,6281306,57.26,VENDOR,KARE PLUS NATIONAL,142667
Portsmouth City Council,PCC,Adult Social Care,Physical Support Adults (18 - 64),Adult Services,Third Party Payments,Other establishments,05/02/2019,6281306,458.08,VENDOR,KARE PLUS NATIONAL,142667
Portsmouth City Council,PCC,Adult Social Care,Physical Support Older People (85+),Adult Services,Third Party Payments,Other establishments,05/02/2019,6281306,28.16,VENDOR,KARE PLUS NATIONAL,142667
Portsmouth City Council,PCC,Adult Social Care,Social Support - Support for Carer,Adult Services,Third Party Payments,Other establishments,05/02/2019,6281306,84.48,VENDOR,KARE PLUS NATIONAL,142667
Portsmouth City Council,PCC,Adult Social Care,Physical Support Older People (85+),Adult Services,Third Party Payments,Other establishments,05/02/2019,6281306,458.08,VENDOR,KARE PLUS NATIONAL,142667
Portsmouth City Council,PCC,Adult Social Care,Social Care Activities,Adult Services,Third Party Payments,Other establishments,05/02/2019,6281306,1225,VENDOR,KARE PLUS NATIONAL,142667
Portsmouth City Council,PCC,Adult Social Care,Social Support - Support for Carer,Adult Services,Third Party Payments,Other establishments,05/02/2019,6281306,56.32,VENDOR,KARE PLUS NATIONAL,142667
Portsmouth City Council,PCC,Adult Social Care,Physical Support Adults (18 - 64),Adult Services,Third Party Payments,Other establishments,05/02/2019,6281306,572.6,VENDOR,KARE PLUS NATIONAL,142667
Portsmouth City Council,PCC,Adult Social Care,Physical Support Older People (85+),Adult Services,Third Party Payments,Other establishments,05/02/2019,6281306,572.6,VENDOR,KARE PLUS NATIONAL,142667
Portsmouth City Council,PCC,Adult Social Care,Physical Support Older People (85+),Adult Services,Third Party Payments,Other establishments,05/02/2019,6281306,85.89,VENDOR,KARE PLUS NATIONAL,142667
Portsmouth City Council,PCC,Adult Social Care,Physical Support Older People (85+),Adult Services,Third Party Payments,Other establishments,05/02/2019,6281306,687.12,VENDOR,KARE PLUS NATIONAL,142667
Portsmouth City Council,PCC,Adult Social Care,Physical Support Older People (85+),Adult Services,Third Party Payments,Other establishments,05/02/2019,6281306,57.26,VENDOR,KARE PLUS NATIONAL,142667
Portsmouth City Council,PCC,Adult Social Care,Social Support - Support for Carer,Adult Services,Third Party Payments,Other establishments,05/02/2019,6281306,56.32,VENDOR,KARE PLUS NATIONAL,142667
Portsmouth City Council,PCC,Adult Social Care,Social Care Activities,Adult Services,Third Party Payments,Other establishments,05/02/2019,6281306,85,VENDOR,KARE PLUS NATIONAL,142667
Portsmouth City Council,PCC,Adult Social Care,Social Care Activities,Adult Services,Third Party Payments,Other establishments,05/02/2019,6281306,810,VENDOR,KARE PLUS NATIONAL,142667
Portsmouth City Council,PCC,Adult Social Care,Social Care Activities,Adult Services,Third Party Payments,Other establishments,05/02/2019,6281306,28.16,VENDOR,KARE PLUS NATIONAL,142667
Portsmouth City Council,PCC,Adult Social Care,Social Care Activities,Adult Services,Third Party Payments,Other establishments,05/02/2019,6281306,257.67,VENDOR,KARE PLUS NATIONAL,142667
Portsmouth City Council,PCC,Adult Social Care,Physical Support Older People (85+),Adult Services,Third Party Payments,Other establishments,05/02/2019,6281306,535.5,VENDOR,KARE PLUS NATIONAL,142667
Portsmouth City Council,PCC,Adult Social Care,Physical Support Older People (85+),Adult Services,Third Party Payments,Other establishments,05/02/2019,6281306,85.89,VENDOR,KARE PLUS NATIONAL,142667
Portsmouth City Council,PCC,Adult Social Care,Social Support - Support for Carer,Adult Services,Third Party Payments,Other establishments,05/02/2019,6281306,56.32,VENDOR,KARE PLUS NATIONAL,142667
Portsmouth City Council,PCC,Adult Social Care,Physical Support Adults (18 - 64),Adult Services,Third Party Payments,Other establishments,11/02/2019,6282360,458.08,VENDOR,KARE PLUS NATIONAL,142667
Portsmouth City Council,PCC,Adult Social Care,Social Care Activities,Adult Services,Third Party Payments,Other establishments,11/02/2019,6282360,6216,VENDOR,KARE PLUS NATIONAL,142667
Portsmouth City Council,PCC,Adult Social Care,Physical Support Older People (85+),Adult Services,Third Party Payments,Other establishments,11/02/2019,6282360,535.5,VENDOR,KARE PLUS NATIONAL,142667
Portsmouth City Council,PCC,Adult Social Care,Social Support - Support for Carer,Adult Services,Third Party Payments,Other establishments,11/02/2019,6282360,84.48,VENDOR,KARE PLUS NATIONAL,142667
Portsmouth City Council,PCC,Adult Social Care,Physical Support Older People (85+),Adult Services,Third Party Payments,Other establishments,11/02/2019,6282360,515.34,VENDOR,KARE PLUS NATIONAL,142667
Portsmouth City Council,PCC,Adult Social Care,Physical Support Older People (85+),Adult Services,Third Party Payments,Other establishments,11/02/2019,6282360,85.89,VENDOR,KARE PLUS NATIONAL,142667
Portsmouth City Council,PCC,Adult Social Care,Physical Support Adults (18 - 64),Adult Services,Third Party Payments,Other establishments,11/02/2019,6282360,572.6,VENDOR,KARE PLUS NATIONAL,142667
Portsmouth City Council,PCC,Adult Social Care,Physical Support Older People (85+),Adult Services,Third Party Payments,Other establishments,11/02/2019,6282360,595,VENDOR,KARE PLUS NATIONAL,142667
Portsmouth City Council,PCC,Adult Social Care,Social Care Activities,Adult Services,Third Party Payments,Other establishments,11/02/2019,6282360,1428,VENDOR,KARE PLUS NATIONAL,142667
Portsmouth City Council,PCC,Adult Social Care,Physical Support Older People (85+),Adult Services,Third Party Payments,Other establishments,11/02/2019,6282360,114.52,VENDOR,KARE PLUS NATIONAL,142667
Portsmouth City Council,PCC,Adult Social Care,Social Support - Support for Carer,Adult Services,Third Party Payments,Other establishments,11/02/2019,6282360,84.48,VENDOR,KARE PLUS NATIONAL,142667
Portsmouth City Council,PCC,Adult Social Care,Physical Support Older People (85+),Adult Services,Third Party Payments,Other establishments,11/02/2019,6282360,57.26,VENDOR,KARE PLUS NATIONAL,142667
Portsmouth City Council,PCC,Adult Social Care,Social Care Activities,Adult Services,Third Party Payments,Other establishments,11/02/2019,6282360,340,VENDOR,KARE PLUS NATIONAL,142667
Portsmouth City Council,PCC,Adult Social Care,Physical Support Older People (85+),Adult Services,Third Party Payments,Other establishments,11/02/2019,6282360,57.26,VENDOR,KARE PLUS NATIONAL,142667
Portsmouth City Council,PCC,Adult Social Care,Physical Support Adults (18 - 64),Adult Services,Third Party Payments,Other establishments,11/02/2019,6282360,458.08,VENDOR,KARE PLUS NATIONAL,142667
Portsmouth City Council,PCC,Adult Social Care,Physical Support Older People (85+),Adult Services,Third Party Payments,Other establishments,11/02/2019,6282360,28.16,VENDOR,KARE PLUS NATIONAL,142667
Portsmouth City Council,PCC,Adult Social Care,Social Support - Support for Carer,Adult Services,Third Party Payments,Other establishments,11/02/2019,6282360,84.48,VENDOR,KARE PLUS NATIONAL,142667
Portsmouth City Council,PCC,Adult Social Care,Physical Support Older People (85+),Adult Services,Third Party Payments,Other establishments,11/02/2019,6282360,458.08,VENDOR,KARE PLUS NATIONAL,142667
Portsmouth City Council,PCC,Adult Social Care,Social Care Activities,Adult Services,Third Party Payments,Other establishments,11/02/2019,6282360,1225,VENDOR,KARE PLUS NATIONAL,142667
Portsmouth City Council,PCC,Adult Social Care,Social Support - Support for Carer,Adult Services,Third Party Payments,Other establishments,11/02/2019,6282360,84.48,VENDOR,KARE PLUS NATIONAL,142667
Portsmouth City Council,PCC,Adult Social Care,Physical Support Adults (18 - 64),Adult Services,Third Party Payments,Other establishments,11/02/2019,6282360,572.6,VENDOR,KARE PLUS NATIONAL,142667
Portsmouth City Council,PCC,Adult Social Care,Physical Support Older People (85+),Adult Services,Third Party Payments,Other establishments,11/02/2019,6282360,572.6,VENDOR,KARE PLUS NATIONAL,142667
Portsmouth City Council,PCC,Adult Social Care,Physical Support Older People (85+),Adult Services,Third Party Payments,Other establishments,11/02/2019,6282360,85.89,VENDOR,KARE PLUS NATIONAL,142667
Portsmouth City Council,PCC,Adult Social Care,Social Care Activities,Adult Services,Third Party Payments,Other establishments,11/02/2019,6282360,102,VENDOR,KARE PLUS NATIONAL,142667
Portsmouth City Council,PCC,Adult Social Care,Physical Support Older People (85+),Adult Services,Third Party Payments,Other establishments,11/02/2019,6282360,687.12,VENDOR,KARE PLUS NATIONAL,142667
Portsmouth City Council,PCC,Adult Social Care,Physical Support Older People (85+),Adult Services,Third Party Payments,Other establishments,11/02/2019,6282360,57.26,VENDOR,KARE PLUS NATIONAL,142667
Portsmouth City Council,PCC,Adult Social Care,Social Support - Support for Carer,Adult Services,Third Party Payments,Other establishments,11/02/2019,6282360,84.48,VENDOR,KARE PLUS NATIONAL,142667
Portsmouth City Council,PCC,Adult Social Care,Social Care Activities,Adult Services,Third Party Payments,Other establishments,11/02/2019,6282360,154.43,VENDOR,KARE PLUS NATIONAL,142667
Portsmouth City Council,PCC,Adult Social Care,Social Care Activities,Adult Services,Third Party Payments,Other establishments,11/02/2019,6282360,331.57,VENDOR,KARE PLUS NATIONAL,142667
Portsmouth City Council,PCC,Adult Social Care,Social Care Activities,Adult Services,Third Party Payments,Other establishments,11/02/2019,6282360,28.16,VENDOR,KARE PLUS NATIONAL,142667
Portsmouth City Council,PCC,Adult Social Care,Social Care Activities,Adult Services,Third Party Payments,Other establishments,11/02/2019,6282360,249.49,VENDOR,KARE PLUS NATIONAL,142667
Portsmouth City Council,PCC,Adult Social Care,Physical Support Older People (85+),Adult Services,Third Party Payments,Other establishments,11/02/2019,6282360,535.5,VENDOR,KARE PLUS NATIONAL,142667
Portsmouth City Council,PCC,Adult Social Care,Physical Support Older People (85+),Adult Services,Third Party Payments,Other establishments,11/02/2019,6282360,85.89,VENDOR,KARE PLUS NATIONAL,142667
Portsmouth City Council,PCC,Adult Social Care,Learning Disability Support  Adults (18 - 64),Adult Services,Third Party Payments,Other establishments,01/02/2019,6280895,10794.2,VENDOR,BROOKLANDS CARE LIMITED,128129
Portsmouth City Council,PCC,Adult Social Care,Physical Support Adults (18 - 64),Adult Services,Third Party Payments,Other establishments,15/02/2019,6283488,458.08,VENDOR,KARE PLUS NATIONAL,142667
Portsmouth City Council,PCC,Adult Social Care,Social Care Activities,Adult Services,Third Party Payments,Other establishments,15/02/2019,6283488,6216,VENDOR,KARE PLUS NATIONAL,142667
Portsmouth City Council,PCC,Adult Social Care,Physical Support Older People (85+),Adult Services,Third Party Payments,Other establishments,15/02/2019,6283488,515.34,VENDOR,KARE PLUS NATIONAL,142667
Portsmouth City Council,PCC,Adult Social Care,Social Support - Support for Carer,Adult Services,Third Party Payments,Other establishments,15/02/2019,6283488,84.48,VENDOR,KARE PLUS NATIONAL,142667
Portsmouth City Council,PCC,Adult Social Care,Physical Support Older People (85+),Adult Services,Third Party Payments,Other establishments,15/02/2019,6283488,319.02,VENDOR,KARE PLUS NATIONAL,142667
Portsmouth City Council,PCC,Adult Social Care,Physical Support Older People (85+),Adult Services,Third Party Payments,Other establishments,15/02/2019,6283488,515.34,VENDOR,KARE PLUS NATIONAL,142667
Portsmouth City Council,PCC,Adult Social Care,Physical Support Older People (85+),Adult Services,Third Party Payments,Other establishments,15/02/2019,6283488,85.89,VENDOR,KARE PLUS NATIONAL,142667
Portsmouth City Council,PCC,Adult Social Care,Physical Support Adults (18 - 64),Adult Services,Third Party Payments,Other establishments,15/02/2019,6283488,572.6,VENDOR,KARE PLUS NATIONAL,142667
Portsmouth City Council,PCC,Adult Social Care,Physical Support Older People (85+),Adult Services,Third Party Payments,Other establishments,15/02/2019,6283488,73.62,VENDOR,KARE PLUS NATIONAL,142667
Portsmouth City Council,PCC,Adult Social Care,Physical Support Older People (85+),Adult Services,Third Party Payments,Other establishments,15/02/2019,6283488,441.72,VENDOR,KARE PLUS NATIONAL,142667
Portsmouth City Council,PCC,Adult Social Care,Social Care Activities,Adult Services,Third Party Payments,Other establishments,15/02/2019,6283488,688.5,VENDOR,KARE PLUS NATIONAL,142667
Portsmouth City Council,PCC,Adult Social Care,Physical Support Older People (85+),Adult Services,Third Party Payments,Other establishments,15/02/2019,6283488,114.52,VENDOR,KARE PLUS NATIONAL,142667
Portsmouth City Council,PCC,Adult Social Care,Social Support - Support for Carer,Adult Services,Third Party Payments,Other establishments,15/02/2019,6283488,84.48,VENDOR,KARE PLUS NATIONAL,142667
Portsmouth City Council,PCC,Adult Social Care,Physical Support Older People (85+),Adult Services,Third Party Payments,Other establishments,15/02/2019,6283488,57.26,VENDOR,KARE PLUS NATIONAL,142667
Portsmouth City Council,PCC,Adult Social Care,Social Care Activities,Adult Services,Third Party Payments,Other establishments,15/02/2019,6283488,340,VENDOR,KARE PLUS NATIONAL,142667
Portsmouth City Council,PCC,Adult Social Care,Physical Support Older People (85+),Adult Services,Third Party Payments,Other establishments,15/02/2019,6283488,57.26,VENDOR,KARE PLUS NATIONAL,142667
Portsmouth City Council,PCC,Adult Social Care,Physical Support Adults (18 - 64),Adult Services,Third Party Payments,Other establishments,15/02/2019,6283488,458.08,VENDOR,KARE PLUS NATIONAL,142667
Portsmouth City Council,PCC,Adult Social Care,Physical Support Older People (85+),Adult Services,Third Party Payments,Other establishments,15/02/2019,6283488,28.16,VENDOR,KARE PLUS NATIONAL,142667
Portsmouth City Council,PCC,Adult Social Care,Social Support - Support for Carer,Adult Services,Third Party Payments,Other establishments,15/02/2019,6283488,84.48,VENDOR,KARE PLUS NATIONAL,142667
Portsmouth City Council,PCC,Adult Social Care,Physical Support Older People (85+),Adult Services,Third Party Payments,Other establishments,15/02/2019,6283488,458.08,VENDOR,KARE PLUS NATIONAL,142667
Portsmouth City Council,PCC,Adult Social Care,Social Care Activities,Adult Services,Third Party Payments,Other establishments,15/02/2019,6283488,1050,VENDOR,KARE PLUS NATIONAL,142667
Portsmouth City Council,PCC,Adult Social Care,Social Support - Support for Carer,Adult Services,Third Party Payments,Other establishments,15/02/2019,6283488,84.48,VENDOR,KARE PLUS NATIONAL,142667
Portsmouth City Council,PCC,Adult Social Care,Physical Support Adults (18 - 64),Adult Services,Third Party Payments,Other establishments,15/02/2019,6283488,572.6,VENDOR,KARE PLUS NATIONAL,142667
Portsmouth City Council,PCC,Adult Social Care,Physical Support Older People (85+),Adult Services,Third Party Payments,Other establishments,15/02/2019,6283488,556.24,VENDOR,KARE PLUS NATIONAL,142667
Portsmouth City Council,PCC,Adult Social Care,Physical Support Older People (85+),Adult Services,Third Party Payments,Other establishments,15/02/2019,6283488,85.89,VENDOR,KARE PLUS NATIONAL,142667
Portsmouth City Council,PCC,Adult Social Care,Social Care Activities,Adult Services,Third Party Payments,Other establishments,15/02/2019,6283488,319.02,VENDOR,KARE PLUS NATIONAL,142667
Portsmouth City Council,PCC,Adult Social Care,Physical Support Older People (85+),Adult Services,Third Party Payments,Other establishments,15/02/2019,6283488,687.12,VENDOR,KARE PLUS NATIONAL,142667
Portsmouth City Council,PCC,Adult Social Care,Physical Support Older People (85+),Adult Services,Third Party Payments,Other establishments,15/02/2019,6283488,57.26,VENDOR,KARE PLUS NATIONAL,142667
Portsmouth City Council,PCC,Adult Social Care,Social Support - Support for Carer,Adult Services,Third Party Payments,Other establishments,15/02/2019,6283488,31,VENDOR,KARE PLUS NATIONAL,142667
Portsmouth City Council,PCC,Adult Social Care,Social Support - Support for Carer,Adult Services,Third Party Payments,Other establishments,15/02/2019,6283488,84.48,VENDOR,KARE PLUS NATIONAL,142667
Portsmouth City Council,PCC,Adult Social Care,Social Care Activities,Adult Services,Third Party Payments,Other establishments,15/02/2019,6283488,28.16,VENDOR,KARE PLUS NATIONAL,142667
Portsmouth City Council,PCC,Adult Social Care,Social Care Activities,Adult Services,Third Party Payments,Other establishments,15/02/2019,6283488,257.67,VENDOR,KARE PLUS NATIONAL,142667
Portsmouth City Council,PCC,Adult Social Care,Physical Support Older People (85+),Adult Services,Third Party Payments,Other establishments,15/02/2019,6283488,24.54,VENDOR,KARE PLUS NATIONAL,142667
Portsmouth City Council,PCC,Adult Social Care,Physical Support Older People (85+),Adult Services,Third Party Payments,Other establishments,15/02/2019,6283488,85.89,VENDOR,KARE PLUS NATIONAL,142667
Portsmouth City Council,PCC,Adult Social Care,Social Support - Support for Carer,Adult Services,Third Party Payments,Other establishments,15/02/2019,6283488,56.32,VENDOR,KARE PLUS NATIONAL,142667
Portsmouth City Council,PCC,Adult Social Care,Physical Support Adults (18 - 64),Adult Services,Third Party Payments,Other establishments,25/02/2019,6285286,458.08,VENDOR,KARE PLUS NATIONAL,142667
Portsmouth City Council,PCC,Adult Social Care,Social Care Activities,Adult Services,Third Party Payments,Other establishments,25/02/2019,6285286,6080,VENDOR,KARE PLUS NATIONAL,142667
Portsmouth City Council,PCC,Adult Social Care,Physical Support Older People (85+),Adult Services,Third Party Payments,Other establishments,25/02/2019,6285286,515.34,VENDOR,KARE PLUS NATIONAL,142667
Portsmouth City Council,PCC,Adult Social Care,Physical Support Older People (85+),Adult Services,Third Party Payments,Other establishments,25/02/2019,6285286,417.18,VENDOR,KARE PLUS NATIONAL,142667
Portsmouth City Council,PCC,Adult Social Care,Physical Support Older People (85+),Adult Services,Third Party Payments,Other establishments,25/02/2019,6285286,515.34,VENDOR,KARE PLUS NATIONAL,142667
Portsmouth City Council,PCC,Adult Social Care,Physical Support Older People (85+),Adult Services,Third Party Payments,Other establishments,25/02/2019,6285286,85.89,VENDOR,KARE PLUS NATIONAL,142667
Portsmouth City Council,PCC,Adult Social Care,Physical Support Adults (18 - 64),Adult Services,Third Party Payments,Other establishments,25/02/2019,6285286,572.6,VENDOR,KARE PLUS NATIONAL,142667
Portsmouth City Council,PCC,Adult Social Care,Physical Support Older People (85+),Adult Services,Third Party Payments,Other establishments,25/02/2019,6285286,466.26,VENDOR,KARE PLUS NATIONAL,142667
Portsmouth City Council,PCC,Adult Social Care,Physical Support Adults (18 - 64),Adult Services,Third Party Payments,Other establishments,25/02/2019,6285286,474.44,VENDOR,KARE PLUS NATIONAL,142667
Portsmouth City Council,PCC,Adult Social Care,Physical Support Older People (85+),Adult Services,Third Party Payments,Other establishments,25/02/2019,6285286,114.52,VENDOR,KARE PLUS NATIONAL,142667
Portsmouth City Council,PCC,Adult Social Care,Social Support - Support for Carer,Adult Services,Third Party Payments,Other establishments,25/02/2019,6285286,84.48,VENDOR,KARE PLUS NATIONAL,142667
Portsmouth City Council,PCC,Adult Social Care,Physical Support Older People (85+),Adult Services,Third Party Payments,Other establishments,25/02/2019,6285286,69.53,VENDOR,KARE PLUS NATIONAL,142667
Portsmouth City Council,PCC,Adult Social Care,Social Care Activities,Adult Services,Third Party Payments,Other establishments,25/02/2019,6285286,340,VENDOR,KARE PLUS NATIONAL,142667
Portsmouth City Council,PCC,Adult Social Care,Physical Support Older People (85+),Adult Services,Third Party Payments,Other establishments,25/02/2019,6285286,57.26,VENDOR,KARE PLUS NATIONAL,142667
Portsmouth City Council,PCC,Adult Social Care,Physical Support Adults (18 - 64),Adult Services,Third Party Payments,Other establishments,25/02/2019,6285286,474.44,VENDOR,KARE PLUS NATIONAL,142667
Portsmouth City Council,PCC,Adult Social Care,Physical Support Older People (85+),Adult Services,Third Party Payments,Other establishments,25/02/2019,6285286,30.44,VENDOR,KARE PLUS NATIONAL,142667
Portsmouth City Council,PCC,Adult Social Care,Social Support - Support for Carer,Adult Services,Third Party Payments,Other establishments,25/02/2019,6285286,84.48,VENDOR,KARE PLUS NATIONAL,142667
Portsmouth City Council,PCC,Adult Social Care,Physical Support Older People (85+),Adult Services,Third Party Payments,Other establishments,25/02/2019,6285286,458.08,VENDOR,KARE PLUS NATIONAL,142667
Portsmouth City Council,PCC,Adult Social Care,Social Care Activities,Adult Services,Third Party Payments,Other establishments,25/02/2019,6285286,1230,VENDOR,KARE PLUS NATIONAL,142667
Portsmouth City Council,PCC,Adult Social Care,Social Support - Support for Carer,Adult Services,Third Party Payments,Other establishments,25/02/2019,6285286,84.48,VENDOR,KARE PLUS NATIONAL,142667
Portsmouth City Council,PCC,Adult Social Care,Physical Support Adults (18 - 64),Adult Services,Third Party Payments,Other establishments,25/02/2019,6285286,572.6,VENDOR,KARE PLUS NATIONAL,142667
Portsmouth City Council,PCC,Adult Social Care,Physical Support Older People (85+),Adult Services,Third Party Payments,Other establishments,25/02/2019,6285286,556.24,VENDOR,KARE PLUS NATIONAL,142667
Portsmouth City Council,PCC,Adult Social Care,Physical Support Older People (85+),Adult Services,Third Party Payments,Other establishments,25/02/2019,6285286,85.89,VENDOR,KARE PLUS NATIONAL,142667
Portsmouth City Council,PCC,Adult Social Care,Social Care Activities,Adult Services,Third Party Payments,Other establishments,25/02/2019,6285286,384.46,VENDOR,KARE PLUS NATIONAL,142667
Portsmouth City Council,PCC,Adult Social Care,Physical Support Older People (85+),Adult Services,Third Party Payments,Other establishments,25/02/2019,6285286,687.12,VENDOR,KARE PLUS NATIONAL,142667
Portsmouth City Council,PCC,Adult Social Care,Physical Support Older People (85+),Adult Services,Third Party Payments,Other establishments,25/02/2019,6285286,57.26,VENDOR,KARE PLUS NATIONAL,142667
Portsmouth City Council,PCC,Adult Social Care,Social Support - Support for Carer,Adult Services,Third Party Payments,Other establishments,25/02/2019,6285286,31,VENDOR,KARE PLUS NATIONAL,142667
Portsmouth City Council,PCC,Adult Social Care,Social Support - Support for Carer,Adult Services,Third Party Payments,Other establishments,25/02/2019,6285286,84.48,VENDOR,KARE PLUS NATIONAL,142667
Portsmouth City Council,PCC,Adult Social Care,Social Care Activities,Adult Services,Third Party Payments,Other establishments,25/02/2019,6285286,28.16,VENDOR,KARE PLUS NATIONAL,142667
Portsmouth City Council,PCC,Adult Social Care,Social Care Activities,Adult Services,Third Party Payments,Other establishments,25/02/2019,6285286,257.67,VENDOR,KARE PLUS NATIONAL,142667
Portsmouth City Council,PCC,Adult Social Care,Physical Support Older People (85+),Adult Services,Third Party Payments,Other establishments,25/02/2019,6285286,85.89,VENDOR,KARE PLUS NATIONAL,142667
Portsmouth City Council,PCC,Adult Social Care,Social Support - Support for Carer,Adult Services,Third Party Payments,Other establishments,25/02/2019,6285286,56.32,VENDOR,KARE PLUS NATIONAL,142667
Portsmouth City Council,PCC,Housing Revenue Account,Special Services,"Housing, Neighbourhood and Building Services",Premises-Related Expenditure,Energy costs,20/02/2019,6284372,216.58,VENDOR,TOTAL GAS & POWER LTD,133467
Portsmouth City Council,PCC,Housing Revenue Account,Special Services,"Housing, Neighbourhood and Building Services",Premises-Related Expenditure,Energy costs,20/02/2019,6284372,247.76,VENDOR,TOTAL GAS & POWER LTD,133467
Portsmouth City Council,PCC,Housing Revenue Account,Special Services,"Housing, Neighbourhood and Building Services",Premises-Related Expenditure,Energy costs,20/02/2019,6284372,804.77,VENDOR,TOTAL GAS & POWER LTD,133467
Portsmouth City Council,PCC,Children's and Education Services,Asylum seekers,Children's Services and Education,Third Party Payments,Other establishments,08/02/2019,6282053,3542.68,VENDOR,COMPASS FOSTERING LIMITED,103601
Portsmouth City Council,PCC,Adult Social Care,Physical Support Adults (18 - 64),Adult Services,Third Party Payments,Other establishments,01/02/2019,6280882,1677.6,VENDOR,ADMIRAL CARE LTD,138025
Portsmouth City Council,PCC,Adult Social Care,Mental Health Support Adults (18 - 64),Adult Services,Third Party Payments,Other establishments,01/02/2019,6280917,3635.06,VENDOR,CRAWFORDS CARE HOMES LTD,134328
Portsmouth City Council,PCC,Housing Revenue Account,Supervision and Management,"Housing, Neighbourhood and Building Services",Premises-Related Expenditure,Energy costs,20/02/2019,6284372,493.26,VENDOR,TOTAL GAS & POWER LTD,133467
Portsmouth City Council,PCC,Highways and Transport Services,"Transport Planning, Policy and Strategy",Regeneration,Supplies and Services,Services,01/02/2019,6280887,5934.4,VENDOR,ATKINS LIMITED,108809
Portsmouth City Council,PCC,Children's and Education Services,Asylum seekers,Children's Services and Education,Third Party Payments,Other establishments,08/02/2019,6282053,3428.4,VENDOR,COMPASS FOSTERING LIMITED,103601
Portsmouth City Council,PCC,Adult Social Care,Information and Early Intervention,Adult Services,Supplies and Services,"Equipment, furniture and materials",05/02/2019,6281331,11000,VENDOR,PORTSEA MENS SHED CIO,141006
Portsmouth City Council,PCC,Adult Social Care,Physical Support Older People (85+),Adult Services,Third Party Payments,Other establishments,19/02/2019,6283778,343.56,VENDOR,ENTHUSE CARE,140504
Portsmouth City Council,PCC,Adult Social Care,Physical Support Older People (85+),Adult Services,Third Party Payments,Other establishments,19/02/2019,6283778,114.52,VENDOR,ENTHUSE CARE,140504
Portsmouth City Council,PCC,Adult Social Care,Physical Support Older People (85+),Adult Services,Third Party Payments,Other establishments,19/02/2019,6283778,572.6,VENDOR,ENTHUSE CARE,140504
